Workbook

Sheet Read Me
B1: www.auto-excel.com
B4: User Notes:
B6: Disclaimer: This spreadsheet is a beta version, and all parameters should be checked to ensure accurate transfer into Etabs by
B7: the user. If any issues arise, please contact admin@auto-excel.com to revise and upgrade the spreadsheet
B9: Licence: This spreadsheet is freely available for unlimited downloads from auto-excel.com. The free license is intended to
B10: prevent the circulation of faulty versions and ensure that users are using the latest version.
B12: Data Entry: Use only data entry cells indicated
B14: Fault Report and Suggestions: Our team is open to hearing from you. Feel free to contact us at admin@auto-excel.com if you
B15: have suggestions to enhance this spreadsheet or if you have ideas for other spreadsheets that would be beneficial for your work.
B17: Enableing Macros: Copy the file to driver other than C drive (windows installed drive). If the Macros are disabled, follow the below
B18: File>Option> Trust Center> Trust Center Setting…> Macro Settings> Tick "Trust access to the VBA project object model" and select Disable VBA macros with notification > restart the spreadsheet
B19: > click "Enable editing" and "Enable Content"

Sheet Input
B1: www.auto-excel.com | G1: Contact: | H1: admin@auto-excel.com
C3: Units: | D3: kN_m
B5: General Geometry: | G5: Member sections:
B6: Portal total span: | D6: 20 | E6: =IF($D$3="kN_m","m","ft") -> m | G6: section types: | H6: Euro
B7: Portal knee height: | D7: 5 | E7: =IF($D$3="kN_m","m","ft") -> m | G7: rafter sections: | H7: IPE300
B8: Apex height from ground: | D8: 8 | E8: =IF($D$3="kN_m","m","ft") -> m | G8: column sections: | H8: IPE400
G9: wall brace section: | H9: TUBO60X60X3.6
B10: Roof strut maximum horizontal spacing: | G10: roof brace section: | H10: TUBO60X60X3.6
D11: 4 | E11: =IF($D$3="kN_m","m","ft") -> m | G11: roof strut section: | H11: TUBO60X60X3.6
B13: Loads:
B14: roof dead load: | D14: 0.3 | E14: =IF($D$3="kN_m","kPa","Kip/ft2") -> kPa
B15: roof live load: | D15: 0.25 | E15: kPa | BK15: strut No | BL15: =ROUND(D6/D11/2,0)*2 -> 6
B16: roof snow load: | D16: 0.1 | E16: kPa | BK16: roof strut locations | BL16: =D6/BL15 -> 3.333333333
B17: wind windward wall: | D17: 0.7 | E17: kPa | BL17: =IF(D6>=BL16*2,BL16*2,"") -> 6.666666667
B18: wind windward roof: | D18: 0.5 | E18: kPa | BL18: =IF(D6>=BL16*3,BL16*3,"") -> 10
B19: wind leeward roof: | D19: -0.2 | E19: kPa | BL19: =IF(D6>=BL16*4,BL16*4,"") -> 13.33333333
B20: wind leeward wall: | D20: 0.5 | E20: kPa | BL20: =IF(D6>=BL16*5,BL16*5,"") -> 16.66666667
B21: wind drag on roof: | D21: 0.2 | E21: kPa | BL21: =IF(D6>=BL16*6,BL16*6,"") -> 20
BL22: =IF(D6>=BL16*7,BL16*7,"") ->  | GS22: =9*8+58 -> 130
B23: Portal properties: | L23: column and rafter list | T23: load | AC23: wall brace list | BE23: roof strut | BL23: =IF(D6>=BL16*8,BL16*8,"") -> 
B24: Gridlines name | C24: =IF($D$3="kN_m","spacing (m)","spacing(ft)") -> spacing (m) | D24: =IF($D$3="kN_m","Distance from origin (m)","Distance from origin (ft)") -> Distance from origin (m) | F24: wall braced bay? | G24: roof brace? | K24: number | L24: x1 | M24: y1 | N24: z1 | O24: x2 | P24: y2 | Q24: z2 | R24: section | T24: dead | U24: live | V24: Snow | W24: windy | X24: wind-y | Y24: windx | Z24: wind-x | AB24: number | AC24: x1 | AD24: y1 | AE24: z1 | AF24: x2 | AG24: y2 | AH24: z2 | AI24: number | AJ24: x1 | AK24: y1 | AL24: z1 | AM24: x2 | AN24: y2 | AO24: z2 | AP24: number | AQ24: x1 | AR24: y1 | AS24: z1 | AT24: x2 | AU24: y2 | AV24: z2 | AW24: number | AX24: x1 | AY24: y1 | AZ24: z1 | BA24: x2 | BB24: y2 | BC24: z2 | BE24: number | BF24: x1 | BG24: y1 | BH24: z1 | BI24: x2 | BJ24: y2 | BK24: z2 | BL24: =IF(D6>=BL16*9,BL16*9,"") ->  | BM24: number | BN24: x1 | BO24: y1 | BP24: z1 | BQ24: x2 | BR24: y2 | BS24: z2 | BU24: number | BV24: x1 | BW24: y1 | BX24: z1 | BY24: x2 | BZ24: y2 | CA24: z2 | CC24: number | CD24: x1 | CE24: y1 | CF24: z1 | CG24: x2 | CH24: y2 | CI24: z2 | CK24: number | CL24: x1 | CM24: y1 | CN24: z1 | CO24: x2 | CP24: y2 | CQ24: z2 | CS24: number | CT24: x1 | CU24: y1 | CV24: z1 | CW24: x2 | CX24: y2 | CY24: z2 | DA24: number | DB24: x1 | DC24: y1 | DD24: z1 | DE24: x2 | DF24: y2 | DG24: z2 | DI24: number | DJ24: x1 | DK24: y1 | DL24: z1 | DM24: x2 | DN24: y2 | DO24: z2 | DQ24: number | DR24: x1 | DS24: y1 | DT24: z1 | DU24: x2 | DV24: y2 | DW24: z2 | DY24: number | DZ24: x1 | EA24: y1 | EB24: z1 | EC24: x2 | ED24: y2 | EE24: z2 | EG24: number | EH24: x1 | EI24: y1 | EJ24: z1 | EK24: x2 | EL24: y2 | EM24: z2 | EO24: number | EP24: x1 | EQ24: y1 | ER24: z1 | ES24: x2 | ET24: y2 | EU24: z2 | EW24: number | EX24: x1 | EY24: y1 | EZ24: z1 | FA24: x2 | FB24: y2 | FC24: z2 | FE24: number | FF24: x1 | FG24: y1 | FH24: z1 | FI24: x2 | FJ24: y2 | FK24: z2 | FM24: number | FN24: x1 | FO24: y1 | FP24: z1 | FQ24: x2 | FR24: y2 | FS24: z2 | FU24: number | FV24: x1 | FW24: y1 | FX24: z1 | FY24: x2 | FZ24: y2 | GA24: z2 | GC24: number | GD24: x1 | GE24: y1 | GF24: z1 | GG24: x2 | GH24: y2 | GI24: z2 | GK24: number | GL24: x1 | GM24: y1 | GN24: z1 | GO24: x2 | GP24: y2 | GQ24: z2 | GS24: number | GT24: x1 | GU24: y1 | GV24: z1 | GW24: x2 | GX24: y2 | GY24: z2 | HA24: number | HB24: x1 | HC24: y1 | HD24: z1 | HE24: x2 | HF24: y2 | HG24: z2
B25: 1 | C25: 0 | D25: 0 | F25: - | G25: - | H25: Refer to "Read Me" tab to acrivate the Macro | K25: 1 | L25: 0 | M25: 0 | N25: 0 | O25: =L25 -> 0 | P25: 0 | Q25: =D7 -> 5 | R25: =$H$8 -> IPE400 | T25: 0 | U25: 0 | V25: 0 | W25: =$D$17*C26/2 -> 2.8 | X25: =-$D$20*C26/2 -> -2 | Y25: =$D$21*C26/2 -> 0.8 | Z25: =-Y25 -> -0.8 | AB25: =IF(AND(F26="Yes",C26<>""),COUNT($L$25:$L$9113)+1,"") -> 25 | AC25: =IF(AB25="","",D25) -> 0 | AD25: =IF(AB25="","",0) -> 0 | AE25: =IF(AB25="","",0) -> 0 | AF25: =IF(AB25="","",D26) -> 8 | AG25: =IF(AB25="","",0) -> 0 | AH25: =IF(AB25="","",$D$7) -> 5 | AI25: =IF(AB25="","",AB25+1) -> 26 | AJ25: =AC25 -> 0 | AK25: =AD25 -> 0 | AL25: =AH25 -> 5 | AM25: =AF25 -> 8 | AN25: =AG25 -> 0 | AO25: =AE25 -> 0 | AP25: =IF(AB25="","",AI25+1) -> 27 | AQ25: =AC25 -> 0 | AR25: =IF(AB25="","",$D$6) -> 20 | AS25: =AE25 -> 0 | AT25: =AF25 -> 8 | AU25: =AR25 -> 20 | AV25: =AH25 -> 5 | AW25: =IF(AB25="","",AP25+1) -> 28 | AX25: =AJ25 -> 0 | AY25: =AR25 -> 20 | AZ25: =AL25 -> 5 | BA25: =AM25 -> 8 | BB25: =AR25 -> 20 | BC25: =AO25 -> 0 | BE25: =IF(D26="","",MAX(AW25:AW44)+1) -> 37 | BF25: =IF(D26="","",D25) -> 0 | BG25: =IF(D26="","",0) -> 0 | BH25: =IF(D26="","",$D$7) -> 5 | BI25: =IF(D26="","",D26) -> 8 | BJ25: =IF(D26="","",BG25) -> 0 | BK25: =IF(D26="","",BH25) -> 5 | BL25: =IF(D6>=BL16*10,BL16*10,"") ->  | BM25: =IF(BL16="","",MAX(BE25:BE44)+1) -> 42 | BN25: =IF(BM25="","",BF25) -> 0 | BO25: =IF(BM25="","",BL16) -> 3.333333333 | BP25: =IF(BM25="","",BH25+BO25/(D6/2)*(D8-D7)) -> 6 | BQ25: =IF(BM25="","",BI25) -> 8 | BR25: =IF(BM25="","",BO25) -> 3.333333333 | BS25: =IF(BM25="","",BP25) -> 6 | BU25: =IF(BL17="","",MAX(BM25:BM44)+1) -> 47 | BV25: =IF(BU25="","",BN25) -> 0 | BW25: =IF(BU25="","",$BL17) -> 6.666666667 | BX25: =IF(BM25="","",IF(BW25<=$D$6/2,BH25+BW25/($D$6/2)*($D$8-$D$7),$D$8-BW25/($D$6/2)*($D$8-$D$7))) -> 7 | BY25: =IF(BU25="","",BQ25) -> 8 | BZ25: =IF(BU25="","",BW25) -> 6.666666667 | CA25: =IF(BU25="","",BX25) -> 7 | CC25: =IF(BL18="","",MAX(BU25:BU44)+1) -> 52 | CD25: =IF(CC25="","",BV25) -> 0 | CE25: =IF(CC25="","",$BL18) -> 10 | CF25: =IF(BU25="","",IF(CE25<=$D$6/2,$BH$25+CE25/($D$6/2)*($D$8-$D$7),(CE25-$D$6/2)/($D$6/2)*($D$8-$D$7))) -> 8 | CG25: =IF(CC25="","",BY25) -> 8 | CH25: =IF(CC25="","",CE25) -> 10 | CI25: =IF(CC25="","",CF25) -> 8 | CK25: =IF(BL19="","",MAX(CC25:CC44)+1) -> 57 | CL25: =IF(CK25="","",CD25) -> 0 | CM25: =IF(CK25="","",$BL19) -> 13.33333333 | CN25: =IF(CC25="","",IF(CM25<=$D$6/2,$BH$25+CM25/($D$6/2)*($D$8-$D$7),$D$8-(CM25-$D$6/2)/($D$6/2)*($D$8-$D$7))) -> 7 | CO25: =IF(CK25="","",CG25) -> 8 | CP25: =IF(CK25="","",CM25) -> 13.33333333 | CQ25: =IF(CK25="","",CN25) -> 7 | CS25: =IF(BL20="","",MAX(CK25:CK44)+1) -> 62 | CT25: =IF(CS25="","",CL25) -> 0 | CU25: =IF(CS25="","",$BL20) -> 16.66666667 | CV25: =IF(CK25="","",IF(CU25<=$D$6/2,$BH$25+CU25/($D$6/2)*($D$8-$D$7),$D$8-(CU25-$D$6/2)/($D$6/2)*($D$8-$D$7))) -> 6 | CW25: =IF(CS25="","",CO25) -> 8 | CX25: =IF(CS25="","",CU25) -> 16.66666667 | CY25: =IF(CS25="","",CV25) -> 6 | DA25: =IF(BL21="","",MAX(CS25:CS44)+1) -> 67 | DB25: =IF(DA25="","",CT25) -> 0 | DC25: =IF(DA25="","",$BL21) -> 20 | DD25: =IF(CS25="","",IF(DC25<=$D$6/2,$BH$25+DC25/($D$6/2)*($D$8-$D$7),$D$8-(DC25-$D$6/2)/($D$6/2)*($D$8-$D$7))) -> 5 | DE25: =IF(DA25="","",CW25) -> 8 | DF25: =IF(DA25="","",DC25) -> 20 | DG25: =IF(DA25="","",DD25) -> 5 | DI25: =IF(BL22="","",MAX(DA25:DA44)+1) ->  | DJ25: =IF(DI25="","",DB25) ->  | DK25: =IF(DI25="","",$BL22) ->  | DL25: =IF(DA25="","",IF(DK25<=$D$6/2,$BH$25+DK25/($D$6/2)*($D$8-$D$7),$D$8-(DK25-$D$6/2)/($D$6/2)*($D$8-$D$7))) ->  | DM25: =IF(DI25="","",DE25) ->  | DN25: =IF(DI25="","",DK25) ->  | DO25: =IF(DI25="","",DL25) ->  | DQ25: =IF(BL23="","",MAX(DI25:DI44)+1) ->  | DR25: =IF(DQ25="","",DJ25) ->  | DS25: =IF(DQ25="","",$BL23) ->  | DT25: =IF(DI25="","",IF(DS25<=$D$6/2,$BH$25+DS25/($D$6/2)*($D$8-$D$7),$D$8-(DS25-$D$6/2)/($D$6/2)*($D$8-$D$7))) ->  | DU25: =IF(DQ25="","",DM25) ->  | DV25: =IF(DQ25="","",DS25) ->  | DW25: =IF(DQ25="","",DT25) ->  | DY25: =IF(BL24="","",MAX(DQ25:DQ44)+1) ->  | DZ25: =IF(DY25="","",DR25) ->  | EA25: =IF(DY25="","",$BL24) ->  | EB25: =IF(DQ25="","",IF(EA25<=$D$6/2,$BH$25+EA25/($D$6/2)*($D$8-$D$7),$D$8-(EA25-$D$6/2)/($D$6/2)*($D$8-$D$7))) ->  | EC25: =IF(DY25="","",DU25) ->  | ED25: =IF(DY25="","",EA25) ->  | EE25: =IF(DY25="","",EB25) ->  | EG25: =IF(BL25="","",MAX(DY25:DY44)+1) ->  | EH25: =IF(EG25="","",DZ25) ->  | EI25: =IF(EG25="","",$BL25) ->  | EJ25: =IF(DY25="","",IF(EI25<=$D$6/2,$BH$25+EI25/($D$6/2)*($D$8-$D$7),$D$8-(EI25-$D$6/2)/($D$6/2)*($D$8-$D$7))) ->  | EK25: =IF(EG25="","",EC25) ->  | EL25: =IF(EG25="","",EI25) ->  | EM25: =IF(EG25="","",EJ25) ->  | EO25: =IF(BL26="","",MAX(EG25:EG44)+1) ->  | EP25: =IF(EO25="","",EH25) ->  | EQ25: =IF(EO25="","",$BL26) ->  | ER25: =IF(EG25="","",IF(EQ25<=$D$6/2,$BH$25+EQ25/($D$6/2)*($D$8-$D$7),$D$8-(EQ25-$D$6/2)/($D$6/2)*($D$8-$D$7))) ->  | ES25: =IF(EO25="","",EK25) ->  | ET25: =IF(EO25="","",EQ25) ->  | EU25: =IF(EO25="","",ER25) ->  | EW25: =IF(BL27="","",MAX(EO25:EO44)+1) ->  | EX25: =IF(EW25="","",EP25) ->  | EY25: =IF(EW25="","",$BL27) ->  | EZ25: =IF(EO25="","",IF(EY25<=$D$6/2,$BH$25+EY25/($D$6/2)*($D$8-$D$7),$D$8-(EY25-$D$6/2)/($D$6/2)*($D$8-$D$7))) ->  | FA25: =IF(EW25="","",ES25) ->  | FB25: =IF(EW25="","",EY25) ->  | FC25: =IF(EW25="","",EZ25) ->  | FE25: =IF(BL28="","",MAX(EW25:EW44)+1) ->  | FF25: =IF(FE25="","",EX25) ->  | FG25: =IF(FE25="","",$BL28) ->  | FH25: =IF(EW25="","",IF(FG25<=$D$6/2,$BH$25+FG25/($D$6/2)*($D$8-$D$7),$D$8-(FG25-$D$6/2)/($D$6/2)*($D$8-$D$7))) ->  | FI25: =IF(FE25="","",FA25) ->  | FJ25: =IF(FE25="","",FG25) ->  | FK25: =IF(FE25="","",FH25) ->  | FM25: =IF(BL29="","",MAX(FE25:FE44)+1) ->  | FN25: =IF(FM25="","",FF25) ->  | FO25: =IF(FM25="","",$BL29) ->  | FP25: =IF(FE25="","",IF(FO25<=$D$6/2,$BH$25+FO25/($D$6/2)*($D$8-$D$7),$D$8-(FO25-$D$6/2)/($D$6/2)*($D$8-$D$7))) ->  | FQ25: =IF(FM25="","",FI25) ->  | FR25: =IF(FM25="","",FO25) ->  | FS25: =IF(FM25="","",FP25) ->  | FU25: =IF(BL30="","",MAX(FM25:FM44)+1) ->  | FV25: =IF(FU25="","",FN25) ->  | FW25: =IF(FU25="","",$BL30) ->  | FX25: =IF(FM25="","",IF(FW25<=$D$6/2,$BH$25+FW25/($D$6/2)*($D$8-$D$7),$D$8-(FW25-$D$6/2)/($D$6/2)*($D$8-$D$7))) ->  | FY25: =IF(FU25="","",FQ25) ->  | FZ25: =IF(FU25="","",FW25) ->  | GA25: =IF(FU25="","",FX25) ->  | GC25: =IF(BL31="","",MAX(FU25:FU44)+1) ->  | GD25: =IF(GC25="","",FV25) ->  | GE25: =IF(GC25="","",$BL31) ->  | GF25: =IF(FU25="","",IF(GE25<=$D$6/2,$BH$25+GE25/($D$6/2)*($D$8-$D$7),$D$8-(GE25-$D$6/2)/($D$6/2)*($D$8-$D$7))) ->  | GG25: =IF(GC25="","",FY25) ->  | GH25: =IF(GC25="","",GE25) ->  | GI25: =IF(GC25="","",GF25) ->  | GK25: =IF(BL32="","",MAX(GC25:GC44)+1) ->  | GL25: =IF(GK25="","",GD25) ->  | GM25: =IF(GK25="","",$BL32) ->  | GN25: =IF(GC25="","",IF(GM25<=$D$6/2,$BH$25+GM25/($D$6/2)*($D$8-$D$7),$D$8-(GM25-$D$6/2)/($D$6/2)*($D$8-$D$7))) ->  | GO25: =IF(GK25="","",GG25) ->  | GP25: =IF(GK25="","",GM25) ->  | GQ25: =IF(GK25="","",GN25) ->  | GS25: =IF(BL33="","",MAX(GK25:GK44)+1) ->  | GT25: =IF(GS25="","",GL25) ->  | GU25: =IF(GS25="","",$BL33) ->  | GV25: =IF(GK25="","",IF(GU25<=$D$6/2,$BH$25+GU25/($D$6/2)*($D$8-$D$7),$D$8-(GU25-$D$6/2)/($D$6/2)*($D$8-$D$7))) ->  | GW25: =IF(GS25="","",GO25) ->  | GX25: =IF(GS25="","",GU25) ->  | GY25: =IF(GS25="","",GV25) ->  | HA25: =IF(BL34="","",MAX(GS25:GS44)+1) ->  | HB25: =IF(HA25="","",GT25) ->  | HC25: =IF(HA25="","",$BL34) ->  | HD25: =IF(GS25="","",IF(HC25<=$D$6/2,$BH$25+HC25/($D$6/2)*($D$8-$D$7),$D$8-(HC25-$D$6/2)/($D$6/2)*($D$8-$D$7))) ->  | HE25: =IF(HA25="","",GW25) ->  | HF25: =IF(HA25="","",HC25) ->  | HG25: =IF(HA25="","",HD25) -> 
B26: 2 | C26: 8 | D26: =IFERROR(IF(C26="","",C26+D25),"") -> 8 | F26: Yes | G26: Yes | K26: 2 | L26: =O25 -> 0 | M26: =P25 -> 0 | N26: =Q25 -> 5 | O26: =L26 -> 0 | P26: =M26+D6/2 -> 10 | Q26: =$D$8 -> 8 | R26: =H7 -> IPE300 | T26: =-$D$14*C26/2 -> -1.2 | U26: =-$D$15*C26/2 -> -1 | V26: =-$D$16*C26/2 -> -0.4 | W26: =-$D$18*C26/2 -> -2 | X26: =$D$19*C26/2 -> -0.8 | Y26: =Y25 -> 0.8 | Z26: =Z25 -> -0.8 | AB26: =IF(AND(F27="Yes",C27<>""),MAX($AB$25:AB25)+4,"") ->  | AD26: =IF(AB26="","",0) ->  | AE26: =IF(AB26="","",0) ->  | AG26: =IF(AB26="","",0) ->  | AI26: =IF(AB26="","",AB26+1) ->  | AJ26: =AC26 ->  | AK26: =AD26 ->  | AL26: =AH26 ->  | AM26: =AF26 ->  | AN26: =AG26 ->  | AO26: =AE26 ->  | AP26: =IF(AB26="","",AI26+1) ->  | AQ26: =AC26 ->  | AS26: =AE26 ->  | AT26: =AF26 ->  | AU26: =AR26 ->  | AW26: =IF(AB26="","",AP26+1) ->  | AX26: =AJ26 ->  | AY26: =AR26 ->  | AZ26: =AL26 ->  | BA26: =AM26 ->  | BB26: =AR26 ->  | BC26: =AO26 ->  | BE26: =IF(D27="","",BE25+1) -> 38 | BF26: =IF(D27="","",BI25) -> 8 | BG26: =IF(D27="","",BJ25) -> 0 | BH26: =IF(D27="","",BK25) -> 5 | BI26: 16 | BJ26: 0 | BK26: 5 | BL26: =IF(D6>=BL16*11,BL16*11,"") ->  | BM26: =IF(OR(BE26="",BM25=""),"",BM25+1) -> 43 | BN26: 8 | BO26: =IF(BM26="","",BO25) -> 3.333333333 | BP26: =IF(BM26="","",BP25) -> 6 | BQ26: 16 | BR26: =IF(BM26="","",BR25) -> 3.333333333 | BS26: =IF(BM26="","",BS25) -> 6 | BU26: =IF(OR(BM26="",BU25=""),"",BU25+1) -> 48 | BV26: 8 | BW26: =IF(BU26="","",BW25) -> 6.666666667 | BX26: =IF(BU26="","",BX25) -> 7 | BY26: 16 | BZ26: =IF(BU26="","",BZ25) -> 6.666666667 | CA26: =IF(BU26="","",CA25) -> 7 | CC26: =IF(OR(BU26="",CC25=""),"",CC25+1) -> 53 | CD26: 8 | CE26: =IF(CC26="","",CE25) -> 10 | CF26: =IF(CC26="","",CF25) -> 8 | CG26: 16 | CH26: =IF(CC26="","",CH25) -> 10 | CI26: =IF(CC26="","",CI25) -> 8 | CK26: =IF(OR(CC26="",CK25=""),"",CK25+1) -> 58 | CL26: 8 | CM26: =IF(CK26="","",CM25) -> 13.33333333 | CN26: =IF(CK26="","",CN25) -> 7 | CO26: 16 | CP26: =IF(CK26="","",CP25) -> 13.33333333 | CQ26: =IF(CK26="","",CQ25) -> 7 | CS26: =IF(OR(CK26="",CS25=""),"",CS25+1) -> 63 | CT26: 8 | CU26: =IF(CS26="","",CU25) -> 16.66666667 | CV26: =IF(CS26="","",CV25) -> 6 | CW26: 16 | CX26: =IF(CS26="","",CX25) -> 16.66666667 | CY26: =IF(CS26="","",CY25) -> 6 | DA26: =IF(OR(CS26="",DA25=""),"",DA25+1) -> 68 | DB26: 8 | DC26: =IF(DA26="","",DC25) -> 20 | DD26: =IF(DA26="","",DD25) -> 5 | DE26: 16 | DF26: =IF(DA26="","",DF25) -> 20 | DG26: =IF(DA26="","",DG25) -> 5 | DI26: =IF(OR(DA26="",DI25=""),"",DI25+1) ->  | DK26: =IF(DI26="","",DK25) ->  | DL26: =IF(DI26="","",DL25) ->  | DN26: =IF(DI26="","",DN25) ->  | DO26: =IF(DI26="","",DO25) ->  | DQ26: =IF(OR(DI26="",DQ25=""),"",DQ25+1) ->  | DS26: =IF(DQ26="","",DS25) ->  | DT26: =IF(DQ26="","",DT25) ->  | DV26: =IF(DQ26="","",DV25) ->  | DW26: =IF(DQ26="","",DW25) ->  | DY26: =IF(OR(DQ26="",DY25=""),"",DY25+1) ->  | EA26: =IF(DY26="","",EA25) ->  | EB26: =IF(DY26="","",EB25) ->  | ED26: =IF(DY26="","",ED25) ->  | EE26: =IF(DY26="","",EE25) ->  | EG26: =IF(OR(DY26="",EG25=""),"",EG25+1) ->  | EI26: =IF(EG26="","",EI25) ->  | EJ26: =IF(EG26="","",EJ25) ->  | EL26: =IF(EG26="","",EL25) ->  | EM26: =IF(EG26="","",EM25) ->  | EO26: =IF(OR(EG26="",EO25=""),"",EO25+1) ->  | EQ26: =IF(EO26="","",EQ25) ->  | ER26: =IF(EO26="","",ER25) ->  | ET26: =IF(EO26="","",ET25) ->  | EU26: =IF(EO26="","",EU25) ->  | EW26: =IF(OR(EO26="",EW25=""),"",EW25+1) ->  | EY26: =IF(EW26="","",EY25) ->  | EZ26: =IF(EW26="","",EZ25) ->  | FB26: =IF(EW26="","",FB25) ->  | FC26: =IF(EW26="","",FC25) ->  | FE26: =IF(OR(EW26="",FE25=""),"",FE25+1) ->  | FG26: =IF(FE26="","",FG25) ->  | FH26: =IF(FE26="","",FH25) ->  | FJ26: =IF(FE26="","",FJ25) ->  | FK26: =IF(FE26="","",FK25) ->  | FM26: =IF(OR(FE26="",FM25=""),"",FM25+1) ->  | FO26: =IF(FM26="","",FO25) ->  | FP26: =IF(FM26="","",FP25) ->  | FR26: =IF(FM26="","",FR25) ->  | FS26: =IF(FM26="","",FS25) ->  | FU26: =IF(OR(FM26="",FU25=""),"",FU25+1) ->  | FW26: =IF(FU26="","",FW25) ->  | FX26: =IF(FU26="","",FX25) ->  | FZ26: =IF(FU26="","",FZ25) ->  | GA26: =IF(FU26="","",GA25) ->  | GC26: =IF(OR(FU26="",GC25=""),"",GC25+1) ->  | GE26: =IF(GC26="","",GE25) ->  | GF26: =IF(GC26="","",GF25) ->  | GH26: =IF(GC26="","",GH25) ->  | GI26: =IF(GC26="","",GI25) ->  | GK26: =IF(OR(GC26="",GK25=""),"",GK25+1) ->  | GM26: =IF(GK26="","",GM25) ->  | GN26: =IF(GK26="","",GN25) ->  | GP26: =IF(GK26="","",GP25) ->  | GQ26: =IF(GK26="","",GQ25) ->  | GS26: =IF(OR(GK26="",GS25=""),"",GS25+1) ->  | GU26: =IF(GS26="","",GU25) ->  | GV26: =IF(GS26="","",GV25) ->  | GX26: =IF(GS26="","",GX25) ->  | GY26: =IF(GS26="","",GY25) ->  | HA26: =IF(OR(GS26="",HA25=""),"",HA25+1) ->  | HC26: =IF(HA26="","",HC25) ->  | HD26: =IF(HA26="","",HD25) ->  | HF26: =IF(HA26="","",HF25) ->  | HG26: =IF(HA26="","",HG25) -> 
B27: 3 | C27: 8 | D27: =IFERROR(IF(C27="","",C27+D26),"") -> 16 | F27: No | G27: No | K27: 3 | L27: =L26 -> 0 | M27: =P28 -> 20 | N27: =Q28 -> 5 | O27: =L27 -> 0 | P27: =P26 -> 10 | Q27: =Q26 -> 8 | R27: =R26 -> IPE300 | T27: =T26 -> -1.2 | U27: =U26 -> -1 | V27: -0.4 | W27: =-X26 -> 0.8 | X27: =-W26 -> 2 | Y27: =Y26 -> 0.8 | Z27: =Z26 -> -0.8 | AB27: =IF(AND(F28="Yes",C28<>""),MAX($AB$25:AB26)+4,"") -> 29 | AC27: 16 | AD27: 0 | AE27: 0 | AF27: 24 | AG27: 0 | AH27: 5 | AI27: 30 | AJ27: 16 | AK27: 0 | AL27: 5 | AM27: 24 | AN27: 0 | AO27: 0 | AP27: 31 | AQ27: 16 | AR27: 20 | AS27: 0 | AT27: 24 | AU27: 20 | AV27: 5 | AW27: 32 | AX27: 16 | AY27: 20 | AZ27: 5 | BA27: 24 | BB27: 20 | BC27: 0 | BE27: 39 | BF27: 16 | BG27: 0 | BH27: 5 | BI27: 24 | BJ27: 0 | BK27: 5 | BL27: =IF(D6>=BL16*12,BL16*12,"") ->  | BM27: 44 | BN27: 16 | BO27: =IF(BM27="","",BO26) -> 3.333333333 | BP27: =IF(BM27="","",BP26) -> 6 | BQ27: 24 | BR27: =IF(BM27="","",BR26) -> 3.333333333 | BS27: =IF(BM27="","",BS26) -> 6 | BU27: 49 | BV27: 16 | BW27: =IF(BU27="","",BW26) -> 6.666666667 | BX27: =IF(BU27="","",BX26) -> 7 | BY27: 24 | BZ27: =IF(BU27="","",BZ26) -> 6.666666667 | CA27: =IF(BU27="","",CA26) -> 7 | CC27: 54 | CD27: 16 | CE27: =IF(CC27="","",CE26) -> 10 | CF27: =IF(CC27="","",CF26) -> 8 | CG27: 24 | CH27: =IF(CC27="","",CH26) -> 10 | CI27: =IF(CC27="","",CI26) -> 8 | CK27: 59 | CL27: 16 | CM27: =IF(CK27="","",CM26) -> 13.33333333 | CN27: =IF(CK27="","",CN26) -> 7 | CO27: 24 | CP27: =IF(CK27="","",CP26) -> 13.33333333 | CQ27: =IF(CK27="","",CQ26) -> 7 | CS27: 64 | CT27: 16 | CU27: =IF(CS27="","",CU26) -> 16.66666667 | CV27: =IF(CS27="","",CV26) -> 6 | CW27: 24 | CX27: =IF(CS27="","",CX26) -> 16.66666667 | CY27: =IF(CS27="","",CY26) -> 6 | DA27: 69 | DB27: 16 | DC27: =IF(DA27="","",DC26) -> 20 | DD27: =IF(DA27="","",DD26) -> 5 | DE27: 24 | DF27: =IF(DA27="","",DF26) -> 20 | DG27: =IF(DA27="","",DG26) -> 5 | DK27: =IF(DI27="","",DK26) ->  | DL27: =IF(DI27="","",DL26) ->  | DN27: =IF(DI27="","",DN26) ->  | DO27: =IF(DI27="","",DO26) ->  | DS27: =IF(DQ27="","",DS26) ->  | DT27: =IF(DQ27="","",DT26) ->  | DV27: =IF(DQ27="","",DV26) ->  | DW27: =IF(DQ27="","",DW26) ->  | EA27: =IF(DY27="","",EA26) ->  | EB27: =IF(DY27="","",EB26) ->  | ED27: =IF(DY27="","",ED26) ->  | EE27: =IF(DY27="","",EE26) ->  | EI27: =IF(EG27="","",EI26) ->  | EJ27: =IF(EG27="","",EJ26) ->  | EL27: =IF(EG27="","",EL26) ->  | EM27: =IF(EG27="","",EM26) ->  | EQ27: =IF(EO27="","",EQ26) ->  | ER27: =IF(EO27="","",ER26) ->  | ET27: =IF(EO27="","",ET26) ->  | EU27: =IF(EO27="","",EU26) ->  | EY27: =IF(EW27="","",EY26) ->  | EZ27: =IF(EW27="","",EZ26) ->  | FB27: =IF(EW27="","",FB26) ->  | FC27: =IF(EW27="","",FC26) ->  | FG27: =IF(FE27="","",FG26) ->  | FH27: =IF(FE27="","",FH26) ->  | FJ27: =IF(FE27="","",FJ26) ->  | FK27: =IF(FE27="","",FK26) ->  | FO27: =IF(FM27="","",FO26) ->  | FP27: =IF(FM27="","",FP26) ->  | FR27: =IF(FM27="","",FR26) ->  | FS27: =IF(FM27="","",FS26) ->  | FW27: =IF(FU27="","",FW26) ->  | FX27: =IF(FU27="","",FX26) ->  | FZ27: =IF(FU27="","",FZ26) ->  | GA27: =IF(FU27="","",GA26) ->  | GE27: =IF(GC27="","",GE26) ->  | GF27: =IF(GC27="","",GF26) ->  | GH27: =IF(GC27="","",GH26) ->  | GI27: =IF(GC27="","",GI26) ->  | GM27: =IF(GK27="","",GM26) ->  | GN27: =IF(GK27="","",GN26) ->  | GP27: =IF(GK27="","",GP26) ->  | GQ27: =IF(GK27="","",GQ26) ->  | GU27: =IF(GS27="","",GU26) ->  | GV27: =IF(GS27="","",GV26) ->  | GX27: =IF(GS27="","",GX26) ->  | GY27: =IF(GS27="","",GY26) ->  | HC27: =IF(HA27="","",HC26) ->  | HD27: =IF(HA27="","",HD26) ->  | HF27: =IF(HA27="","",HF26) ->  | HG27: =IF(HA27="","",HG26) -> 
B28: 4 | C28: 8 | D28: 24 | F28: Yes | G28: No | K28: 4 | L28: =L27 -> 0 | M28: =D6 -> 20 | N28: =N25 -> 0 | O28: =L28 -> 0 | P28: =D6 -> 20 | Q28: =D7 -> 5 | R28: =H8 -> IPE400 | T28: =T25 -> 0 | U28: =U25 -> 0 | V28: 0 | W28: =-X25 -> 2 | X28: =-W25 -> -2.8 | Y28: 0.8 | Z28: -0.8 | AB28: =IF(AND(F29="Yes",C29<>""),MAX($AB$25:AB27)+4,"") ->  | BE28: 40 | BF28: 24 | BG28: 0 | BH28: 5 | BI28: 32 | BJ28: 0 | BK28: 5 | BL28: =IF(D6>=BL16*13,BL16*13,"") ->  | BM28: 45 | BN28: 24 | BO28: 3.333333333 | BP28: 6 | BQ28: 32 | BR28: 3.333333333 | BS28: 6 | BU28: 50 | BV28: 24 | BW28: 6.666666667 | BX28: 7 | BY28: 32 | BZ28: 6.666666667 | CA28: 7 | CC28: 55 | CD28: 24 | CE28: 10 | CF28: 8 | CG28: 32 | CH28: 10 | CI28: 8 | CK28: 60 | CL28: 24 | CM28: 13.33333333 | CN28: 7 | CO28: 32 | CP28: 13.33333333 | CQ28: 7 | CS28: 65 | CT28: 24 | CU28: 16.66666667 | CV28: 6 | CW28: 32 | CX28: 16.66666667 | CY28: 6 | DA28: 70 | DB28: 24 | DC28: 20 | DD28: 5 | DE28: 32 | DF28: 20 | DG28: 5
B29: 5 | C29: 8 | D29: 32 | F29: No | G29: No | K29: 5 | L29: =L25+D26 -> 8 | M29: =M25 -> 0 | N29: =N25 -> 0 | O29: =O25+D26 -> 8 | P29: =P25 -> 0 | Q29: =Q25 -> 5 | R29: =R25 -> IPE400 | T29: 0 | U29: 0 | V29: 0 | W29: =$D$17*(C26+C27)/2 -> 5.6 | X29: =-$D$20*(C26+C27)/2 -> -4 | Y29: =$D$21*(C26+C27)/2 -> 1.6 | Z29: =-Y29 -> -1.6 | AB29: =IF(AND(F30="Yes",C30<>""),MAX($AB$25:AB28)+4,"") -> 33 | AC29: 32 | AD29: 0 | AE29: 0 | AF29: 40 | AG29: 0 | AH29: 5 | AI29: 34 | AJ29: 32 | AK29: 0 | AL29: 5 | AM29: 40 | AN29: 0 | AO29: 0 | AP29: 35 | AQ29: 32 | AR29: 20 | AS29: 0 | AT29: 40 | AU29: 20 | AV29: 5 | AW29: 36 | AX29: 32 | AY29: 20 | AZ29: 5 | BA29: 40 | BB29: 20 | BC29: 0 | BE29: 41 | BF29: 32 | BG29: 0 | BH29: 5 | BI29: 40 | BJ29: 0 | BK29: 5 | BL29: =IF(D6>=BL16*14,BL16*14,"") ->  | BM29: 46 | BN29: 32 | BO29: 3.333333333 | BP29: 6 | BQ29: 40 | BR29: 3.333333333 | BS29: 6 | BU29: 51 | BV29: 32 | BW29: 6.666666667 | BX29: 7 | BY29: 40 | BZ29: 6.666666667 | CA29: 7 | CC29: 56 | CD29: 32 | CE29: 10 | CF29: 8 | CG29: 40 | CH29: 10 | CI29: 8 | CK29: 61 | CL29: 32 | CM29: 13.33333333 | CN29: 7 | CO29: 40 | CP29: 13.33333333 | CQ29: 7 | CS29: 66 | CT29: 32 | CU29: 16.66666667 | CV29: 6 | CW29: 40 | CX29: 16.66666667 | CY29: 6 | DA29: 71 | DB29: 32 | DC29: 20 | DD29: 5 | DE29: 40 | DF29: 20 | DG29: 5
B30: 6 | C30: 8 | D30: 40 | F30: Yes | G30: Yes | K30: 6 | L30: =L29 -> 8 | M30: =M26 -> 0 | N30: 5 | O30: =O29 -> 8 | P30: =P26 -> 10 | Q30: 8 | R30: =R26 -> IPE300 | T30: =-$D$14*(C26+C27)/2 -> -2.4 | U30: =-$D$15*(C26+C27)/2 -> -2 | V30: =-$D$16*(C26+C27)/2 -> -0.8 | W30: =-$D$18*(C26+C27)/2 -> -4 | X30: =$D$19*(C26+C27)/2 -> -1.6 | Y30: =Y29 -> 1.6 | Z30: =Z29 -> -1.6 | AB30: =IF(AND(F31="Yes",C31<>""),MAX($AB$25:AB29)+4,"") ->  | AD30: =IF(AB30="","",0) ->  | AE30: =IF(AB30="","",0) ->  | AG30: =IF(AB30="","",0) ->  | AI30: =IF(AB30="","",AB30+1) ->  | AJ30: =AC30 ->  | AK30: =AD30 ->  | AL30: =AH30 ->  | AM30: =AF30 ->  | AN30: =AG30 ->  | AO30: =AE30 ->  | AP30: =IF(AB30="","",AI30+1) ->  | AQ30: =AC30 ->  | AS30: =AE30 ->  | AT30: =AF30 ->  | AU30: =AR30 ->  | AV30: =AH30 ->  | AW30: =IF(AB30="","",AP30+1) ->  | AX30: =AJ30 ->  | AY30: =AR30 ->  | AZ30: =AL30 ->  | BA30: =AM30 ->  | BB30: =AR30 ->  | BC30: =AO30 ->  | BL30: =IF(D6>=BL16*15,BL16*15,"") -> 
F31: No | G31: No | K31: 7 | L31: =L29 -> 8 | M31: =M27 -> 20 | N31: =N27 -> 5 | O31: =O29 -> 8 | P31: =P27 -> 10 | Q31: 8 | R31: =R27 -> IPE300 | T31: =T30 -> -2.4 | U31: =U30 -> -2 | V31: =V30 -> -0.8 | W31: =-X30 -> 1.6 | X31: =-W30 -> 4 | Y31: =Y30 -> 1.6 | Z31: =Z30 -> -1.6 | AB31: =IF(AND(F32="Yes",C32<>""),MAX($AB$25:AB30)+4,"") ->  | BL31: =IF(D6>=BL16*16,BL16*16,"") -> 
F32: No | G32: No | K32: 8 | L32: =L29 -> 8 | M32: =M28 -> 20 | N32: 0 | O32: =O29 -> 8 | P32: =P28 -> 20 | Q32: 5 | R32: =R28 -> IPE400 | T32: =T29 -> 0 | U32: =U29 -> 0 | V32: 0 | W32: =-X29 -> 4 | X32: =-W29 -> -5.6 | Y32: 1.6 | Z32: -1.6 | AB32: =IF(AND(F33="Yes",C33<>""),MAX($AB$25:AB31)+4,"") ->  | BL32: =IF(D6>=BL16*17,BL16*17,"") -> 
F33: No | G33: No | K33: 9 | L33: =D27 -> 16 | M33: =M25 -> 0 | N33: =N25 -> 0 | O33: =D27 -> 16 | P33: =P25 -> 0 | Q33: =Q25 -> 5 | R33: IPE400 | T33: 0 | U33: 0 | V33: 0 | W33: =$D$17*(C27+C28)/2 -> 5.6 | X33: =-$D$20*(C27+C28)/2 -> -4 | Y33: =$D$21*(C27+C28)/2 -> 1.6 | Z33: =-Y33 -> -1.6 | AB33: =IF(AND(F34="Yes",C34<>""),MAX($AB$25:AB32)+4,"") ->  | BL33: =IF(D6>=BL16*18,BL16*18,"") -> 
F34: No | G34: No | K34: 10 | L34: =L33 -> 16 | M34: =M26 -> 0 | N34: 5 | O34: =O33 -> 16 | P34: =P26 -> 10 | Q34: 8 | R34: IPE300 | T34: =-$D$14*(C27+C28)/2 -> -2.4 | U34: =-$D$15*(C27+C28)/2 -> -2 | V34: =-$D$16*(C27+C28)/2 -> -0.8 | W34: =-$D$18*(C27+C28)/2 -> -4 | X34: =$D$19*(C27+C28)/2 -> -1.6 | Y34: =Y33 -> 1.6 | Z34: =-Y34 -> -1.6 | AB34: =IF(AND(F35="Yes",C35<>""),MAX($AB$25:AB33)+4,"") -> 
F35: No | G35: No | K35: 11 | L35: =L33 -> 16 | M35: =M27 -> 20 | N35: 5 | O35: =O33 -> 16 | P35: =P27 -> 10 | Q35: 8 | R35: IPE300 | T35: =T34 -> -2.4 | U35: =U34 -> -2 | V35: =V34 -> -0.8 | W35: =-X34 -> 1.6 | X35: =-W34 -> 4 | Y35: =Y34 -> 1.6 | Z35: =Z34 -> -1.6 | AB35: =IF(AND(F36="Yes",C36<>""),MAX($AB$25:AB34)+4,"") ->  | AD35: =IF(AB35="","",0) ->  | AE35: =IF(AB35="","",0) ->  | AG35: =IF(AB35="","",0) ->  | AI35: =IF(AB35="","",AB35+1) ->  | AJ35: =AC35 ->  | AK35: =AD35 ->  | AL35: =AH35 ->  | AM35: =AF35 ->  | AN35: =AG35 ->  | AO35: =AE35 ->  | AP35: =IF(AB35="","",AI35+1) ->  | AQ35: =AC35 ->  | AS35: =AE35 ->  | AT35: =AF35 ->  | AU35: =AR35 ->  | AV35: =AH35 ->  | AW35: =IF(AB35="","",AP35+1) ->  | AX35: =AJ35 ->  | AY35: =AR35 ->  | AZ35: =AL35 ->  | BA35: =AM35 ->  | BB35: =AR35 ->  | BC35: =AO35 -> 
F36: No | G36: No | K36: 12 | L36: =L33 -> 16 | M36: =M28 -> 20 | N36: 0 | O36: =O33 -> 16 | P36: =P28 -> 20 | Q36: 5 | R36: IPE400 | T36: =T33 -> 0 | U36: =U33 -> 0 | V36: 0 | W36: =-X33 -> 4 | X36: =-W33 -> -5.6 | Y36: =Y33 -> 1.6 | Z36: -1.6 | AB36: =IF(AND(F37="Yes",C37<>""),MAX($AB$25:AB35)+4,"") -> 
F37: No | G37: No | K37: 13 | L37: =D28 -> 24 | M37: =M25 -> 0 | N37: =N25 -> 0 | O37: =D28 -> 24 | P37: =P25 -> 0 | Q37: =Q25 -> 5 | R37: =R25 -> IPE400 | T37: 0 | U37: 0 | V37: 0 | W37: =$D$17*(C28+C29)/2 -> 5.6 | X37: =-$D$20*(C28+C29)/2 -> -4 | Y37: =$D$21*(C28+C29)/2 -> 1.6 | Z37: =-Y37 -> -1.6 | AB37: =IF(AND(F38="Yes",C38<>""),MAX($AB$25:AB36)+4,"") -> 
F38: No | G38: No | K38: 14 | L38: =L37 -> 24 | M38: =M26 -> 0 | N38: 5 | O38: =O37 -> 24 | P38: =P26 -> 10 | Q38: 8 | R38: IPE300 | T38: =-$D$14*(C28+C29)/2 -> -2.4 | U38: =-$D$15*(C28+C29)/2 -> -2 | V38: =-$D$16*(C28+C29)/2 -> -0.8 | W38: =-$D$18*(C28+C29)/2 -> -4 | X38: =$D$19*(C28+C29)/2 -> -1.6 | Y38: =Y37 -> 1.6 | Z38: =-Y38 -> -1.6 | AB38: =IF(AND(F39="Yes",C39<>""),MAX($AB$25:AB37)+4,"") -> 
F39: No | G39: No | K39: 15 | L39: =L37 -> 24 | M39: =M27 -> 20 | N39: 5 | O39: =O38 -> 24 | P39: =P27 -> 10 | Q39: 8 | R39: IPE300 | T39: =T38 -> -2.4 | U39: =U38 -> -2 | V39: =V38 -> -0.8 | W39: =-X38 -> 1.6 | X39: =-W38 -> 4 | Y39: =Y38 -> 1.6 | Z39: =Z38 -> -1.6 | AB39: =IF(AND(F40="Yes",C40<>""),MAX($AB$25:AB38)+4,"") -> 
F40: No | G40: No | K40: 16 | L40: =L37 -> 24 | M40: =M28 -> 20 | N40: =N28 -> 0 | O40: =O39 -> 24 | P40: =P28 -> 20 | Q40: =Q28 -> 5 | R40: IPE400 | T40: =T37 -> 0 | U40: =U37 -> 0 | V40: 0 | W40: =-X37 -> 4 | X40: =-W37 -> -5.6 | Y40: =Y37 -> 1.6 | Z40: -1.6 | AB40: =IF(AND(F41="Yes",C41<>""),MAX($AB$25:AB39)+4,"") -> 
F41: No | G41: No | K41: 17 | L41: =D29 -> 32 | M41: =M25 -> 0 | N41: =N25 -> 0 | O41: =D29 -> 32 | P41: =P25 -> 0 | Q41: =Q25 -> 5 | R41: =R25 -> IPE400 | T41: 0 | U41: 0 | V41: 0 | W41: =$D$17*(C29+C30)/2 -> 5.6 | X41: =-$D$20*(C29+C30)/2 -> -4 | Y41: =$D$21*(C29+C30)/2 -> 1.6 | Z41: =-Y41 -> -1.6 | AB41: =IF(AND(F42="Yes",C42<>""),MAX($AB$25:AB40)+4,"") -> 
F42: No | G42: No | K42: 18 | L42: =L41 -> 32 | M42: =M26 -> 0 | N42: 5 | O42: =O41 -> 32 | P42: =P26 -> 10 | Q42: 8 | R42: IPE300 | T42: =-$D$14*(C29+C30)/2 -> -2.4 | U42: =-$D$15*(C29+C30)/2 -> -2 | V42: =-$D$16*(C29+C30)/2 -> -0.8 | W42: =-$D$18*(C29+C30)/2 -> -4 | X42: =$D$19*(C29+C30)/2 -> -1.6 | Y42: =Y41 -> 1.6 | Z42: =-Y42 -> -1.6 | AB42: =IF(AND(F43="Yes",C43<>""),MAX($AB$25:AB41)+4,"") ->  | DC42: =IF(DA42="","",DC41) ->  | DD42: =IF(DA42="","",DD41) ->  | DF42: =IF(DA42="","",DF41) ->  | DG42: =IF(DA42="","",DG41) -> 
F43: No | G43: No | K43: 19 | L43: =L41 -> 32 | M43: =M27 -> 20 | N43: 5 | O43: =O42 -> 32 | P43: =P27 -> 10 | Q43: 8 | R43: IPE300 | T43: =T42 -> -2.4 | U43: =U42 -> -2 | V43: =V42 -> -0.8 | W43: =-X42 -> 1.6 | X43: =-W42 -> 4 | Y43: =Y42 -> 1.6 | Z43: =Z42 -> -1.6 | AB43: =IF(AND(F44="Yes",C44<>""),MAX($AB$25:AB42)+4,"") ->  | DC43: =IF(DA43="","",DC42) ->  | DD43: =IF(DA43="","",DD42) ->  | DF43: =IF(DA43="","",DF42) ->  | DG43: =IF(DA43="","",DG42) ->  | GU43: =IF(GS43="","",GU42) ->  | GV43: =IF(GS43="","",GV42) ->  | GX43: =IF(GS43="","",GX42) ->  | GY43: =IF(GS43="","",GY42) -> 
F44: No | G44: No | K44: 20 | L44: =L41 -> 32 | M44: =M28 -> 20 | N44: 0 | O44: =O43 -> 32 | P44: =P28 -> 20 | Q44: 5 | R44: IPE400 | T44: =T41 -> 0 | U44: =U41 -> 0 | V44: 0 | W44: =-X41 -> 4 | X44: =-W41 -> -5.6 | Y44: =Y41 -> 1.6 | Z44: -1.6 | AB44: =IF(AND(F45="Yes",C45<>""),MAX($AB$25:AB43)+4,"") ->  | AF44: =IF(AB44="","",E45) ->  | BE44: =IF(E45="","",BE43+1) ->  | BF44: =IF(E45="","",BI43) ->  | BG44: =IF(E45="","",BJ43) ->  | BH44: =IF(E45="","",BK43) ->  | BI44: =IF(E45="","",E45) ->  | BJ44: =IF(E45="","",BG44) ->  | BK44: =IF(E45="","",BH44) ->  | CE44: =IF(CC44="","",CE43) ->  | CF44: =IF(CC44="","",CF43) ->  | CH44: =IF(CC44="","",CH43) ->  | CI44: =IF(CC44="","",CI43) ->  | CM44: =IF(CK44="","",CM43) ->  | CN44: =IF(CK44="","",CN43) ->  | CP44: =IF(CK44="","",CP43) ->  | CQ44: =IF(CK44="","",CQ43) ->  | GU44: =IF(GS44="","",GU43) ->  | GV44: =IF(GS44="","",GV43) ->  | GX44: =IF(GS44="","",GX43) ->  | GY44: =IF(GS44="","",GY43) -> 
K45: 21 | L45: =D30 -> 40 | M45: =M25 -> 0 | N45: =N25 -> 0 | O45: =D30 -> 40 | P45: =P25 -> 0 | Q45: =Q25 -> 5 | R45: =R25 -> IPE400 | T45: 0 | U45: 0 | V45: 0 | W45: =$D$17*(C30+C31)/2 -> 2.8 | X45: =-$D$20*(C30+C31)/2 -> -2 | Y45: =$D$21*(C30+C31)/2 -> 0.8 | Z45: =-Y45 -> -0.8 | AB45: =IF(AND(G46="Yes",D46<>""),MAX($AB$25:AB44)+4,"") -> 
K46: 22 | L46: =L45 -> 40 | M46: =M26 -> 0 | N46: 5 | O46: =O45 -> 40 | P46: =P26 -> 10 | Q46: 8 | R46: IPE300 | T46: =-$D$14*(C30+C31)/2 -> -1.2 | U46: =-$D$15*(C30+C31)/2 -> -1 | V46: =-$D$16*(C30+C31)/2 -> -0.4 | W46: =-$D$18*(C30+C31)/2 -> -2 | X46: =$D$19*(C30+C31)/2 -> -0.8 | Y46: =Y45 -> 0.8 | Z46: =-Y46 -> -0.8 | AB46: =IF(AND(G47="Yes",D47<>""),MAX($AB$25:AB45)+4,"") -> 
K47: 23 | L47: =L45 -> 40 | M47: =M27 -> 20 | N47: 5 | O47: =O46 -> 40 | P47: =P27 -> 10 | Q47: 8 | R47: IPE300 | T47: =T46 -> -1.2 | U47: =U46 -> -1 | V47: =V46 -> -0.4 | W47: =-X46 -> 0.8 | X47: =-W46 -> 2 | Y47: =Y46 -> 0.8 | Z47: =Z46 -> -0.8 | AB47: =IF(AND(G48="Yes",D48<>""),MAX($AB$25:AB46)+4,"") ->  | BE47: =MAX(HA25:HA44,GS25:GS44,GK25:GK44,GC25:GC44,FU25:FU44,FM25:FM44,FE25:FE44,EW25:EW44,EO25:EO44,EG25:EG44,DY25:DY44,DQ25:DQ44,DI25:DI44,DA25:DA44,CS25:CS44,CK25:CK44,CC25:CC44,BU25:BU44,BM25:BM44) -> 71 | BM47: =MAX(BE47,BE50:BE87) -> 83 | BU47: =MAX(BM47,BM50:BM87) -> 83 | CC47: =MAX(BU47,BU50:BU87) -> 83 | CK47: =MAX(CC47,CC50:CC87) -> 83 | CS47: =MAX(CK47,CK50:CK87) -> 95 | DA47: =MAX(CS47,CS50:CS87) -> 95 | DI47: =MAX(DA47,DA50:DA87) -> 95 | DQ47: =MAX(DI47,DI50:DI87) -> 95 | DY47: =MAX(DQ47,DQ50:DQ87) -> 95 | EG47: =MAX(DY47,DY50:DY87) -> 95 | EO47: =MAX(EG47,EG50:EG87) -> 95 | EW47: =MAX(EO47,EO50:EO87) -> 95 | FE47: =MAX(EW47,EW50:EW87) -> 95 | FM47: =MAX(FE47,FE50:FE87) -> 95 | FU47: =MAX(FM47,FM50:FM87) -> 95 | GC47: =MAX(FU47,FU50:FU87) -> 95 | GK47: =MAX(GC47,GC50:GC87) -> 95 | GS47: =MAX(GK47,GK50:GK87) -> 95
K48: 24 | L48: =L45 -> 40 | M48: =M28 -> 20 | N48: 0 | O48: =O47 -> 40 | P48: =P28 -> 20 | Q48: 5 | R48: IPE400 | T48: =T45 -> 0 | U48: =U45 -> 0 | V48: 0 | W48: =-X45 -> 2 | X48: =-W45 -> -2.8 | Y48: =Y45 -> 0.8 | Z48: -0.8 | AB48: =IF(AND(G49="Yes",D49<>""),MAX($AB$25:AB47)+4,"") ->  | BE48: Roof brace | BM48: Roof brace | BU48: Roof brace | CC48: Roof brace | CK48: Roof brace | CS48: Roof brace | DA48: Roof brace | DI48: Roof brace | DQ48: Roof brace | DY48: Roof brace | EG48: Roof brace | EO48: Roof brace | EW48: Roof brace | FE48: Roof brace | FM48: Roof brace | FU48: Roof brace | GC48: Roof brace | GK48: Roof brace | GS48: Roof brace
K49: 25 | L49: =D31 ->  | M49: =M25 -> 0 | N49: =N25 -> 0 | O49: =D31 ->  | P49: =P25 -> 0 | Q49: =Q25 -> 5 | R49: =R25 -> IPE400 | T49: 0 | U49: 0 | V49: 0 | W49: =$D$17*(C31+C32)/2 -> 0 | X49: =-$D$20*(C31+C32)/2 -> 0 | Y49: =$D$21*(C31+C32)/2 -> 0 | Z49: =-Y49 -> 0 | AB49: =IF(AND(G50="Yes",D50<>""),MAX($AB$25:AB48)+4,"") ->  | BE49: number | BF49: x1 | BG49: y1 | BH49: z1 | BI49: x2 | BJ49: y2 | BK49: z2 | BM49: number | BN49: x1 | BO49: y1 | BP49: z1 | BQ49: x2 | BR49: y2 | BS49: z2 | BU49: number | BV49: x1 | BW49: y1 | BX49: z1 | BY49: x2 | BZ49: y2 | CA49: z2 | CC49: number | CD49: x1 | CE49: y1 | CF49: z1 | CG49: x2 | CH49: y2 | CI49: z2 | CK49: number | CL49: x1 | CM49: y1 | CN49: z1 | CO49: x2 | CP49: y2 | CQ49: z2 | CS49: number | CT49: x1 | CU49: y1 | CV49: z1 | CW49: x2 | CX49: y2 | CY49: z2 | DA49: number | DB49: x1 | DC49: y1 | DD49: z1 | DE49: x2 | DF49: y2 | DG49: z2 | DI49: number | DJ49: x1 | DK49: y1 | DL49: z1 | DM49: x2 | DN49: y2 | DO49: z2 | DQ49: number | DR49: x1 | DS49: y1 | DT49: z1 | DU49: x2 | DV49: y2 | DW49: z2 | DY49: number | DZ49: x1 | EA49: y1 | EB49: z1 | EC49: x2 | ED49: y2 | EE49: z2 | EG49: number | EH49: x1 | EI49: y1 | EJ49: z1 | EK49: x2 | EL49: y2 | EM49: z2 | EO49: number | EP49: x1 | EQ49: y1 | ER49: z1 | ES49: x2 | ET49: y2 | EU49: z2 | EW49: number | EX49: x1 | EY49: y1 | EZ49: z1 | FA49: x2 | FB49: y2 | FC49: z2 | FE49: number | FF49: x1 | FG49: y1 | FH49: z1 | FI49: x2 | FJ49: y2 | FK49: z2 | FM49: number | FN49: x1 | FO49: y1 | FP49: z1 | FQ49: x2 | FR49: y2 | FS49: z2 | FU49: number | FV49: x1 | FW49: y1 | FX49: z1 | FY49: x2 | FZ49: y2 | GA49: z2 | GC49: number | GD49: x1 | GE49: y1 | GF49: z1 | GG49: x2 | GH49: y2 | GI49: z2 | GK49: number | GL49: x1 | GM49: y1 | GN49: z1 | GO49: x2 | GP49: y2 | GQ49: z2 | GS49: number | GT49: x1 | GU49: y1 | GV49: z1 | GW49: x2 | GX49: y2 | GY49: z2
K50: 26 | L50: =L49 ->  | M50: =M26 -> 0 | N50: 5 | O50: =O49 ->  | P50: =P26 -> 10 | Q50: 8 | R50: IPE300 | T50: =-$D$14*(C31+C32)/2 -> 0 | U50: =-$D$15*(C31+C32)/2 -> 0 | V50: =-$D$16*(C31+C32)/2 -> 0 | W50: =-$D$18*(C31+C32)/2 -> 0 | X50: =$D$19*(C31+C32)/2 -> 0 | Y50: =Y49 -> 0 | Z50: =-Y50 -> 0 | AB50: =IF(AND(G51="Yes",D51<>""),MAX($AB$25:AB49)+4,"") ->  | BE50: =IF(AND($G$26="Yes",BG50<>"",BJ50<>""),BE47+1,"") -> 72 | BF50: 0 | BG50: 0 | BH50: =$D$7 -> 5 | BI50: =D26 -> 8 | BJ50: =BL16 -> 3.333333333 | BK50: =BP25 -> 6 | BM50: =IF(AND($G$27="Yes",BO50<>"",BR50<>""),BM47+1,"") ->  | BN50: =$D$26 -> 8 | BO50: =BG50 -> 0 | BP50: =BH50 -> 5 | BQ50: =$D$27 -> 16 | BR50: =BJ50 -> 3.333333333 | BS50: =BK50 -> 6 | BU50: =IF(AND($G$28="Yes",BW50<>"",BZ50<>""),BU47+1,"") ->  | BV50: =D27 -> 16 | BW50: =BO50 -> 0 | BX50: =BP50 -> 5 | BY50: =D28 -> 24 | BZ50: =BR50 -> 3.333333333 | CA50: =BS50 -> 6 | CC50: =IF(AND($G$29="Yes",CE50<>"",CH50<>""),CC47+1,"") ->  | CD50: =D28 -> 24 | CE50: =BW50 -> 0 | CF50: =BX50 -> 5 | CG50: =D29 -> 32 | CH50: =BZ50 -> 3.333333333 | CI50: =CA50 -> 6 | CK50: =IF(AND($G$30="Yes",CM50<>"",CP50<>""),CK47+1,"") -> 84 | CL50: =D29 -> 32 | CM50: =CE50 -> 0 | CN50: =CF50 -> 5 | CO50: =D30 -> 40 | CP50: =CH50 -> 3.333333333 | CQ50: =CI50 -> 6 | CS50: =IF(AND($G$31="Yes",CU50<>"",CX50<>""),CS47+1,"") ->  | CT50: =D30 -> 40 | CU50: =CM50 -> 0 | CV50: =CN50 -> 5 | CW50: =D31 ->  | CX50: =CP50 -> 3.333333333 | CY50: =CQ50 -> 6 | DA50: =IF(AND($G$32="Yes",DC50<>"",DF50<>""),DA47+1,"") ->  | DB50: =D31 ->  | DC50: =CU50 -> 0 | DD50: =CV50 -> 5 | DE50: =D32 ->  | DF50: =CX50 -> 3.333333333 | DG50: =CY50 -> 6 | DI50: =IF(AND($G$33="Yes",DK50<>"",DN50<>""),DI47+1,"") ->  | DJ50: =D32 ->  | DK50: =DC50 -> 0 | DL50: =DD50 -> 5 | DM50: =D33 ->  | DN50: =DF50 -> 3.333333333 | DO50: =DG50 -> 6 | DQ50: =IF(AND($G$34="Yes",DS50<>"",DV50<>""),DQ47+1,"") ->  | DR50: =D33 ->  | DS50: =DK50 -> 0 | DT50: =DL50 -> 5 | DU50: =D34 ->  | DV50: =DN50 -> 3.333333333 | DW50: =DO50 -> 6 | DY50: =IF(AND($G$35="Yes",EA50<>"",ED50<>""),DY47+1,"") ->  | DZ50: =D34 ->  | EA50: =DS50 -> 0 | EB50: =DT50 -> 5 | EC50: =D35 ->  | ED50: =DV50 -> 3.333333333 | EE50: =DW50 -> 6 | EG50: =IF(AND($G$36="Yes",EI50<>"",EL50<>""),EG47+1,"") ->  | EH50: =D35 ->  | EI50: =EA50 -> 0 | EJ50: =EB50 -> 5 | EK50: =D36 ->  | EL50: =ED50 -> 3.333333333 | EM50: =EE50 -> 6 | EO50: =IF(AND($G$37="Yes",EQ50<>"",ET50<>""),EO47+1,"") ->  | EP50: =D36 ->  | EQ50: =EI50 -> 0 | ER50: =EJ50 -> 5 | ES50: =D37 ->  | ET50: =EL50 -> 3.333333333 | EU50: =EM50 -> 6 | EW50: =IF(AND($G$38="Yes",EY50<>"",FB50<>""),EW47+1,"") ->  | EX50: =D37 ->  | EY50: =EQ50 -> 0 | EZ50: =ER50 -> 5 | FA50: =D38 ->  | FB50: =ET50 -> 3.333333333 | FC50: =EU50 -> 6 | FE50: =IF(AND($G$39="Yes",FG50<>"",FJ50<>""),FE47+1,"") ->  | FF50: =D38 ->  | FG50: =EY50 -> 0 | FH50: =EZ50 -> 5 | FI50: =D39 ->  | FJ50: =FB50 -> 3.333333333 | FK50: =FC50 -> 6 | FM50: =IF(AND($G$40="Yes",FO50<>"",FR50<>""),FM47+1,"") ->  | FN50: =D39 ->  | FO50: =FG50 -> 0 | FP50: =FH50 -> 5 | FQ50: =D40 ->  | FR50: =FJ50 -> 3.333333333 | FS50: =FK50 -> 6 | FU50: =IF(AND($G$41="Yes",FW50<>"",FZ50<>""),FU47+1,"") ->  | FV50: =D40 ->  | FW50: =FO50 -> 0 | FX50: =FP50 -> 5 | FY50: =D41 ->  | FZ50: =FR50 -> 3.333333333 | GA50: =FS50 -> 6 | GC50: =IF(AND($G$42="Yes",GE50<>"",GH50<>""),GC47+1,"") ->  | GD50: =D41 ->  | GE50: =FW50 -> 0 | GF50: =FX50 -> 5 | GG50: =D42 ->  | GH50: =FZ50 -> 3.333333333 | GI50: =GA50 -> 6 | GK50: =IF(AND($G$43="Yes",GM50<>"",GP50<>""),GK47+1,"") ->  | GL50: =D42 ->  | GM50: =GE50 -> 0 | GN50: =GF50 -> 5 | GO50: =D43 ->  | GP50: =GH50 -> 3.333333333 | GQ50: =GI50 -> 6 | GS50: =IF(AND($G$44="Yes",GU50<>"",GX50<>""),GS47+1,"") ->  | GT50: =D43 ->  | GU50: =GM50 -> 0 | GV50: =GN50 -> 5 | GW50: =D44 ->  | GX50: =GP50 -> 3.333333333 | GY50: =GQ50 -> 6
K51: 27 | L51: =L49 ->  | M51: =M27 -> 20 | N51: 5 | O51: =O50 ->  | P51: =P27 -> 10 | Q51: 8 | R51: IPE300 | T51: =T50 -> 0 | U51: =U50 -> 0 | V51: =V50 -> 0 | W51: =-X50 -> 0 | X51: =-W50 -> 0 | Y51: =Y50 -> 0 | Z51: =Z50 -> 0 | AB51: =IF(AND(G52="Yes",D52<>""),MAX($AB$25:AB50)+4,"") ->  | BE51: =IF(AND($G$26="Yes",BG51<>"",BJ51<>""),BE50+1,"") -> 73 | BF51: =BF50 -> 0 | BG51: =BJ50 -> 3.333333333 | BH51: =BK50 -> 6 | BI51: =BI50 -> 8 | BJ51: =BG50 -> 0 | BK51: =BH50 -> 5 | BM51: =IF(AND($G$27="Yes",BO51<>"",BR51<>""),BM50+1,"") ->  | BN51: 8 | BO51: 3.333333333 | BP51: 6 | BQ51: 16 | BR51: 0 | BS51: 5 | BU51: =IF(AND($G$28="Yes",BW51<>"",BZ51<>""),BU50+1,"") ->  | BV51: =BV50 -> 16 | BW51: 3.333333333 | BX51: 6 | BY51: =BY50 -> 24 | BZ51: 0 | CA51: 5 | CC51: =IF(AND($G$29="Yes",CE51<>"",CH51<>""),CC50+1,"") ->  | CD51: =CD50 -> 24 | CE51: 3.333333333 | CF51: 6 | CG51: =CG50 -> 32 | CH51: 0 | CI51: 5 | CK51: =IF(AND($G$30="Yes",CM51<>"",CP51<>""),CK50+1,"") -> 85 | CL51: =CL50 -> 32 | CM51: 3.333333333 | CN51: 6 | CO51: =CO50 -> 40 | CP51: 0 | CQ51: 5 | CS51: =IF(AND($G$31="Yes",CU51<>"",CX51<>""),CS50+1,"") ->  | CT51: =CT50 -> 40 | CU51: 3.333333333 | CV51: 6 | CW51: =CW50 ->  | CX51: 0 | CY51: 5 | DA51: =IF(AND($G$32="Yes",DC51<>"",DF51<>""),DA50+1,"") ->  | DB51: =DB50 ->  | DC51: 3.333333333 | DD51: 6 | DE51: =DE50 ->  | DF51: 0 | DG51: 5 | DI51: =IF(AND($G$33="Yes",DK51<>"",DN51<>""),DI50+1,"") ->  | DJ51: =DJ50 ->  | DK51: 3.333333333 | DL51: 6 | DM51: =DM50 ->  | DN51: 0 | DO51: 5 | DQ51: =IF(AND($G$34="Yes",DS51<>"",DV51<>""),DQ50+1,"") ->  | DR51: =DR50 ->  | DS51: 3.333333333 | DT51: 6 | DU51: =DU50 ->  | DV51: 0 | DW51: 5 | DY51: =IF(AND($G$35="Yes",EA51<>"",ED51<>""),DY50+1,"") ->  | DZ51: =DZ50 ->  | EA51: 3.333333333 | EB51: 6 | EC51: =EC50 ->  | ED51: 0 | EE51: 5 | EG51: =IF(AND($G$36="Yes",EI51<>"",EL51<>""),EG50+1,"") ->  | EH51: =EH50 ->  | EI51: 3.333333333 | EJ51: 6 | EK51: =EK50 ->  | EL51: 0 | EM51: 5 | EO51: =IF(AND($G$37="Yes",EQ51<>"",ET51<>""),EO50+1,"") ->  | EP51: =EP50 ->  | EQ51: 3.333333333 | ER51: 6 | ES51: =ES50 ->  | ET51: 0 | EU51: 5 | EW51: =IF(AND($G$38="Yes",EY51<>"",FB51<>""),EW50+1,"") ->  | EX51: =EX50 ->  | EY51: 3.333333333 | EZ51: 6 | FA51: =FA50 ->  | FB51: 0 | FC51: 5 | FE51: =IF(AND($G$39="Yes",FG51<>"",FJ51<>""),FE50+1,"") ->  | FF51: =FF50 ->  | FG51: 3.333333333 | FH51: 6 | FI51: =FI50 ->  | FJ51: 0 | FK51: 5 | FM51: =IF(AND($G$40="Yes",FO51<>"",FR51<>""),FM50+1,"") ->  | FN51: =FN50 ->  | FO51: 3.333333333 | FP51: 6 | FQ51: =FQ50 ->  | FR51: 0 | FS51: 5 | FU51: =IF(AND($G$41="Yes",FW51<>"",FZ51<>""),FU50+1,"") ->  | FV51: =FV50 ->  | FW51: 3.333333333 | FX51: 6 | FY51: =FY50 ->  | FZ51: 0 | GA51: 5 | GC51: =IF(AND($G$42="Yes",GE51<>"",GH51<>""),GC50+1,"") ->  | GD51: =GD50 ->  | GE51: 3.333333333 | GF51: 6 | GG51: =GG50 ->  | GH51: 0 | GI51: 5 | GK51: =IF(AND($G$43="Yes",GM51<>"",GP51<>""),GK50+1,"") ->  | GL51: =GL50 ->  | GM51: 3.333333333 | GN51: 6 | GO51: =GO50 ->  | GP51: 0 | GQ51: 5 | GS51: =IF(AND($G$44="Yes",GU51<>"",GX51<>""),GS50+1,"") ->  | GT51: =GT50 ->  | GU51: 3.333333333 | GV51: 6 | GW51: =GW50 ->  | GX51: =GP51 -> 0 | GY51: =GQ51 -> 5
K52: 28 | L52: =L49 ->  | M52: =M28 -> 20 | N52: 0 | O52: =O51 ->  | P52: =P28 -> 20 | Q52: 5 | R52: IPE400 | T52: =T49 -> 0 | U52: =U49 -> 0 | V52: 0 | W52: =-X49 -> 0 | X52: =-W49 -> 0 | Y52: =Y49 -> 0 | Z52: 0 | AB52: =IF(AND(G53="Yes",D53<>""),MAX($AB$25:AB51)+4,"") ->  | BE52: 74 | BF52: =BF50 -> 0 | BG52: =BL16 -> 3.333333333 | BH52: =BP25 -> 6 | BI52: =BI50 -> 8 | BJ52: =BL17 -> 6.666666667 | BK52: =BX25 -> 7 | BN52: 8 | BO52: 3.333333333 | BP52: 6 | BQ52: 16 | BR52: 6.666666667 | BS52: 7 | BV52: =BV51 -> 16 | BW52: 3.333333333 | BX52: 6 | BY52: =BY51 -> 24 | BZ52: 6.666666667 | CA52: 7 | CD52: =CD51 -> 24 | CE52: 3.333333333 | CF52: 6 | CG52: =CG51 -> 32 | CH52: 6.666666667 | CI52: 7 | CK52: 86 | CL52: =CL51 -> 32 | CM52: 3.333333333 | CN52: 6 | CO52: =CO51 -> 40 | CP52: 6.666666667 | CQ52: 7 | CT52: =CT51 -> 40 | CU52: 3.333333333 | CV52: 6 | CW52: =CW51 ->  | CX52: 6.666666667 | CY52: 7 | DB52: =DB51 ->  | DC52: 3.333333333 | DD52: 6 | DE52: =DE51 ->  | DF52: 6.666666667 | DG52: 7 | DJ52: =DJ51 ->  | DK52: 3.333333333 | DL52: 6 | DM52: =DM51 ->  | DN52: 6.666666667 | DO52: 7 | DR52: =DR51 ->  | DS52: 3.333333333 | DT52: 6 | DU52: =DU51 ->  | DV52: 6.666666667 | DW52: 7 | DZ52: =DZ51 ->  | EA52: 3.333333333 | EB52: 6 | EC52: =EC51 ->  | ED52: 6.666666667 | EE52: 7 | EH52: =EH51 ->  | EI52: 3.333333333 | EJ52: 6 | EK52: =EK51 ->  | EL52: 6.666666667 | EM52: 7 | EP52: =EP51 ->  | EQ52: 3.333333333 | ER52: 6 | ES52: =ES51 ->  | ET52: 6.666666667 | EU52: 7 | EX52: =EX51 ->  | EY52: 3.333333333 | EZ52: 6 | FA52: =FA51 ->  | FB52: 6.666666667 | FC52: 7 | FF52: =FF51 ->  | FG52: 3.333333333 | FH52: 6 | FI52: =FI51 ->  | FJ52: 6.666666667 | FK52: 7 | FN52: =FN51 ->  | FO52: 3.333333333 | FP52: 6 | FQ52: =FQ51 ->  | FR52: 6.666666667 | FS52: 7 | FV52: =FV51 ->  | FW52: 3.333333333 | FX52: 6 | FY52: =FY51 ->  | FZ52: 6.666666667 | GA52: 7 | GD52: =GD51 ->  | GE52: 3.333333333 | GF52: 6 | GG52: =GG51 ->  | GH52: 6.666666667 | GI52: 7 | GL52: =GL51 ->  | GM52: 3.333333333 | GN52: 6 | GO52: =GO51 ->  | GP52: 6.666666667 | GQ52: 7 | GT52: =GT51 ->  | GU52: 3.333333333 | GV52: 6 | GW52: =GW51 ->  | GX52: =GP52 -> 6.666666667 | GY52: =GQ52 -> 7
K53: 29 | L53: =D32 ->  | M53: =M29 -> 0 | N53: =N29 -> 0 | O53: =D32 ->  | P53: =P29 -> 0 | Q53: =Q29 -> 5 | R53: =R29 -> IPE400 | T53: 0 | U53: 0 | V53: 0 | W53: =$D$17*(C32+C33)/2 -> 0 | X53: =-$D$20*(C32+C33)/2 -> 0 | Y53: =$D$21*(C32+C33)/2 -> 0 | Z53: =-Y53 -> 0 | AB53: =IF(AND(G54="Yes",D54<>""),MAX($AB$25:AB52)+4,"") ->  | BE53: 75 | BF53: =BF52 -> 0 | BG53: =BJ52 -> 6.666666667 | BH53: =BK52 -> 7 | BI53: =BI52 -> 8 | BJ53: =BG52 -> 3.333333333 | BK53: =BH52 -> 6 | BN53: 8 | BO53: 6.666666667 | BP53: 7 | BQ53: 16 | BR53: 3.333333333 | BS53: 6 | BV53: 16 | BW53: 6.666666667 | BX53: 7 | BY53: 24 | BZ53: 3.333333333 | CA53: 6 | CD53: 24 | CE53: 6.666666667 | CF53: 7 | CG53: 32 | CH53: 3.333333333 | CI53: 6 | CK53: 87 | CL53: 32 | CM53: 6.666666667 | CN53: 7 | CO53: 40 | CP53: 3.333333333 | CQ53: 6 | CT53: 40 | CU53: 6.666666667 | CV53: 7 | CX53: 3.333333333 | CY53: 6 | DC53: 6.666666667 | DD53: 7 | DF53: 3.333333333 | DG53: 6 | DK53: 6.666666667 | DL53: 7 | DN53: 3.333333333 | DO53: 6 | DS53: 6.666666667 | DT53: 7 | DV53: 3.333333333 | DW53: 6 | EA53: 6.666666667 | EB53: 7 | ED53: 3.333333333 | EE53: 6 | EI53: 6.666666667 | EJ53: 7 | EL53: 3.333333333 | EM53: 6 | EQ53: 6.666666667 | ER53: 7 | ET53: 3.333333333 | EU53: 6 | EY53: 6.666666667 | EZ53: 7 | FB53: 3.333333333 | FC53: 6 | FG53: 6.666666667 | FH53: 7 | FJ53: 3.333333333 | FK53: 6 | FO53: 6.666666667 | FP53: 7 | FR53: 3.333333333 | FS53: 6 | FW53: 6.666666667 | FX53: 7 | FZ53: 3.333333333 | GA53: 6 | GE53: 6.666666667 | GF53: 7 | GH53: 3.333333333 | GI53: 6 | GM53: 6.666666667 | GN53: 7 | GP53: 3.333333333 | GQ53: 6 | GU53: 6.666666667 | GV53: 7 | GX53: 3.333333333 | GY53: 6
K54: 30 | L54: =L53 ->  | M54: =M30 -> 0 | N54: 5 | O54: =O53 ->  | P54: =P30 -> 10 | Q54: 8 | R54: IPE300 | T54: =-$D$14*(C32+C33)/2 -> 0 | U54: =-$D$15*(C32+C33)/2 -> 0 | V54: =-$D$16*(C32+C33)/2 -> 0 | W54: =-$D$18*(C32+C33)/2 -> 0 | X54: =$D$19*(C32+C33)/2 -> 0 | Y54: =Y53 -> 0 | Z54: =-Y54 -> 0 | AB54: =IF(AND(G55="Yes",D55<>""),MAX($AB$25:AB53)+4,"") ->  | BE54: 76 | BF54: =BF50 -> 0 | BG54: =BG53 -> 6.666666667 | BH54: =BH53 -> 7 | BI54: =BI50 -> 8 | BJ54: =BL18 -> 10 | BK54: =CF25 -> 8 | BN54: 8 | BO54: 6.666666667 | BP54: 7 | BQ54: 16 | BR54: 10 | BS54: 8 | BV54: 16 | BW54: 6.666666667 | BX54: 7 | BY54: 24 | BZ54: 10 | CA54: 8 | CD54: 24 | CE54: 6.666666667 | CF54: 7 | CG54: 32 | CH54: 10 | CI54: 8 | CK54: 88 | CL54: 32 | CM54: 6.666666667 | CN54: 7 | CO54: 40 | CP54: 10 | CQ54: 8 | CT54: 40 | CU54: 6.666666667 | CV54: 7 | CX54: 10 | CY54: 8 | DC54: 6.666666667 | DD54: 7 | DF54: 10 | DG54: 8 | DK54: 6.666666667 | DL54: 7 | DN54: 10 | DO54: 8 | DS54: 6.666666667 | DT54: 7 | DV54: 10 | DW54: 8 | EA54: 6.666666667 | EB54: 7 | ED54: 10 | EE54: 8 | EI54: 6.666666667 | EJ54: 7 | EL54: 10 | EM54: 8 | EQ54: 6.666666667 | ER54: 7 | ET54: 10 | EU54: 8 | EY54: 6.666666667 | EZ54: 7 | FB54: 10 | FC54: 8 | FG54: 6.666666667 | FH54: 7 | FJ54: 10 | FK54: 8 | FO54: 6.666666667 | FP54: 7 | FR54: 10 | FS54: 8 | FW54: 6.666666667 | FX54: 7 | FZ54: 10 | GA54: 8 | GE54: 6.666666667 | GF54: 7 | GH54: 10 | GI54: 8 | GM54: 6.666666667 | GN54: 7 | GP54: 10 | GQ54: 8 | GU54: 6.666666667 | GV54: 7 | GX54: 10 | GY54: 8
K55: 31 | L55: =L53 ->  | M55: =M31 -> 20 | N55: 5 | O55: =O54 ->  | P55: =P31 -> 10 | Q55: 8 | R55: IPE300 | T55: =T54 -> 0 | U55: =U54 -> 0 | V55: =V54 -> 0 | W55: =-X54 -> 0 | X55: =-W54 -> 0 | Y55: =Y54 -> 0 | Z55: =Z54 -> 0 | AB55: =IF(AND(G56="Yes",D56<>""),MAX($AB$25:AB54)+4,"") ->  | BE55: 77 | BF55: =BF54 -> 0 | BG55: =BJ54 -> 10 | BH55: =BK54 -> 8 | BI55: =BI54 -> 8 | BJ55: =BG54 -> 6.666666667 | BK55: =BH54 -> 7 | BN55: 8 | BO55: 10 | BP55: 8 | BQ55: 16 | BR55: 6.666666667 | BS55: 7 | BV55: 16 | BW55: 10 | BX55: 8 | BY55: 24 | BZ55: 6.666666667 | CA55: 7 | CD55: 24 | CE55: 10 | CF55: 8 | CG55: 32 | CH55: 6.666666667 | CI55: 7 | CK55: 89 | CL55: 32 | CM55: 10 | CN55: 8 | CO55: 40 | CP55: 6.666666667 | CQ55: 7 | CT55: 40 | CU55: 10 | CV55: 8 | CX55: 6.666666667 | CY55: 7 | DC55: 10 | DD55: 8 | DF55: 6.666666667 | DG55: 7 | DK55: 10 | DL55: 8 | DN55: 6.666666667 | DO55: 7 | DS55: 10 | DT55: 8 | DV55: 6.666666667 | DW55: 7 | EA55: 10 | EB55: 8 | ED55: 6.666666667 | EE55: 7 | EI55: 10 | EJ55: 8 | EL55: 6.666666667 | EM55: 7 | EQ55: 10 | ER55: 8 | ET55: 6.666666667 | EU55: 7 | EY55: 10 | EZ55: 8 | FB55: 6.666666667 | FC55: 7 | FG55: 10 | FH55: 8 | FJ55: 6.666666667 | FK55: 7 | FO55: 10 | FP55: 8 | FR55: 6.666666667 | FS55: 7 | FW55: 10 | FX55: 8 | FZ55: 6.666666667 | GA55: 7 | GE55: 10 | GF55: 8 | GH55: 6.666666667 | GI55: 7 | GM55: 10 | GN55: 8 | GP55: 6.666666667 | GQ55: 7 | GU55: 10 | GV55: 8 | GX55: 6.666666667 | GY55: 7
K56: 32 | L56: =L53 ->  | M56: =M32 -> 20 | N56: 0 | O56: =O55 ->  | P56: =P32 -> 20 | Q56: 5 | R56: IPE400 | T56: =T53 -> 0 | U56: =U53 -> 0 | V56: 0 | W56: =-X53 -> 0 | X56: =-W53 -> 0 | Y56: =Y53 -> 0 | Z56: 0 | AB56: =IF(AND(G57="Yes",D57<>""),MAX($AB$25:AB55)+4,"") ->  | BE56: 78 | BF56: =BF52 -> 0 | BG56: =BG55 -> 10 | BH56: =BH55 -> 8 | BI56: =BI52 -> 8 | BJ56: =BL19 -> 13.33333333 | BK56: =CN25 -> 7 | BN56: 8 | BO56: 10 | BP56: 8 | BQ56: 16 | BR56: 13.33333333 | BS56: 7 | BV56: 16 | BW56: 10 | BX56: 8 | BY56: 24 | BZ56: 13.33333333 | CA56: 7 | CD56: 24 | CE56: 10 | CF56: 8 | CG56: 32 | CH56: 13.33333333 | CI56: 7 | CK56: 90 | CL56: 32 | CM56: 10 | CN56: 8 | CO56: 40 | CP56: 13.33333333 | CQ56: 7 | CT56: 40 | CU56: 10 | CV56: 8 | CX56: 13.33333333 | CY56: 7 | DC56: 10 | DD56: 8 | DF56: 13.33333333 | DG56: 7 | DK56: 10 | DL56: 8 | DN56: 13.33333333 | DO56: 7 | DS56: 10 | DT56: 8 | DV56: 13.33333333 | DW56: 7 | EA56: 10 | EB56: 8 | ED56: 13.33333333 | EE56: 7 | EI56: 10 | EJ56: 8 | EL56: 13.33333333 | EM56: 7 | EQ56: 10 | ER56: 8 | ET56: 13.33333333 | EU56: 7 | EY56: 10 | EZ56: 8 | FB56: 13.33333333 | FC56: 7 | FG56: 10 | FH56: 8 | FJ56: 13.33333333 | FK56: 7 | FO56: 10 | FP56: 8 | FR56: 13.33333333 | FS56: 7 | FW56: 10 | FX56: 8 | FZ56: 13.33333333 | GA56: 7 | GE56: 10 | GF56: 8 | GH56: 13.33333333 | GI56: 7 | GM56: 10 | GN56: 8 | GP56: 13.33333333 | GQ56: 7 | GU56: 10 | GV56: 8 | GX56: 13.33333333 | GY56: 7
K57: 33 | L57: =D33 ->  | M57: =M33 -> 0 | N57: =N33 -> 0 | O57: =D33 ->  | P57: =P33 -> 0 | Q57: =Q33 -> 5 | R57: =R33 -> IPE400 | T57: 0 | U57: 0 | V57: 0 | W57: =$D$17*(C33+C34)/2 -> 0 | X57: =-$D$20*(C33+C34)/2 -> 0 | Y57: =$D$21*(C33+C34)/2 -> 0 | Z57: =-Y57 -> 0 | AB57: =IF(AND(G58="Yes",D58<>""),MAX($AB$25:AB56)+4,"") ->  | BE57: 79 | BF57: =BF56 -> 0 | BG57: =BJ56 -> 13.33333333 | BH57: =BK56 -> 7 | BI57: =BI56 -> 8 | BJ57: =BG56 -> 10 | BK57: =BH56 -> 8 | BN57: 8 | BO57: 13.33333333 | BP57: 7 | BQ57: 16 | BR57: 10 | BS57: 8 | BV57: 16 | BW57: 13.33333333 | BX57: 7 | BY57: 24 | BZ57: 10 | CA57: 8 | CD57: 24 | CE57: 13.33333333 | CF57: 7 | CG57: 32 | CH57: 10 | CI57: 8 | CK57: 91 | CL57: 32 | CM57: 13.33333333 | CN57: 7 | CO57: 40 | CP57: 10 | CQ57: 8 | CT57: 40 | CU57: 13.33333333 | CV57: 7 | CX57: 10 | CY57: 8 | DC57: 13.33333333 | DD57: 7 | DF57: 10 | DG57: 8 | DK57: 13.33333333 | DL57: 7 | DN57: 10 | DO57: 8 | DS57: 13.33333333 | DT57: 7 | DV57: 10 | DW57: 8 | EA57: 13.33333333 | EB57: 7 | ED57: 10 | EE57: 8 | EI57: 13.33333333 | EJ57: 7 | EL57: 10 | EM57: 8 | EQ57: 13.33333333 | ER57: 7 | ET57: 10 | EU57: 8 | EY57: 13.33333333 | EZ57: 7 | FB57: 10 | FC57: 8 | FG57: 13.33333333 | FH57: 7 | FJ57: 10 | FK57: 8 | FO57: 13.33333333 | FP57: 7 | FR57: 10 | FS57: 8 | FW57: 13.33333333 | FX57: 7 | FZ57: 10 | GA57: 8 | GE57: 13.33333333 | GF57: 7 | GH57: 10 | GI57: 8 | GM57: 13.33333333 | GN57: 7 | GP57: 10 | GQ57: 8 | GU57: 13.33333333 | GV57: 7 | GX57: 10 | GY57: 8
K58: 34 | L58: =L57 ->  | M58: =M34 -> 0 | N58: 5 | O58: =O57 ->  | P58: =P34 -> 10 | Q58: 8 | R58: IPE300 | T58: =-$D$14*(C33+C34)/2 -> 0 | U58: =-$D$15*(C33+C34)/2 -> 0 | V58: =-$D$16*(C33+C34)/2 -> 0 | W58: =-$D$18*(C33+C34)/2 -> 0 | X58: =$D$19*(C33+C34)/2 -> 0 | Y58: =Y57 -> 0 | Z58: =-Y58 -> 0 | AB58: =IF(AND(G59="Yes",D59<>""),MAX($AB$25:AB57)+4,"") ->  | BE58: 80 | BF58: =BF54 -> 0 | BG58: =BG57 -> 13.33333333 | BH58: =BH57 -> 7 | BI58: =BI54 -> 8 | BJ58: =BL20 -> 16.66666667 | BK58: =CV25 -> 6 | BN58: 8 | BO58: 13.33333333 | BP58: 7 | BQ58: 16 | BR58: 16.66666667 | BS58: 6 | BV58: 16 | BW58: 13.33333333 | BX58: 7 | BY58: 24 | BZ58: 16.66666667 | CA58: 6 | CD58: 24 | CE58: 13.33333333 | CF58: 7 | CG58: 32 | CH58: 16.66666667 | CI58: 6 | CK58: 92 | CL58: 32 | CM58: 13.33333333 | CN58: 7 | CO58: 40 | CP58: 16.66666667 | CQ58: 6 | CT58: 40 | CU58: 13.33333333 | CV58: 7 | CX58: 16.66666667 | CY58: 6 | DC58: 13.33333333 | DD58: 7 | DF58: 16.66666667 | DG58: 6 | DK58: 13.33333333 | DL58: 7 | DN58: 16.66666667 | DO58: 6 | DS58: 13.33333333 | DT58: 7 | DV58: 16.66666667 | DW58: 6 | EA58: 13.33333333 | EB58: 7 | ED58: 16.66666667 | EE58: 6 | EI58: 13.33333333 | EJ58: 7 | EL58: 16.66666667 | EM58: 6 | EQ58: 13.33333333 | ER58: 7 | ET58: 16.66666667 | EU58: 6 | EY58: 13.33333333 | EZ58: 7 | FB58: 16.66666667 | FC58: 6 | FG58: 13.33333333 | FH58: 7 | FJ58: 16.66666667 | FK58: 6 | FO58: 13.33333333 | FP58: 7 | FR58: 16.66666667 | FS58: 6 | FW58: 13.33333333 | FX58: 7 | FZ58: 16.66666667 | GA58: 6 | GE58: 13.33333333 | GF58: 7 | GH58: 16.66666667 | GI58: 6 | GM58: 13.33333333 | GN58: 7 | GP58: 16.66666667 | GQ58: 6 | GU58: 13.33333333 | GV58: 7 | GX58: 16.66666667 | GY58: 6
K59: 35 | L59: =L57 ->  | M59: =M35 -> 20 | N59: 5 | O59: =O58 ->  | P59: =P35 -> 10 | Q59: 8 | R59: IPE300 | T59: =T58 -> 0 | U59: =U58 -> 0 | V59: =V58 -> 0 | W59: =-X58 -> 0 | X59: =-W58 -> 0 | Y59: =Y58 -> 0 | Z59: =Z58 -> 0 | AB59: =IF(AND(G60="Yes",D60<>""),MAX($AB$25:AB58)+4,"") ->  | BE59: 81 | BF59: =BF58 -> 0 | BG59: =BJ58 -> 16.66666667 | BH59: =BK58 -> 6 | BI59: =BI58 -> 8 | BJ59: =BG58 -> 13.33333333 | BK59: =BH58 -> 7 | BN59: 8 | BO59: 16.66666667 | BP59: 6 | BQ59: 16 | BR59: 13.33333333 | BS59: 7 | BV59: 16 | BW59: 16.66666667 | BX59: 6 | BY59: 24 | BZ59: 13.33333333 | CA59: 7 | CD59: 24 | CE59: 16.66666667 | CF59: 6 | CG59: 32 | CH59: 13.33333333 | CI59: 7 | CK59: 93 | CL59: 32 | CM59: 16.66666667 | CN59: 6 | CO59: 40 | CP59: 13.33333333 | CQ59: 7 | CT59: 40 | CU59: 16.66666667 | CV59: 6 | CX59: 13.33333333 | CY59: 7 | DC59: 16.66666667 | DD59: 6 | DF59: 13.33333333 | DG59: 7 | DK59: 16.66666667 | DL59: 6 | DN59: 13.33333333 | DO59: 7 | DS59: 16.66666667 | DT59: 6 | DV59: 13.33333333 | DW59: 7 | EA59: 16.66666667 | EB59: 6 | ED59: 13.33333333 | EE59: 7 | EI59: 16.66666667 | EJ59: 6 | EL59: 13.33333333 | EM59: 7 | EQ59: 16.66666667 | ER59: 6 | ET59: 13.33333333 | EU59: 7 | EY59: 16.66666667 | EZ59: 6 | FB59: 13.33333333 | FC59: 7 | FG59: 16.66666667 | FH59: 6 | FJ59: 13.33333333 | FK59: 7 | FO59: 16.66666667 | FP59: 6 | FR59: 13.33333333 | FS59: 7 | FW59: 16.66666667 | FX59: 6 | FZ59: 13.33333333 | GA59: 7 | GE59: 16.66666667 | GF59: 6 | GH59: 13.33333333 | GI59: 7 | GM59: 16.66666667 | GN59: 6 | GP59: 13.33333333 | GQ59: 7 | GU59: 16.66666667 | GV59: 6 | GX59: 13.33333333 | GY59: 7
K60: 36 | L60: =L57 ->  | M60: =M36 -> 20 | N60: 0 | O60: =O59 ->  | P60: =P36 -> 20 | Q60: 5 | R60: IPE400 | T60: =T57 -> 0 | U60: =U57 -> 0 | V60: 0 | W60: =-X57 -> 0 | X60: =-W57 -> 0 | Y60: =Y57 -> 0 | Z60: 0 | AB60: =IF(AND(G61="Yes",D61<>""),MAX($AB$25:AB59)+4,"") ->  | BE60: 82 | BF60: =BF56 -> 0 | BG60: =BG59 -> 16.66666667 | BH60: =BH59 -> 6 | BI60: =BI56 -> 8 | BJ60: =BL21 -> 20 | BK60: =DD25 -> 5 | BN60: 8 | BO60: 16.66666667 | BP60: 6 | BQ60: 16 | BR60: 20 | BS60: 5 | BV60: 16 | BW60: 16.66666667 | BX60: 6 | BY60: 24 | BZ60: 20 | CA60: 5 | CD60: 24 | CE60: 16.66666667 | CF60: 6 | CG60: 32 | CH60: 20 | CI60: 5 | CK60: 94 | CL60: 32 | CM60: 16.66666667 | CN60: 6 | CO60: 40 | CP60: 20 | CQ60: 5 | CT60: 40 | CU60: 16.66666667 | CV60: 6 | CX60: 20 | CY60: 5 | DC60: 16.66666667 | DD60: 6 | DF60: 20 | DG60: 5 | DK60: 16.66666667 | DL60: 6 | DN60: 20 | DO60: 5 | DS60: 16.66666667 | DT60: 6 | DV60: 20 | DW60: 5 | EA60: 16.66666667 | EB60: 6 | ED60: 20 | EE60: 5 | EI60: 16.66666667 | EJ60: 6 | EL60: 20 | EM60: 5 | EQ60: 16.66666667 | ER60: 6 | ET60: 20 | EU60: 5 | EY60: 16.66666667 | EZ60: 6 | FB60: 20 | FC60: 5 | FG60: 16.66666667 | FH60: 6 | FJ60: 20 | FK60: 5 | FO60: 16.66666667 | FP60: 6 | FR60: 20 | FS60: 5 | FW60: 16.66666667 | FX60: 6 | FZ60: 20 | GA60: 5 | GE60: 16.66666667 | GF60: 6 | GH60: 20 | GI60: 5 | GM60: 16.66666667 | GN60: 6 | GP60: 20 | GQ60: 5 | GU60: 16.66666667 | GV60: 6 | GX60: 20 | GY60: 5
K61: 37 | L61: =D34 ->  | M61: =M37 -> 0 | N61: =N37 -> 0 | O61: =D34 ->  | P61: =P37 -> 0 | Q61: =Q37 -> 5 | R61: =R37 -> IPE400 | T61: 0 | U61: 0 | V61: 0 | W61: =$D$17*(C34+C35)/2 -> 0 | X61: =-$D$20*(C34+C35)/2 -> 0 | Y61: =$D$21*(C34+C35)/2 -> 0 | Z61: =-Y61 -> 0 | AB61: =IF(AND(G62="Yes",D62<>""),MAX($AB$25:AB60)+4,"") ->  | BE61: 83 | BF61: =BF60 -> 0 | BG61: =BJ60 -> 20 | BH61: =BK60 -> 5 | BI61: =BI60 -> 8 | BJ61: =BG60 -> 16.66666667 | BK61: =BH60 -> 6 | BN61: 8 | BO61: 20 | BP61: 5 | BQ61: 16 | BR61: 16.66666667 | BS61: 6 | BV61: 16 | BW61: 20 | BX61: 5 | BY61: 24 | BZ61: 16.66666667 | CA61: 6 | CD61: 24 | CE61: 20 | CF61: 5 | CG61: 32 | CH61: 16.66666667 | CI61: 6 | CK61: 95 | CL61: 32 | CM61: 20 | CN61: 5 | CO61: 40 | CP61: 16.66666667 | CQ61: 6 | CT61: 40 | CU61: 20 | CV61: 5 | CX61: 16.66666667 | CY61: 6 | DC61: 20 | DD61: 5 | DF61: 16.66666667 | DG61: 6 | DK61: 20 | DL61: 5 | DN61: 16.66666667 | DO61: 6 | DS61: 20 | DT61: 5 | DV61: 16.66666667 | DW61: 6 | EA61: 20 | EB61: 5 | ED61: 16.66666667 | EE61: 6 | EI61: 20 | EJ61: 5 | EL61: 16.66666667 | EM61: 6 | EQ61: 20 | ER61: 5 | ET61: 16.66666667 | EU61: 6 | EY61: 20 | EZ61: 5 | FB61: 16.66666667 | FC61: 6 | FG61: 20 | FH61: 5 | FJ61: 16.66666667 | FK61: 6 | FO61: 20 | FP61: 5 | FR61: 16.66666667 | FS61: 6 | FW61: 20 | FX61: 5 | FZ61: 16.66666667 | GA61: 6 | GE61: 20 | GF61: 5 | GH61: 16.66666667 | GI61: 6 | GM61: 20 | GN61: 5 | GP61: 16.66666667 | GQ61: 6 | GU61: 20 | GV61: 5 | GX61: 16.66666667 | GY61: 6
K62: 38 | L62: =L61 ->  | M62: =M38 -> 0 | N62: 5 | O62: =O61 ->  | P62: =P38 -> 10 | Q62: 8 | R62: IPE300 | T62: =-$D$14*(C34+C35)/2 -> 0 | U62: =-$D$15*(C34+C35)/2 -> 0 | V62: =-$D$16*(C34+C35)/2 -> 0 | W62: =-$D$18*(C34+C35)/2 -> 0 | X62: =$D$19*(C34+C35)/2 -> 0 | Y62: =Y61 -> 0 | Z62: =-Y62 -> 0 | AB62: =IF(AND(G63="Yes",D63<>""),MAX($AB$25:AB61)+4,"") ->  | BF62: =BF58 -> 0 | BG62: =BG61 -> 20 | BH62: =BH61 -> 5 | BI62: =BI58 -> 8 | BJ62: =BL22 ->  | BK62: =DL25 ->  | BN62: 8 | BO62: 20 | BP62: 5 | BQ62: 16 | BV62: 16 | BW62: 20 | BX62: 5 | BY62: 24 | CD62: 24 | CE62: 20 | CF62: 5 | CG62: 32 | CL62: 32 | CM62: 20 | CN62: 5 | CO62: 40 | CT62: 40 | CU62: 20 | CV62: 5 | DC62: 20 | DD62: 5 | DK62: 20 | DL62: 5 | DS62: 20 | DT62: 5 | EA62: 20 | EB62: 5 | EI62: 20 | EJ62: 5 | EQ62: 20 | ER62: 5 | EY62: 20 | EZ62: 5 | FG62: 20 | FH62: 5 | FO62: 20 | FP62: 5 | FW62: 20 | FX62: 5 | GE62: 20 | GF62: 5 | GM62: 20 | GN62: 5 | GU62: 20 | GV62: 5
K63: 39 | L63: =L61 ->  | M63: =M39 -> 20 | N63: 5 | O63: =O62 ->  | P63: =P39 -> 10 | Q63: 8 | R63: IPE300 | T63: =T62 -> 0 | U63: =U62 -> 0 | V63: =V62 -> 0 | W63: =-X62 -> 0 | X63: =-W62 -> 0 | Y63: =Y62 -> 0 | Z63: =Z62 -> 0 | AB63: =IF(AND(G64="Yes",D64<>""),MAX($AB$25:AB62)+4,"") ->  | BF63: =BF62 -> 0 | BG63: =BJ62 ->  | BH63: =BK62 ->  | BI63: =BI62 -> 8 | BJ63: =BG62 -> 20 | BK63: =BH62 -> 5 | BN63: 8 | BQ63: 16 | BR63: 20 | BS63: 5 | BV63: 16 | BY63: 24 | BZ63: 20 | CA63: 5 | CD63: 24 | CG63: 32 | CH63: 20 | CI63: 5 | CL63: 32 | CO63: 40 | CP63: 20 | CQ63: 5 | CT63: 40 | CX63: 20 | CY63: 5 | DF63: 20 | DG63: 5 | DN63: 20 | DO63: 5 | DV63: 20 | DW63: 5 | ED63: 20 | EE63: 5 | EL63: 20 | EM63: 5 | ET63: 20 | EU63: 5 | FB63: 20 | FC63: 5 | FJ63: 20 | FK63: 5 | FR63: 20 | FS63: 5 | FZ63: 20 | GA63: 5 | GH63: 20 | GI63: 5 | GP63: 20 | GQ63: 5 | GX63: 20 | GY63: 5
K64: 40 | L64: =L61 ->  | M64: =M40 -> 20 | N64: 0 | O64: =O63 ->  | P64: =P40 -> 20 | Q64: 5 | R64: IPE400 | T64: =T61 -> 0 | U64: =U61 -> 0 | V64: 0 | W64: =-X61 -> 0 | X64: =-W61 -> 0 | Y64: =Y61 -> 0 | Z64: 0 | AB64: =IF(AND(G65="Yes",D65<>""),MAX($AB$25:AB63)+4,"") ->  | BF64: =BF60 -> 0 | BG64: =BG63 ->  | BH64: =BH63 ->  | BI64: =BI60 -> 8 | BJ64: =BL23 ->  | BK64: =DT25 ->  | BN64: 8 | BQ64: 16 | BV64: 16 | BY64: 24 | CD64: 24 | CG64: 32 | CL64: 32 | CO64: 40 | CT64: 40
K65: 41 | L65: =D35 ->  | M65: =M41 -> 0 | N65: =N41 -> 0 | O65: =D35 ->  | P65: =P41 -> 0 | Q65: =Q41 -> 5 | R65: =R41 -> IPE400 | T65: 0 | U65: 0 | V65: 0 | W65: =$D$17*(C35+C36)/2 -> 0 | X65: =-$D$20*(C35+C36)/2 -> 0 | Y65: =$D$21*(C35+C36)/2 -> 0 | Z65: =-Y65 -> 0 | AB65: =IF(AND(G66="Yes",D66<>""),MAX($AB$25:AB64)+4,"") ->  | BF65: =BF64 -> 0 | BG65: =BJ64 ->  | BH65: =BK64 ->  | BI65: =BI64 -> 8 | BJ65: =BG64 ->  | BK65: =BH64 ->  | BN65: 8 | BQ65: 16 | BV65: 16 | BY65: 24 | CD65: 24 | CG65: 32 | CL65: 32 | CO65: 40 | CT65: 40
K66: 42 | L66: =L65 ->  | M66: =M42 -> 0 | N66: 5 | O66: =O65 ->  | P66: =P42 -> 10 | Q66: 8 | R66: IPE300 | T66: =-$D$14*(C35+C36)/2 -> 0 | U66: =-$D$15*(C35+C36)/2 -> 0 | V66: =-$D$16*(C35+C36)/2 -> 0 | W66: =-$D$18*(C35+C36)/2 -> 0 | X66: =$D$19*(C35+C36)/2 -> 0 | Y66: =Y65 -> 0 | Z66: =-Y66 -> 0 | AB66: =IF(AND(G67="Yes",D67<>""),MAX($AB$25:AB65)+4,"") ->  | BF66: =BF62 -> 0 | BG66: =BG65 ->  | BH66: =BH65 ->  | BI66: =BI62 -> 8 | BJ66: =BL24 ->  | BK66: =EE25 ->  | BN66: 8 | BQ66: 16 | BV66: 16 | BY66: 24 | CD66: 24 | CG66: 32 | CL66: 32 | CO66: 40 | CT66: 40
K67: 43 | L67: =L65 ->  | M67: =M43 -> 20 | N67: 5 | O67: =O66 ->  | P67: =P43 -> 10 | Q67: 8 | R67: IPE300 | T67: =T66 -> 0 | U67: =U66 -> 0 | V67: =V66 -> 0 | W67: =-X66 -> 0 | X67: =-W66 -> 0 | Y67: =Y66 -> 0 | Z67: =Z66 -> 0 | AB67: =IF(AND(G68="Yes",D68<>""),MAX($AB$25:AB66)+4,"") ->  | BF67: =BF66 -> 0 | BG67: =BJ66 ->  | BH67: =BK66 ->  | BI67: =BI66 -> 8 | BJ67: =BG66 ->  | BK67: =BH66 ->  | BN67: 8 | BQ67: 16 | BV67: 16 | BY67: 24 | CD67: 24 | CG67: 32 | CL67: 32 | CO67: 40 | CT67: 40
K68: 44 | L68: =L65 ->  | M68: =M44 -> 20 | N68: 0 | O68: =O67 ->  | P68: =P44 -> 20 | Q68: 5 | R68: IPE400 | T68: =T65 -> 0 | U68: =U65 -> 0 | V68: 0 | W68: =-X65 -> 0 | X68: =-W65 -> 0 | Y68: =Y65 -> 0 | Z68: 0 | AB68: =IF(AND(G69="Yes",D69<>""),MAX($AB$25:AB67)+4,"") ->  | BF68: =BF64 -> 0 | BG68: =BG67 ->  | BH68: =BH67 ->  | BI68: =BI64 -> 8 | BJ68: =BL25 ->  | BK68: =EM25 ->  | BN68: 8 | BQ68: 16 | BV68: 16 | BY68: 24 | CD68: 24 | CG68: 32 | CL68: 32 | CO68: 40 | CT68: 40
K69: 45 | L69: =D36 ->  | M69: =M45 -> 0 | N69: =N45 -> 0 | O69: =D36 ->  | P69: =P45 -> 0 | Q69: =Q45 -> 5 | R69: =R45 -> IPE400 | T69: 0 | U69: 0 | V69: 0 | W69: =$D$17*(C36+C37)/2 -> 0 | X69: =-$D$20*(C36+C37)/2 -> 0 | Y69: =$D$21*(C36+C37)/2 -> 0 | Z69: =-Y69 -> 0 | AB69: =IF(AND(G70="Yes",D70<>""),MAX($AB$25:AB68)+4,"") ->  | BF69: =BF68 -> 0 | BG69: =BJ68 ->  | BH69: =BK68 ->  | BI69: =BI68 -> 8 | BJ69: =BG68 ->  | BK69: =BH68 ->  | BN69: 8 | BQ69: 16 | BV69: 16 | BY69: 24 | CD69: 24 | CG69: 32 | CL69: 32 | CO69: 40 | CT69: 40
K70: 46 | L70: =L69 ->  | M70: =M46 -> 0 | N70: 5 | O70: =O69 ->  | P70: =P46 -> 10 | Q70: 8 | R70: IPE300 | T70: =-$D$14*(C36+C37)/2 -> 0 | U70: =-$D$15*(C36+C37)/2 -> 0 | V70: =-$D$16*(C36+C37)/2 -> 0 | W70: =-$D$18*(C36+C37)/2 -> 0 | X70: =$D$19*(C36+C37)/2 -> 0 | Y70: =Y69 -> 0 | Z70: =-Y70 -> 0 | AB70: =IF(AND(G71="Yes",D71<>""),MAX($AB$25:AB69)+4,"") ->  | BF70: =BF66 -> 0 | BG70: =BG69 ->  | BH70: =BH69 ->  | BI70: =BI66 -> 8 | BJ70: =BL26 ->  | BK70: =EU25 ->  | BN70: 8 | BQ70: 16 | BV70: 16 | BY70: 24 | CD70: 24 | CG70: 32 | CL70: 32 | CO70: 40 | CT70: 40
K71: 47 | L71: =L69 ->  | M71: =M47 -> 20 | N71: 5 | O71: =O70 ->  | P71: =P47 -> 10 | Q71: 8 | R71: IPE300 | T71: =T70 -> 0 | U71: =U70 -> 0 | V71: =V70 -> 0 | W71: =-X70 -> 0 | X71: =-W70 -> 0 | Y71: =Y70 -> 0 | Z71: =Z70 -> 0 | AB71: =IF(AND(G72="Yes",D72<>""),MAX($AB$25:AB70)+4,"") ->  | BF71: =BF70 -> 0 | BG71: =BJ70 ->  | BH71: =BK70 ->  | BI71: =BI70 -> 8 | BJ71: =BG70 ->  | BK71: =BH70 ->  | BN71: 8 | BQ71: 16 | BV71: 16 | BY71: 24 | CD71: 24 | CG71: 32 | CL71: 32 | CO71: 40 | CT71: 40
K72: 48 | L72: =L69 ->  | M72: =M48 -> 20 | N72: 0 | O72: =O71 ->  | P72: =P48 -> 20 | Q72: 5 | R72: IPE400 | T72: =T69 -> 0 | U72: =U69 -> 0 | V72: 0 | W72: =-X69 -> 0 | X72: =-W69 -> 0 | Y72: =Y69 -> 0 | Z72: 0 | AB72: =IF(AND(G73="Yes",D73<>""),MAX($AB$25:AB71)+4,"") ->  | BF72: =BF68 -> 0 | BG72: =BG71 ->  | BH72: =BH71 ->  | BI72: =BI68 -> 8 | BJ72: =BL27 ->  | BK72: =FC25 ->  | BN72: 8 | BQ72: 16 | BV72: 16 | BY72: 24 | CD72: 24 | CG72: 32 | CL72: 32 | CO72: 40 | CT72: 40
K73: 49 | L73: =D37 ->  | M73: =M49 -> 0 | N73: =N49 -> 0 | O73: =D37 ->  | P73: =P49 -> 0 | Q73: =Q49 -> 5 | R73: =R49 -> IPE400 | T73: 0 | U73: 0 | V73: 0 | W73: =$D$17*(C37+C38)/2 -> 0 | X73: =-$D$20*(C37+C38)/2 -> 0 | Y73: =$D$21*(C37+C38)/2 -> 0 | Z73: =-Y73 -> 0 | AB73: =IF(AND(G74="Yes",D74<>""),MAX($AB$25:AB72)+4,"") ->  | BF73: =BF72 -> 0 | BG73: =BJ72 ->  | BH73: =BK72 ->  | BI73: =BI72 -> 8 | BJ73: =BG72 ->  | BK73: =BH72 ->  | BN73: 8 | BQ73: 16 | BV73: 16 | BY73: 24 | CD73: 24 | CG73: 32 | CL73: 32 | CO73: 40 | CT73: 40
K74: 50 | L74: =L73 ->  | M74: =M50 -> 0 | N74: 5 | O74: =O73 ->  | P74: =P50 -> 10 | Q74: 8 | R74: IPE300 | T74: =-$D$14*(C37+C38)/2 -> 0 | U74: =-$D$15*(C37+C38)/2 -> 0 | V74: =-$D$16*(C37+C38)/2 -> 0 | W74: =-$D$18*(C37+C38)/2 -> 0 | X74: =$D$19*(C37+C38)/2 -> 0 | Y74: =Y73 -> 0 | Z74: =-Y74 -> 0 | AB74: =IF(AND(G75="Yes",D75<>""),MAX($AB$25:AB73)+4,"") ->  | BF74: =BF70 -> 0 | BG74: =BG73 ->  | BH74: =BH73 ->  | BI74: =BI70 -> 8 | BJ74: =BL28 ->  | BK74: =FK25 ->  | BN74: 8 | BQ74: 16 | BV74: 16 | BY74: 24 | CD74: 24 | CG74: 32 | CL74: 32 | CO74: 40 | CT74: 40
K75: 51 | L75: =L73 ->  | M75: =M51 -> 20 | N75: 5 | O75: =O74 ->  | P75: =P51 -> 10 | Q75: 8 | R75: IPE300 | T75: =T74 -> 0 | U75: =U74 -> 0 | V75: =V74 -> 0 | W75: =-X74 -> 0 | X75: =-W74 -> 0 | Y75: =Y74 -> 0 | Z75: =Z74 -> 0 | AB75: =IF(AND(G76="Yes",D76<>""),MAX($AB$25:AB74)+4,"") ->  | BF75: =BF74 -> 0 | BG75: =BJ74 ->  | BH75: =BK74 ->  | BI75: =BI74 -> 8 | BJ75: =BG74 ->  | BK75: =BH74 ->  | BN75: 8 | BQ75: 16 | BV75: 16 | BY75: 24 | CD75: 24 | CG75: 32 | CL75: 32 | CO75: 40 | CT75: 40
K76: 52 | L76: =L73 ->  | M76: =M52 -> 20 | N76: 0 | O76: =O75 ->  | P76: =P52 -> 20 | Q76: 5 | R76: IPE400 | T76: =T73 -> 0 | U76: =U73 -> 0 | V76: 0 | W76: =-X73 -> 0 | X76: =-W73 -> 0 | Y76: =Y73 -> 0 | Z76: 0 | AB76: =IF(AND(G77="Yes",D77<>""),MAX($AB$25:AB75)+4,"") ->  | BF76: =BF72 -> 0 | BG76: =BG75 ->  | BH76: =BH75 ->  | BI76: =BI72 -> 8 | BJ76: =BL29 ->  | BK76: =FS25 ->  | BN76: 8 | BQ76: 16 | BV76: 16 | BY76: 24 | CD76: 24 | CG76: 32 | CL76: 32 | CO76: 40 | CT76: 40
K77: 53 | L77: =D38 ->  | M77: =M53 -> 0 | N77: =N53 -> 0 | O77: =D38 ->  | P77: =P53 -> 0 | Q77: =Q53 -> 5 | R77: =R53 -> IPE400 | T77: 0 | U77: 0 | V77: 0 | W77: =$D$17*(C38+C39)/2 -> 0 | X77: =-$D$20*(C38+C39)/2 -> 0 | Y77: =$D$21*(C38+C39)/2 -> 0 | Z77: =-Y77 -> 0 | AB77: =IF(AND(G78="Yes",D78<>""),MAX($AB$25:AB76)+4,"") ->  | BF77: =BF76 -> 0 | BG77: =BJ76 ->  | BH77: =BK76 ->  | BI77: =BI76 -> 8 | BJ77: =BG76 ->  | BK77: =BH76 ->  | BN77: 8 | BQ77: 16 | BV77: 16 | BY77: 24 | CD77: 24 | CG77: 32 | CL77: 32 | CO77: 40 | CT77: 40
K78: 54 | L78: =L77 ->  | M78: =M54 -> 0 | N78: 5 | O78: =O77 ->  | P78: =P54 -> 10 | Q78: 8 | R78: IPE300 | T78: =-$D$14*(C38+C39)/2 -> 0 | U78: =-$D$15*(C38+C39)/2 -> 0 | V78: =-$D$16*(C38+C39)/2 -> 0 | W78: =-$D$18*(C38+C39)/2 -> 0 | X78: =$D$19*(C38+C39)/2 -> 0 | Y78: =Y77 -> 0 | Z78: =-Y78 -> 0 | AB78: =IF(AND(G79="Yes",D79<>""),MAX($AB$25:AB77)+4,"") ->  | BF78: =BF74 -> 0 | BG78: =BG77 ->  | BH78: =BH77 ->  | BI78: =BI74 -> 8 | BJ78: =BL30 ->  | BK78: =GA25 ->  | BN78: 8 | BQ78: 16 | BV78: 16 | BY78: 24 | CD78: 24 | CG78: 32 | CL78: 32 | CO78: 40 | CT78: 40
K79: 55 | L79: =L77 ->  | M79: =M55 -> 20 | N79: 5 | O79: =O78 ->  | P79: =P55 -> 10 | Q79: 8 | R79: IPE300 | T79: =T78 -> 0 | U79: =U78 -> 0 | V79: =V78 -> 0 | W79: =-X78 -> 0 | X79: =-W78 -> 0 | Y79: =Y78 -> 0 | Z79: =Z78 -> 0 | AB79: =IF(AND(G80="Yes",D80<>""),MAX($AB$25:AB78)+4,"") ->  | BF79: =BF78 -> 0 | BG79: =BJ78 ->  | BH79: =BK78 ->  | BI79: =BI78 -> 8 | BJ79: =BG78 ->  | BK79: =BH78 ->  | BN79: 8 | BQ79: 16 | BV79: 16 | BY79: 24 | CD79: 24 | CG79: 32 | CL79: 32 | CO79: 40 | CT79: 40
K80: 56 | L80: =L77 ->  | M80: =M56 -> 20 | N80: 0 | O80: =O79 ->  | P80: =P56 -> 20 | Q80: 5 | R80: IPE400 | T80: =T77 -> 0 | U80: =U77 -> 0 | V80: 0 | W80: =-X77 -> 0 | X80: =-W77 -> 0 | Y80: =Y77 -> 0 | Z80: 0 | AB80: =IF(AND(G81="Yes",D81<>""),MAX($AB$25:AB79)+4,"") ->  | BF80: =BF76 -> 0 | BG80: =BG79 ->  | BH80: =BH79 ->  | BI80: =BI76 -> 8 | BJ80: =BL31 ->  | BK80: =GI25 ->  | BN80: 8 | BQ80: 16 | BV80: 16 | BY80: 24 | CD80: 24 | CG80: 32 | CL80: 32 | CO80: 40 | CT80: 40
K81: 57 | L81: =D39 ->  | M81: =M57 -> 0 | N81: =N57 -> 0 | O81: =D39 ->  | P81: =P57 -> 0 | Q81: =Q57 -> 5 | R81: =R57 -> IPE400 | T81: 0 | U81: 0 | V81: 0 | W81: =$D$17*(C39+C40)/2 -> 0 | X81: =-$D$20*(C39+C40)/2 -> 0 | Y81: =$D$21*(C39+C40)/2 -> 0 | Z81: =-Y81 -> 0 | AB81: =IF(AND(G82="Yes",D82<>""),MAX($AB$25:AB80)+4,"") ->  | BF81: =BF80 -> 0 | BG81: =BJ80 ->  | BH81: =BK80 ->  | BI81: =BI80 -> 8 | BJ81: =BG80 ->  | BK81: =BH80 ->  | BN81: 8 | BQ81: 16 | BV81: 16 | BY81: 24 | CD81: 24 | CG81: 32 | CL81: 32 | CO81: 40 | CT81: 40
K82: 58 | L82: =L81 ->  | M82: =M58 -> 0 | N82: 5 | O82: =O81 ->  | P82: =P58 -> 10 | Q82: 8 | R82: IPE300 | T82: =-$D$14*(C39+C40)/2 -> 0 | U82: =-$D$15*(C39+C40)/2 -> 0 | V82: =-$D$16*(C39+C40)/2 -> 0 | W82: =-$D$18*(C39+C40)/2 -> 0 | X82: =$D$19*(C39+C40)/2 -> 0 | Y82: =Y81 -> 0 | Z82: =-Y82 -> 0 | AB82: =IF(AND(G83="Yes",D83<>""),MAX($AB$25:AB81)+4,"") ->  | BF82: =BF78 -> 0 | BG82: =BG81 ->  | BH82: =BH81 ->  | BI82: =BI78 -> 8 | BJ82: =BL32 ->  | BK82: =GQ25 ->  | BN82: 8 | BQ82: 16 | BV82: 16 | BY82: 24 | CD82: 24 | CG82: 32 | CL82: 32 | CO82: 40 | CT82: 40
K83: 59 | L83: =L81 ->  | M83: =M59 -> 20 | N83: 5 | O83: =O82 ->  | P83: =P59 -> 10 | Q83: 8 | R83: IPE300 | T83: =T82 -> 0 | U83: =U82 -> 0 | V83: =V82 -> 0 | W83: =-X82 -> 0 | X83: =-W82 -> 0 | Y83: =Y82 -> 0 | Z83: =Z82 -> 0 | AB83: =IF(AND(G84="Yes",D84<>""),MAX($AB$25:AB82)+4,"") ->  | BF83: =BF82 -> 0 | BG83: =BJ82 ->  | BH83: =BK82 ->  | BI83: =BI82 -> 8 | BJ83: =BG82 ->  | BK83: =BH82 ->  | BN83: 8 | BQ83: 16 | BV83: 16 | BY83: 24 | CD83: 24 | CG83: 32 | CL83: 32 | CO83: 40 | CT83: 40
K84: 60 | L84: =L81 ->  | M84: =M60 -> 20 | N84: 0 | O84: =O83 ->  | P84: =P60 -> 20 | Q84: 5 | R84: IPE400 | T84: =T81 -> 0 | U84: =U81 -> 0 | V84: 0 | W84: =-X81 -> 0 | X84: =-W81 -> 0 | Y84: =Y81 -> 0 | Z84: 0 | AB84: =IF(AND(G85="Yes",D85<>""),MAX($AB$25:AB83)+4,"") ->  | BF84: =BF80 -> 0 | BG84: =BG83 ->  | BH84: =BH83 ->  | BI84: =BI80 -> 8 | BJ84: =BL33 ->  | BK84: =GY25 ->  | BN84: 8 | BQ84: 16 | BV84: 16 | BY84: 24 | CD84: 24 | CG84: 32 | CL84: 32 | CO84: 40 | CT84: 40
K85: 61 | L85: =D40 ->  | M85: =M61 -> 0 | N85: =N61 -> 0 | O85: =D40 ->  | P85: =P61 -> 0 | Q85: =Q61 -> 5 | R85: =R61 -> IPE400 | T85: 0 | U85: 0 | V85: 0 | W85: =$D$17*(C40+C41)/2 -> 0 | X85: =-$D$20*(C40+C41)/2 -> 0 | Y85: =$D$21*(C40+C41)/2 -> 0 | Z85: =-Y85 -> 0 | AB85: =IF(AND(G86="Yes",D86<>""),MAX($AB$25:AB84)+4,"") ->  | BF85: =BF84 -> 0 | BG85: =BJ84 ->  | BH85: =BK84 ->  | BI85: =BI84 -> 8 | BJ85: =BG84 ->  | BK85: =BH84 ->  | BN85: 8 | BQ85: 16 | BV85: 16 | BY85: 24 | CD85: 24 | CG85: 32 | CL85: 32 | CO85: 40 | CT85: 40
K86: 62 | L86: =L85 ->  | M86: =M62 -> 0 | N86: 5 | O86: =O85 ->  | P86: =P62 -> 10 | Q86: 8 | R86: IPE300 | T86: =-$D$14*(C40+C41)/2 -> 0 | U86: =-$D$15*(C40+C41)/2 -> 0 | V86: =-$D$16*(C40+C41)/2 -> 0 | W86: =-$D$18*(C40+C41)/2 -> 0 | X86: =$D$19*(C40+C41)/2 -> 0 | Y86: =Y85 -> 0 | Z86: =-Y86 -> 0 | AB86: =IF(AND(G87="Yes",D87<>""),MAX($AB$25:AB85)+4,"") ->  | BF86: =BF82 -> 0 | BG86: =BG85 ->  | BH86: =BH85 ->  | BI86: =BI82 -> 8 | BJ86: =BL34 -> 0 | BK86: =HG25 ->  | BN86: 8 | BQ86: 16 | BR86: 0 | BV86: 16 | BY86: 24 | BZ86: 0 | CD86: 24 | CG86: 32 | CH86: 0 | CL86: 32 | CO86: 40 | CP86: 0 | CT86: 40 | CX86: 0 | DF86: 0 | DN86: 0 | DV86: 0 | ED86: 0 | EL86: 0 | ET86: 0 | FB86: 0 | FJ86: 0 | FR86: 0 | FV86: =FV85 ->  | FY86: =FY85 ->  | FZ86: 0 | GH86: 0 | GP86: 0 | GX86: 0
K87: 63 | L87: =L85 ->  | M87: =M63 -> 20 | N87: 5 | O87: =O86 ->  | P87: =P63 -> 10 | Q87: 8 | R87: IPE300 | T87: =T86 -> 0 | U87: =U86 -> 0 | V87: =V86 -> 0 | W87: =-X86 -> 0 | X87: =-W86 -> 0 | Y87: =Y86 -> 0 | Z87: =Z86 -> 0 | AB87: =IF(AND(G88="Yes",D88<>""),MAX($AB$25:AB86)+4,"") ->  | BF87: =BF86 -> 0 | BG87: =BJ86 -> 0 | BH87: =BK86 ->  | BI87: =BI86 -> 8 | BJ87: =BG86 ->  | BK87: =BH86 ->  | BN87: 8 | BO87: 0 | BQ87: 16 | BV87: 16 | BW87: 0 | BY87: 24 | CD87: 24 | CE87: 0 | CG87: 32 | CL87: 32 | CM87: 0 | CO87: 40 | CT87: 40 | CU87: 0 | DC87: 0 | DK87: 0 | DS87: 0 | EA87: 0 | EI87: 0 | EQ87: 0 | EY87: 0 | FG87: 0 | FO87: 0 | FV87: =FV86 ->  | FW87: 0 | FY87: =FY86 ->  | FZ87: =FR87 ->  | GA87: =FS87 ->  | GE87: 0 | GM87: 0 | GU87: 0
K88: 64 | L88: =L85 ->  | M88: =M64 -> 20 | N88: 0 | O88: =O87 ->  | P88: =P64 -> 20 | Q88: 5 | R88: IPE400 | T88: =T85 -> 0 | U88: =U85 -> 0 | V88: 0 | W88: =-X85 -> 0 | X88: =-W85 -> 0 | Y88: =Y85 -> 0 | Z88: 0 | AB88: =IF(AND(G89="Yes",D89<>""),MAX($AB$25:AB87)+4,"") -> 
K89: 65 | L89: =D41 ->  | M89: =M65 -> 0 | N89: =N65 -> 0 | O89: =D41 ->  | P89: =P65 -> 0 | Q89: =Q65 -> 5 | R89: =R65 -> IPE400 | T89: 0 | U89: 0 | V89: 0 | W89: =$D$17*(C41+C42)/2 -> 0 | X89: =-$D$20*(C41+C42)/2 -> 0 | Y89: =$D$21*(C41+C42)/2 -> 0 | Z89: =-Y89 -> 0 | AB89: =IF(AND(G90="Yes",D90<>""),MAX($AB$25:AB88)+4,"") -> 
K90: 66 | L90: =L89 ->  | M90: =M66 -> 0 | N90: 5 | O90: =O89 ->  | P90: =P66 -> 10 | Q90: 8 | R90: IPE300 | T90: =-$D$14*(C41+C42)/2 -> 0 | U90: =-$D$15*(C41+C42)/2 -> 0 | V90: =-$D$16*(C41+C42)/2 -> 0 | W90: =-$D$18*(C41+C42)/2 -> 0 | X90: =$D$19*(C41+C42)/2 -> 0 | Y90: =Y89 -> 0 | Z90: =-Y90 -> 0 | AB90: =IF(AND(G91="Yes",D91<>""),MAX($AB$25:AB89)+4,"") -> 
K91: 67 | L91: =L89 ->  | M91: =M67 -> 20 | N91: 5 | O91: =O90 ->  | P91: =P67 -> 10 | Q91: 8 | R91: IPE300 | T91: =T90 -> 0 | U91: =U90 -> 0 | V91: =V90 -> 0 | W91: =-X90 -> 0 | X91: =-W90 -> 0 | Y91: =Y90 -> 0 | Z91: =Z90 -> 0 | AB91: =IF(AND(G92="Yes",D92<>""),MAX($AB$25:AB90)+4,"") -> 
K92: 68 | L92: =L89 ->  | M92: =M68 -> 20 | N92: 0 | O92: =O91 ->  | P92: =P68 -> 20 | Q92: 5 | R92: IPE400 | T92: =T89 -> 0 | U92: =U89 -> 0 | V92: 0 | W92: =-X89 -> 0 | X92: =-W89 -> 0 | Y92: =Y89 -> 0 | Z92: 0 | AB92: =IF(AND(G93="Yes",D93<>""),MAX($AB$25:AB91)+4,"") -> 
K93: 69 | L93: =D42 ->  | M93: =M69 -> 0 | N93: =N69 -> 0 | O93: =D42 ->  | P93: =P69 -> 0 | Q93: =Q69 -> 5 | R93: =R69 -> IPE400 | T93: 0 | U93: 0 | V93: 0 | W93: =$D$17*(C42+C43)/2 -> 0 | X93: =-$D$20*(C42+C43)/2 -> 0 | Y93: =$D$21*(C42+C43)/2 -> 0 | Z93: =-Y93 -> 0 | AB93: =IF(AND(G94="Yes",D94<>""),MAX($AB$25:AB92)+4,"") -> 
K94: 70 | L94: =L93 ->  | M94: =M70 -> 0 | N94: 5 | O94: =O93 ->  | P94: =P70 -> 10 | Q94: 8 | R94: IPE300 | T94: =-$D$14*(C42+C43)/2 -> 0 | U94: =-$D$15*(C42+C43)/2 -> 0 | V94: =-$D$16*(C42+C43)/2 -> 0 | W94: =-$D$18*(C42+C43)/2 -> 0 | X94: =$D$19*(C42+C43)/2 -> 0 | Y94: =Y93 -> 0 | Z94: =-Y94 -> 0 | AB94: =IF(AND(G95="Yes",D95<>""),MAX($AB$25:AB93)+4,"") -> 
K95: 71 | L95: =L93 ->  | M95: =M71 -> 20 | N95: 5 | O95: =O94 ->  | P95: =P71 -> 10 | Q95: 8 | R95: IPE300 | T95: =T94 -> 0 | U95: =U94 -> 0 | V95: =V94 -> 0 | W95: =-X94 -> 0 | X95: =-W94 -> 0 | Y95: =Y94 -> 0 | Z95: =Z94 -> 0 | AB95: =IF(AND(G96="Yes",D96<>""),MAX($AB$25:AB94)+4,"") -> 
K96: 72 | L96: =L93 ->  | M96: =M72 -> 20 | N96: 0 | O96: =O95 ->  | P96: =P72 -> 20 | Q96: 5 | R96: IPE400 | T96: =T93 -> 0 | U96: =U93 -> 0 | V96: 0 | W96: =-X93 -> 0 | X96: =-W93 -> 0 | Y96: =Y93 -> 0 | Z96: 0 | AB96: =IF(AND(G97="Yes",D97<>""),MAX($AB$25:AB95)+4,"") -> 
K97: 73 | L97: =D43 ->  | M97: =M73 -> 0 | N97: =N73 -> 0 | O97: =D43 ->  | P97: =P73 -> 0 | Q97: =Q73 -> 5 | R97: =R73 -> IPE400 | T97: 0 | U97: 0 | V97: 0 | W97: =$D$17*(C43+C44)/2 -> 0 | X97: =-$D$20*(C43+C44)/2 -> 0 | Y97: =$D$21*(C43+C44)/2 -> 0 | Z97: =-Y97 -> 0 | AB97: =IF(AND(G98="Yes",D98<>""),MAX($AB$25:AB96)+4,"") -> 
K98: 74 | L98: =L97 ->  | M98: =M74 -> 0 | N98: 5 | O98: =O97 ->  | P98: =P74 -> 10 | Q98: 8 | R98: IPE300 | T98: =-$D$14*(C43+C44)/2 -> 0 | U98: =-$D$15*(C43+C44)/2 -> 0 | V98: =-$D$16*(C43+C44)/2 -> 0 | W98: =-$D$18*(C43+C44)/2 -> 0 | X98: =$D$19*(C43+C44)/2 -> 0 | Y98: =Y97 -> 0 | Z98: =-Y98 -> 0 | AB98: =IF(AND(G99="Yes",D99<>""),MAX($AB$25:AB97)+4,"") -> 
K99: 75 | L99: =L97 ->  | M99: =M75 -> 20 | N99: 5 | O99: =O98 ->  | P99: =P75 -> 10 | Q99: 8 | R99: IPE300 | T99: =T98 -> 0 | U99: =U98 -> 0 | V99: =V98 -> 0 | W99: =-X98 -> 0 | X99: =-W98 -> 0 | Y99: =Y98 -> 0 | Z99: =Z98 -> 0 | AB99: =IF(AND(G100="Yes",D100<>""),MAX($AB$25:AB98)+4,"") -> 
K100: 76 | L100: =L97 ->  | M100: =M76 -> 20 | N100: 0 | O100: =O99 ->  | P100: =P76 -> 20 | Q100: 5 | R100: IPE400 | T100: =T97 -> 0 | U100: =U97 -> 0 | V100: 0 | W100: =-X97 -> 0 | X100: =-W97 -> 0 | Y100: =Y97 -> 0 | Z100: 0 | AB100: =IF(AND(G101="Yes",D101<>""),MAX($AB$25:AB99)+4,"") -> 
K101: 77 | L101: =D44 ->  | M101: =M77 -> 0 | N101: =N77 -> 0 | O101: =D44 ->  | P101: =P77 -> 0 | Q101: =Q77 -> 5 | R101: =R77 -> IPE400 | T101: 0 | U101: 0 | V101: 0 | W101: =$D$17*(C44+C45)/2 -> 0 | X101: =-$D$20*(C44+C45)/2 -> 0 | Y101: =$D$21*(D47+D48)/2 -> 0 | Z101: =-Y101 -> 0 | AB101: =IF(AND(G102="Yes",D102<>""),MAX($AB$25:AB100)+4,"") -> 
K102: 78 | L102: =L101 ->  | M102: =M78 -> 0 | N102: 5 | O102: =O101 ->  | P102: =P78 -> 10 | Q102: 8 | R102: IPE300 | T102: =-$D$14*(C44+C45)/2 -> 0 | U102: =-$D$15*(C44+C45)/2 -> 0 | V102: =-$D$16*(C44+C45)/2 -> 0 | W102: =-$D$18*(C44+C45)/2 -> 0 | X102: =$D$19*(C44+C45)/2 -> 0 | Y102: =Y101 -> 0 | Z102: =-Y102 -> 0 | AB102: =IF(AND(G103="Yes",D103<>""),MAX($AB$25:AB101)+4,"") -> 
K103: 79 | L103: =L101 ->  | M103: =M79 -> 20 | N103: 5 | O103: =O102 ->  | P103: =P79 -> 10 | Q103: 8 | R103: IPE300 | T103: =T102 -> 0 | U103: =U102 -> 0 | V103: =V102 -> 0 | W103: =-X102 -> 0 | X103: =-W102 -> 0 | Y103: =Y102 -> 0 | Z103: =Z102 -> 0 | AB103: =IF(AND(G104="Yes",D104<>""),MAX($AB$25:AB102)+4,"") -> 
K104: 80 | L104: =L101 ->  | M104: =M80 -> 20 | N104: 0 | O104: =O103 ->  | P104: =P80 -> 20 | Q104: 5 | R104: IPE400 | T104: =T101 -> 0 | U104: =U101 -> 0 | V104: 0 | W104: =-X101 -> 0 | X104: =-W101 -> 0 | Y104: =Y101 -> 0 | Z104: 0 | AB104: =IF(AND(G105="Yes",D105<>""),MAX($AB$25:AB103)+4,"") -> 

Sheet Section Data
A1: Australia-NewZealand | D1: AISC14 | G1: AISC14M | J1: AISC15 | M1: AISC15M | P1: APL_Steel | S1: ArcelorMittal_British | V1: ArcelorMittal_BritishHISTAR | Y1: ArcelorMittal_Europe | AB1: ArcelorMittal_EuropeHISTAR | AE1: ArcelorMittal_Japan | AH1: ArcelorMittal_US_ASTM-A913M | AK1: ArcelorMittal_US_ASTM-A992 | AN1: ArcelorMittal_US_ASTM-A992M | AQ1: BSShapes2006 | AT1: ChineseGB08 | AW1: CISC9 | AZ1: CISC10 | BC1: Euro | BF1: Indian | BI1: Jindal_Steel | BL1: JIS-G-3192-2014 | BO1: Korean | BR1: Nordic | BU1: Russian | BX1: Russian2020_en | CA1: Russian2020_ru | CD1: TATA_Steel
A2: 250X150X9RHS | B2: B | D2: HSS20X12X5/8 | E2: B | G2: HSS508X304.8X15.9 | H2: B | J2: HSS24X12X3/4 | K2: B | M2: HSS609.6X304.8X19 | N2: B | P2: RHS26X13X1.6 | Q2: B | S2: UB127X76X13 | T2: W | V2: UB610X229X125 | W2: W | Y2: IPEAA80 | Z2: W | AB2: IPE550 | AC2: W | AE2: H 100 X 100 X 6 X 8 | AF2: W | AH2: W250X250X73 | AI2: W | AK2: W4X4X13 | AL2: W | AN2: W100X100X19.3 | AO2: W | AQ2: RHHF50X30X3.2 | AR2: B | AT2: HW100X100X6X8 | AU2: W | AW2: HS305X305X16 | AX2: B | AZ2: HS305X305X16 | BA2: B | BC2: TUBO60X60X3.6 | BD2: B | BF2: ISB25X25X2.6 | BG2: B | BI2: HEAA320 | BJ2: HE | BL2: H1000X400X19X40 | BM2: W | BO2: B 40X40X1.6 | BP2: B | BR2: SHS40X40X2.5 | BS2: B | BU2: Тп50x25x2 | BV2: HSS | BX2: 03_Tk_40x2 | BY2: HSS | CA2: 03_Тк_40х2 | CB2: HSS | CD2: 50X25X2.0RHS | CE2: RHS | CG2: =A1 -> Australia-NewZealand | CJ2: =MATCH(Input!$H$6,'Section Data'!$CG$2:$CG$28,0) -> 19 | CK2: =IF(OFFSET(A2,0,($CJ$2-1)*3)=0,"",OFFSET(A2,0,($CJ$2-1)*3)) -> TUBO60X60X3.6
A3: 250X150X6RHS | B3: B | D3: HSS20X12X1/2 | E3: B | G3: HSS508X304.8X12.7 | H3: B | J3: HSS24X12X5/8 | K3: B | M3: HSS609.6X304.8X15.9 | N3: B | P3: RHS26X13X1.8 | Q3: B | S3: UB152X89X16 | T3: W | V3: UB610X229X140 | W3: W | Y3: IPEA80 | Z3: W | AB3: IPEO550 | AC3: W | AE3: H 125 X 125 X 6.5 X 9 | AF3: W | AH3: W250X250X80 | AI3: W | AK3: W5X5X16 | AL3: W | AN3: W130X130X23.8 | AO3: W | AQ3: RHHF60X40X3 | AR3: B | AT3: HW125X125X6.5X9 | AU3: W | AW3: HS305X305X13 | AX3: B | AZ3: HS305X305X13 | BA3: B | BC3: TUBO60X60X4 | BD3: B | BF3: ISB25X25X3.2 | BG3: B | BI3: HEA320 | BJ3: HE | BL3: H1000X400X19X36 | BM3: W | BO3: B 40X40X2.3 | BP3: B | BR3: SHS40X40X3 | BS3: B | BU3: Тп50x25x2,5 | BV3: HSS | BX3: 03_Tk_40x2,5 | BY3: HSS | CA3: 03_Тк_40х2,5 | CB3: HSS | CD3: 50X25X2.6RHS | CE3: RHS | CG3: =D1 -> AISC14 | CK3: =IF(OFFSET(A3,0,($CJ$2-1)*3)=0,"",OFFSET(A3,0,($CJ$2-1)*3)) -> TUBO60X60X4
A4: 250X150X5RHS | B4: B | D4: HSS20X12X3/8 | E4: B | G4: HSS508X304.8X9.5 | H4: B | J4: HSS24X12X1/2 | K4: B | M4: HSS609.6X304.8X12.7 | N4: B | P4: RHS26X13X2 | Q4: B | S4: UB178X102X19 | T4: W | V4: UB610X305X149 | W4: W | Y4: IPE80 | Z4: W | AB4: IPE600 | AC4: W | AE4: H 150 X 75 X 5 X 7 | AF4: W | AH4: W250X250X89 | AI4: W | AK4: W5X5X19 | AL4: W | AN4: W130X130X28.1 | AO4: W | AQ4: RHHF60X40X4 | AR4: B | AT4: HW150X150X7X10 | AU4: W | AW4: HS305X305X9.5 | AX4: B | AZ4: HS305X305X9.5 | BA4: B | BC4: TUBO60X60X4.5 | BD4: B | BF4: ISB38X38X2.6 | BG4: B | BI4: HEB320 | BJ4: HE | BL4: H1000X400X19X32 | BM4: W | BO4: B 50X50X1.6 | BP4: B | BR4: SHS40X40X3.2 | BS4: B | BU4: Тп50x25x3 | BV4: HSS | BX4: 03_Tk_40x3 | BY4: HSS | CA4: 03_Тк_40х3 | CB4: HSS | CD4: 50X25X3.2RHS | CE4: RHS | CG4: =G1 -> AISC14M | CK4: TUBO60X60X4.5
A5: 200X100X9RHS | B5: B | D5: HSS20X12X5/16 | E5: B | G5: HSS508X304.8X7.9 | H5: B | J5: HSS22X22X7/8 | K5: B | M5: HSS558.8X558.8X22.2 | N5: B | P5: RHS30X20X1.6 | Q5: B | S5: UB203X102X23 | T5: W | V5: UB610X305X179 | W5: W | Y5: IPEAA100 | Z5: W | AB5: IPEO600 | AC5: W | AE5: H 150 X 150 X 7 X 10 | AF5: W | AH5: W250X250X101 | AI5: W | AK5: W6X4X9 | AL5: W | AN5: W150X100X13.5 | AO5: W | AQ5: RHHF60X40X5 | AR5: B | AT5: HW175X175X7.5X11 | AU5: W | AW5: HS305X305X8.0 | AX5: B | AZ5: HS305X305X8.0 | BA5: B | BC5: TUBO60X60X5 | BD5: B | BF5: ISB38X38X3.2 | BG5: B | BI5: HEM320 | BJ5: HE | BL5: H1000X400X19X28 | BM5: W | BO5: B 50X50X2.3 | BP5: B | BR5: SHS40X40X3.6 | BS5: B | BU5: Тп50x25x3,5 | BV5: HSS | BX5: 03_Tk_40x3,5 | BY5: HSS | CA5: 03_Тк_40х3,5 | CB5: HSS | CD5: 50X25X4.0RHS | CE5: RHS | CG5: =J1 -> AISC15 | CK5: TUBO60X60X5
A6: 200X100X6RHS | B6: B | D6: HSS20X8X5/8 | E6: B | G6: HSS508X203.2X15.9 | H6: B | J6: HSS22X22X3/4 | K6: B | M6: HSS558.8X558.8X19 | N6: B | P6: RHS30X20X1.8 | Q6: B | S6: UB203X133X25 | T6: W | V6: UB610X305X238 | W6: W | Y6: IPEA100 | Z6: W | AB6: IPE750X173 | AC6: W | AE6: H 175 X 175 X 7.5 X 11 | AF6: W | AH6: W250X250X115 | AI6: W | AK6: W6X4X12 | AL6: W | AN6: W150X100X18.0 | AO6: W | AQ6: RHHF80X40X3.2 | AR6: B | AT6: HW200X200X8X12 | AU6: W | AW6: HS305X305X6.4 | AX6: B | AZ6: HS305X305X6.4 | BA6: B | BC6: TUBO60X60X5.4 | BD6: B | BF6: ISB38X38X4.0 | BG6: B | BI6: HEAA600 | BJ6: HE | BL6: H1000X400X19X25 | BM6: W | BO6: B 50X50X3.2 | BP6: B | BR6: SHS40X40X4 | BS6: B | BU6: Тп50x25x4 | BV6: HSS | BX6: 03_Tk_40x4 | BY6: HSS | CA6: 03_Тк_40х4 | CB6: HSS | CD6: 60X40X2.6RHS | CE6: RHS | CG6: =M1 -> AISC15M | CK6: TUBO60X60X5.4
A7: 200X100X5RHS | B7: B | D7: HSS20X8X1/2 | E7: B | G7: HSS508X203.2X12.7 | H7: B | J7: HSS20X20X7/8 | K7: B | M7: HSS508X508X22.2 | N7: B | P7: RHS30X20X2 | Q7: B | S7: UB203X133X30 | T7: W | V7: UB686X254X152 | W7: W | Y7: IPE100 | Z7: W | AB7: IPE750X196 | AC7: W | AE7: H 200 X 100 X 4.5 X 7 | AF7: W | AH7: W250X250X131 | AI7: W | AK7: W6X4X16 | AL7: W | AN7: W150X100X24.0 | AO7: W | AQ7: RHHF80X40X4 | AR7: B | AT7: HW200X200X12X12 | AU7: W | AW7: HS254X254X16 | AX7: B | AZ7: HS254X254X16 | BA7: B | BC7: TUBO60X60X5.9 | BD7: B | BF7: ISB49.5X49.5X2.6 | BG7: B | BI7: HEA600 | BJ7: HE | BL7: H1000X400X16X32 | BM7: W | BO7: B 60X60X1.6 | BP7: B | BR7: SHS40X40X5 | BS7: B | BU7: Тп50x30x2 | BV7: HSS | BX7: 03_Tk_50x2 | BY7: HSS | CA7: 03_Тк_50х2 | CB7: HSS | CD7: 60X40X2.9RHS | CE7: RHS | CG7: =P1 -> APL_Steel | CK7: TUBO60X60X5.9
A8: 200X100X4RHS | B8: B | D8: HSS20X8X3/8 | E8: B | G8: HSS508X203.2X9.5 | H8: B | J8: HSS20X20X3/4 | K8: B | M8: HSS508X508X19 | N8: B | P8: RHS30X20X2.2 | Q8: B | S8: UB254X102X22 | T8: W | V8: UB686X254X170 | W8: W | Y8: IPEAA120 | Z8: W | AB8: HE260A | AC8: W | AE8: H 200 X 100 X 5.5 X 8 | AF8: W | AH8: W250X250X149 | AI8: W | AK8: W6X6X15 | AL8: W | AN8: W150X150X22.5 | AO8: W | AQ8: RHHF80X40X5 | AR8: B | AT8: HW250X250X11X11 | AU8: W | AW8: HS254X254X13 | AX8: B | AZ8: HS254X254X13 | BA8: B | BC8: TUBO60X60X7.1 | BD8: B | BF8: ISB49.5X49.5X2.9 | BG8: B | BI8: HEB600 | BJ8: HE | BL8: H1000X400X16X28 | BM8: W | BO8: B 60X60X2.3 | BP8: B | BR8: SHS50X50X2.5 | BS8: B | BU8: Тп50x30x2,5 | BV8: HSS | BX8: 03_Tk_50x2,5 | BY8: HSS | CA8: 03_Тк_50х2,5 | CB8: HSS | CD8: 60X40X3.6RHS | CE8: RHS | CG8: =S1 -> ArcelorMittal_British | CK8: TUBO60X60X7.1
A9: 200X100X3RHS | B9: B | D9: HSS20X8X5/16 | E9: B | G9: HSS508X203.2X7.9 | H9: B | J9: HSS20X20X5/8 | K9: B | M9: HSS508X508X15.9 | N9: B | P9: RHS30X20X2.5 | Q9: B | S9: UB254X102X25 | T9: W | V9: UB762X267X173 | W9: W | Y9: IPEA120 | Z9: W | AB9: HE260B | AC9: W | AE9: H 200 X 150 X 6 X 9 | AF9: W | AH9: W250X250X167 | AI9: W | AK9: W6X6X20 | AL9: W | AN9: W150X150X29.8 | AO9: W | AQ9: RHHF80X40X6.3 | AR9: B | AT9: HW250X250X9X14 | AU9: W | AW9: HS254X254X9.5 | AX9: B | AZ9: HS254X254X9.5 | BA9: B | BC9: TUBO60X60X8 | BD9: B | BF9: ISB49.5X49.5X3.6 | BG9: B | BI9: HEM600 | BJ9: HE | BL9: H1000X400X16X25 | BM9: W | BO9: B 60X60X3.2 | BP9: B | BR9: SHS50X50X3 | BS9: B | BU9: Тп50x30x3 | BV9: HSS | BX9: 03_Tk_50x3 | BY9: HSS | CA9: 03_Тк_50х3 | CB9: HSS | CD9: 60X40X4.5RHS | CE9: RHS | CG9: =V1 -> ArcelorMittal_BritishHISTAR | CK9: TUBO60X60X8
A10: 185X65X6RHS | B10: B | D10: HSS20X4X1/2 | E10: B | G10: HSS508X101.6X12.7 | H10: B | J10: HSS20X20X1/2 | K10: B | M10: HSS508X508X12.7 | N10: B | P10: RHS40X10X1.6 | Q10: B | S10: UB254X102X28 | T10: W | V10: UB762X267X197 | W10: W | Y10: IPE120 | Z10: W | AB10: HE260M | AC10: W | AE10: H 200 X 200 X 8 X 12 | AF10: W | AH10: W310X310X97 | AI10: W | AK10: W6X6X25 | AL10: W | AN10: W150X150X37.1 | AO10: W | AQ10: RHHF80X40X8 | AR10: B | AT10: HW250X250X14X14 | AU10: W | AW10: HS254X254X8.0 | AX10: B | AZ10: HS254X254X8.0 | BA10: B | BC10: TUBO60X60X10 | BD10: B | BF10: ISB49.5X49.5X4.5 | BG10: B | BI10: HEAA700 | BJ10: HE | BL10: H1000X400X16X22 | BM10: W | BO10: B 75X75X1.6 | BP10: B | BR10: SHS50X50X3.2 | BS10: B | BU10: Тп50x30x3,5 | BV10: HSS | BX10: 03_Tk_50x3,5 | BY10: HSS | CA10: 03_Тк_50х3,5 | CB10: HSS | CD10: 66X33X2.6RHS | CE10: RHS | CG10: =Y1 -> ArcelorMittal_Europe | CK10: TUBO60X60X10
A11: 185X65X5RHS | B11: B | D11: HSS20X4X3/8 | E11: B | G11: HSS508X101.6X9.5 | H11: B | J11: HSS20X12X3/4 | K11: B | M11: HSS508X304.8X19 | N11: B | P11: RHS40X10X1.8 | Q11: B | S11: UB254X146X31 | T11: W | V11: UB838X292X194 | W11: W | Y11: IPEAA140 | Z11: W | AB11: HE280A | AC11: W | AE11: H 250 X 125 X 5 X 8 | AF11: W | AH11: W310X310X107 | AI11: W | AK11: W8X4X10 | AL11: W | AN11: W200X100X15.0 | AO11: W | AQ11: RHHF90X50X3.6 | AR11: B | AT11: HW300X300X12X12 | AU11: W | AW11: HS254X254X6.4 | AX11: B | AZ11: HS254X254X6.4 | BA11: B | BC11: TUBO60X42X3.6 | BD11: B | BF11: ISB72X72X3.2 | BG11: B | BI11: HEA700 | BJ11: HE | BL11: H1000X350X19X40 | BM11: W | BO11: B 75X75X2.3 | BP11: B | BR11: SHS50X50X3.6 | BS11: B | BU11: Тп50x30x4 | BV11: HSS | BX11: 03_Tk_50x4 | BY11: HSS | CA11: 03_Тк_50х4 | CB11: HSS | CD11: 66X33X2.9RHS | CE11: RHS | CG11: =AB1 -> ArcelorMittal_EuropeHISTAR | CK11: TUBO60X42X3.6
A12: 185X65X4RHS | B12: B | D12: HSS20X4X5/16 | E12: B | G12: HSS508X101.6X7.9 | H12: B | J12: HSS20X12X5/8 | K12: B | M12: HSS508X304.8X15.9 | N12: B | P12: RHS40X10X2 | Q12: B | S12: UB254X146X37 | T12: W | V12: UB838X292X226 | W12: W | Y12: IPEA140 | Z12: W | AB12: HE280B | AC12: W | AE12: H 250 X 125 X 6 X 9 | AF12: W | AH12: W310X310X117 | AI12: W | AK12: W8X4X13 | AL12: W | AN12: W200X100X19.3 | AO12: W | AQ12: RHHF90X50X5 | AR12: B | AT12: HW300X300X10X15 | AU12: W | AW12: HS203X203X16 | AX12: B | AZ12: HS203X203X16 | BA12: B | BC12: TUBO60X42X4 | BD12: B | BF12: ISB72X72X4.0 | BG12: B | BI12: HEB700 | BJ12: HE | BL12: H1000X350X19X36 | BM12: W | BO12: B 75X75X3.2 | BP12: B | BR12: SHS50X50X4 | BS12: B | BU12: Тп50x30x5 | BV12: HSS | BX12: 03_Tk_50x4,5 | BY12: HSS | CA12: 03_Тк_50х4,5 | CB12: HSS | CD12: 66X33X3.6RHS | CE12: RHS | CG12: =AE1 -> ArcelorMittal_Japan | CK12: TUBO60X42X4
A13: 185X65X3RHS | B13: B | D13: HSS20X4X1/4 | E13: B | G13: HSS508X101.6X6.4 | H13: B | J13: HSS20X12X1/2 | K13: B | M13: HSS508X304.8X12.7 | N13: B | P13: RHS40X20X1.6 | Q13: B | S13: UB254X146X43 | T13: W | V13: UB914X305X224 | W13: W | Y13: IPE140 | Z13: W | AB13: HE280M | AC13: W | AE13: H 250 X 250 X 9 X 14 | AF13: W | AH13: W310X310X129 | AI13: W | AK13: W8X4X15 | AL13: W | AN13: W200X100X22.5 | AO13: W | AQ13: RHHF90X50X6.3 | AR13: B | AT13: HW300X300X15X15 | AU13: W | AW13: HS203X203X13 | AX13: B | AZ13: HS203X203X13 | BA13: B | BC13: TUBO60X42X4.5 | BD13: B | BF13: ISB72X72X4.8 | BG13: B | BI13: HEM700 | BJ13: HE | BL13: H1000X350X19X32 | BM13: W | BO13: B 75X75X4.5 | BP13: B | BR13: SHS50X50X5 | BS13: B | BU13: Тп50x40x2 | BV13: HSS | BX13: 03_Tk_50x5 | BY13: HSS | CA13: 03_Тк_50х5 | CB13: HSS | CD13: 66X33X4.5RHS | CE13: RHS | CG13: =AH1 -> ArcelorMittal_US_ASTM-A913M | CK13: TUBO60X42X4.5
A14: 152X76X6RHS | B14: B | D14: HSS18X6X5/8 | E14: B | G14: HSS457.2X152.4X15.9 | H14: B | J14: HSS20X12X3/8 | K14: B | M14: HSS508X304.8X9.5 | N14: B | P14: RHS40X20X1.8 | Q14: B | S14: UB305X102X25 | T14: W | V14: UB914X305X238 | W14: W | Y14: IPEAA160 | Z14: W | AB14: HE300A | AC14: W | AE14: H 300 X 150 X 5.5 X 8 | AF14: W | AH14: W310X310X143 | AI14: W | AK14: W8X5.25X14 | AL14: W | AN14: W200X135X21.4 | AO14: W | AQ14: RHHF100X50X3 | AR14: B | AT14: HW350X350X13X13 | AU14: W | AW14: HS203X203X9.5 | AX14: B | AZ14: HS203X203X9.5 | BA14: B | BC14: TUBO60X42X5 | BD14: B | BF14: ISB91.5X91.5X3.6 | BG14: B | BI14: HEAA800 | BJ14: HE | BL14: H1000X350X19X28 | BM14: W | BO14: B 80X80X2.3 | BP14: B | BR14: SHS50X50X6 | BS14: B | BU14: Тп50x40x2,5 | BV14: HSS | BX14: 03_Tk_50x5,5 | BY14: HSS | CA14: 03_Тк_50х5,5 | CB14: HSS | CD14: 80X40X2.6RHS | CE14: RHS | CG14: =AK1 -> ArcelorMittal_US_ASTM-A992 | CK14: TUBO60X42X5
A15: 152X76X5RHS | B15: B | D15: HSS18X6X1/2 | E15: B | G15: HSS457.2X152.4X12.7 | H15: B | J15: HSS20X12X5/16 | K15: B | M15: HSS508X304.8X7.9 | N15: B | P15: RHS40X20X2 | Q15: B | S15: UB305X102X28 | T15: W | V15: UB914X305X253 | W15: W | Y15: IPEA160 | Z15: W | AB15: HE300B | AC15: W | AE15: H 300 X 150 X 6.5 X 9 | AF15: W | AH15: W310X310X158 | AI15: W | AK15: W8X5.25X18 | AL15: W | AN15: W200X135X26.6 | AO15: W | AQ15: RHHF100X50X3.2 | AR15: B | AT15: HW350X350X10X16 | AU15: W | AW15: HS203X203X8.0 | AX15: B | AZ15: HS203X203X8.0 | BA15: B | BC15: TUBO60X42X5.4 | BD15: B | BF15: ISB91.5X91.5X4.5 | BG15: B | BI15: HEA800 | BJ15: HE | BL15: H1000X350X19X25 | BM15: W | BO15: B 80X80X3.2 | BP15: B | BR15: SHS50X50X6.3 | BS15: B | BU15: Тп50x40x3 | BV15: HSS | BX15: 03_Tk_50x6 | BY15: HSS | CA15: 03_Тк_50х6 | CB15: HSS | CD15: 80X40X2.9RHS | CE15: RHS | CG15: =AN1 -> ArcelorMittal_US_ASTM-A992M | CK15: TUBO60X42X5.4
A16: 150X100X9RHS | B16: B | D16: HSS18X6X3/8 | E16: B | G16: HSS457.2X152.4X9.5 | H16: B | J16: HSS20X8X5/8 | K16: B | M16: HSS508X203.2X15.9 | N16: B | P16: RHS40X20X2.2 | Q16: B | S16: UB305X102X33 | T16: W | V16: UB914X305X271 | W16: W | Y16: IPE160 | Z16: W | AB16: HE300M | AC16: W | AE16: H 300 X 200 X 8 X 12 | AF16: W | AH16: W310X310X179 | AI16: W | AK16: W8X5.25X21 | AL16: W | AN16: W200X135X31.3 | AO16: W | AQ16: RHHF100X50X4 | AR16: B | AT16: HW350X350X16X16 | AU16: W | AW16: HS203X203X6.4 | AX16: B | AZ16: HS203X203X6.4 | BA16: B | BC16: TUBO60X42X5.9 | BD16: B | BF16: ISB91.5X91.5X5.4 | BG16: B | BI16: HEB800 | BJ16: HE | BL16: H1000X350X16X32 | BM16: W | BO16: B 80X80X4.5 | BP16: B | BR16: SHS60X60X3 | BS16: B | BU16: Тп50x40x3,5 | BV16: HSS | BX16: 03_Tk_60x2 | BY16: HSS | CA16: 03_Тк_60х2 | CB16: HSS | CD16: 80X40X3.2RHS | CE16: RHS | CG16: =AQ1 -> BSShapes2006 | CK16: TUBO60X42X5.9
A17: 150X100X6RHS | B17: B | D17: HSS18X6X5/16 | E17: B | G17: HSS457.2X152.4X7.9 | H17: B | J17: HSS20X8X1/2 | K17: B | M17: HSS508X203.2X12.7 | N17: B | P17: RHS40X20X2.5 | Q17: B | S17: UB305X127X37 | T17: W | V17: UB914X305X289 | W17: W | Y17: IPEAA180 | Z17: W | AB17: HE320A | AC17: W | AE17: H 300 X 300 X 10 X 15 | AF17: W | AH17: W310X310X202 | AI17: W | AK17: W8X6.5X24 | AL17: W | AN17: W200X165X35.9 | AO17: W | AQ17: RHHF100X50X5 | AR17: B | AT17: HW350X350X12X19 | AU17: W | AW17: HS178X178X16 | AX17: B | AZ17: HS178X178X16 | BA17: B | BC17: TUBO60X42X7.1 | BD17: B | BF17: ISB113.5X113.5X4.8 | BG17: B | BI17: HEM800 | BJ17: HE | BL17: H1000X350X16X28 | BM17: W | BO17: B 90X90X2.3 | BP17: B | BR17: SHS60X60X3.2 | BS17: B | BU17: Тп50x40x4 | BV17: HSS | BX17: 03_Tk_60x2,5 | BY17: HSS | CA17: 03_Тк_60х2,5 | CB17: HSS | CD17: 80X40X4.0RHS | CE17: RHS | CG17: =AT1 -> ChineseGB08 | CK17: TUBO60X42X7.1
A18: 150X100X5RHS | B18: B | D18: HSS18X6X1/4 | E18: B | G18: HSS457.2X152.4X6.4 | H18: B | J18: HSS20X8X3/8 | K18: B | M18: HSS508X203.2X9.5 | N18: B | P18: RHS40X25X1.6 | Q18: B | S18: UB305X127X42 | T18: W | V18: UB914X305X313 | W18: W | Y18: IPEA180 | Z18: W | AB18: HE320B | AC18: W | AE18: H 350 X 175 X 6 X 9 | AF18: W | AH18: W310X310X226 | AI18: W | AK18: W8X6.5X28 | AL18: W | AN18: W200X165X41.7 | AO18: W | AQ18: RHHF100X50X6.3 | AR18: B | AT18: HW350X350X19X19 | AU18: W | AW18: HS178X178X13 | AX18: B | AZ18: HS178X178X13 | BA18: B | BC18: TUBO60X42X8 | BD18: B | BF18: ISB113.5X113.5X5.4 | BG18: B | BI18: HE800X373 | BJ18: HE | BL18: H1000X350X16X25 | BM18: W | BO18: B 90X90X3.2 | BP18: B | BR18: SHS60X60X3.6 | BS18: B | BU18: Тп50x40x4,5 | BV18: HSS | BX18: 03_Tk_60x3 | BY18: HSS | CA18: 03_Тк_60х3 | CB18: HSS | CD18: 80X40X4.8RHS | CE18: RHS | CG18: =AW1 -> CISC9 | CK18: TUBO60X42X8
A19: 150X100X4RHS | B19: B | D19: HSS16X16X5/8 | E19: B | G19: HSS406.4X406.4X15.9 | H19: B | J19: HSS20X8X5/16 | K19: B | M19: HSS508X203.2X7.9 | N19: B | P19: RHS40X25X1.8 | Q19: B | S19: UB305X127X48 | T19: W | V19: UB914X305X345 | W19: W | Y19: IPE180 | Z19: W | AB19: HE320M | AC19: W | AE19: H 350 X 175 X 7 X 11 | AF19: W | AH19: W310X310X253 | AI19: W | AK19: W8X8X31 | AL19: W | AN19: W200X200X46.1 | AO19: W | AQ19: RHHF100X50X8 | AR19: B | AT19: HW400X400X15X15 | AU19: W | AW19: HS178X178X9.5 | AX19: B | AZ19: HS178X178X9.5 | BA19: B | BC19: TUBO60X30X3.6 | BD19: B | BF19: ISB132X132X4.8 | BG19: B | BI19: HEAA900 | BJ19: HE | BL19: H1000X350X16X22 | BM19: W | BO19: B 100X100X2.3 | BP19: B | BR19: SHS60X60X4 | BS19: B | BU19: Тп50x40x5 | BV19: HSS | BX19: 03_Tk_60x3,5 | BY19: HSS | CA19: 03_Тк_60х3,5 | CB19: HSS | CD19: 96X48X3.2RHS | CE19: RHS | CG19: =AZ1 -> CISC10 | CK19: TUBO60X30X3.6
A20: 150X50X6RHS | B20: B | D20: HSS16X16X1/2 | E20: B | G20: HSS406.4X406.4X12.7 | H20: B | J20: HSS20X4X1/2 | K20: B | M20: HSS508X101.6X12.7 | N20: B | P20: RHS40X25X2 | Q20: B | S20: UB305X165X40 | T20: W | V20: UB914X305X381 | W20: W | Y20: IPEO180 | Z20: W | AB20: HE340A | AC20: W | AE20: H 350 X 350 X 10 X 16 | AF20: W | AH20: W310X310X283 | AI20: W | AK20: W8X8X35 | AL20: W | AN20: W200X200X52 | AO20: W | AQ20: RHHF100X60X3.6 | AR20: B | AT20: HW400X400X11X18 | AU20: W | AW20: HS178X178X8.0 | AX20: B | AZ20: HS178X178X8.0 | BA20: B | BC20: TUBO60X30X4 | BD20: B | BF20: ISB132X132X5.4 | BG20: B | BI20: HEA900 | BJ20: HE | BL20: H1000X300X19X40 | BM20: W | BO20: B 100X100X3.2 | BP20: B | BR20: SHS60X60X5 | BS20: B | BU20: Тп60x30x2 | BV20: HSS | BX20: 03_Tk_60x4 | BY20: HSS | CA20: 03_Тк_60х4 | CB20: HSS | CD20: 96X48X4.0RHS | CE20: RHS | CG20: =BC1 -> Euro | CK20: TUBO60X30X4
A21: 150X50X5RHS | B21: B | D21: HSS16X16X3/8 | E21: B | G21: HSS406.4X406.4X9.5 | H21: B | J21: HSS20X4X3/8 | K21: B | M21: HSS508X101.6X9.5 | N21: B | P21: RHS40X25X2.2 | Q21: B | S21: UB305X165X46 | T21: W | V21: UB914X305X425 | W21: W | Y21: IPEAA200 | Z21: W | AB21: HE340B | AC21: W | AE21: H 350 X 350 X 12 X 19 | AF21: W | AH21: W310X310X313 | AI21: W | AK21: W8X8X40 | AL21: W | AN21: W200X200X59 | AO21: W | AQ21: RHHF100X60X5 | AR21: B | AT21: HW400X400X18X18 | AU21: W | AW21: HS178X178X6.4 | AX21: B | AZ21: HS178X178X6.4 | BA21: B | BC21: TUBO60X30X4.5 | BD21: B | BF21: ISB50X25X2.6 | BG21: B | BI21: HEB900 | BJ21: HE | BL21: H1000X300X19X36 | BM21: W | BO21: B 100X100X4 | BP21: B | BR21: SHS60X60X6 | BS21: B | BU21: Тп60x30x2,5 | BV21: HSS | BX21: 03_Tk_60x4,5 | BY21: HSS | CA21: 03_Тк_60х4,5 | CB21: HSS | CD21: 96X48X4.8RHS | CE21: RHS | CG21: =BF1 -> Indian | CK21: TUBO60X30X4.5
A22: 150X50X4RHS | B22: B | D22: HSS16X16X5/16 | E22: B | G22: HSS406.4X406.4X7.9 | H22: B | J22: HSS20X4X5/16 | K22: B | M22: HSS508X101.6X7.9 | N22: B | P22: RHS40X25X2.5 | Q22: B | S22: UB305X165X54 | T22: W | V22: UB914X305X474 | W22: W | Y22: IPEA200 | Z22: W | AB22: HE340M | AC22: W | AE22: H 400 X 200 X 7 X 11 | AF22: W | AH22: W310X310X342 | AI22: W | AK22: W8X8X48 | AL22: W | AN22: W200X200X71 | AO22: W | AQ22: RHHF100X60X6.3 | AR22: B | AT22: HW400X400X13X21 | AU22: W | AW22: HS178X178X4.8 | AX22: B | AZ22: HS178X178X4.8 | BA22: B | BC22: TUBO60X30X5 | BD22: B | BF22: ISB50X25X3.2 | BG22: B | BI22: HEM900 | BJ22: HE | BL22: H1000X300X19X32 | BM22: W | BO22: B 100X100X4.5 | BP22: B | BR22: SHS60X60X6.3 | BS22: B | BU22: Тп60x30x3 | BV22: HSS | BX22: 03_Tk_60x5 | BY22: HSS | CA22: 03_Тк_60х5 | CB22: HSS | CD22: 120X60X3.2RHS | CE22: RHS | CG22: =BI1 -> Jindal_Steel | CK22: TUBO60X30X5
A23: 150X50X3RHS | B23: B | D23: HSS16X12X5/8 | E23: B | G23: HSS406.4X304.8X15.9 | H23: B | J23: HSS20X4X1/4 | K23: B | M23: HSS508X101.6X6.4 | N23: B | P23: RHS40X25X2.9 | Q23: B | S23: UB356X127X33 | T23: W | V23: UB914X305X521 | W23: W | Y23: IPE200 | Z23: W | AB23: HE360A | AC23: W | AE23: H 400 X 200 X 8 X 13 | AF23: W | AH23: W360X370X134 | AI23: W | AK23: W8X8X58 | AL23: W | AN23: W200X200X86 | AO23: W | AQ23: RHHF100X60X8 | AR23: B | AT23: HW400X400X21X21 | AU23: W | AW23: HS152X152X13 | AX23: B | AZ23: HS152X152X13 | BA23: B | BC23: TUBO60X30X5.4 | BD23: B | BF23: ISB66X33X2.6 | BG23: B | BI23: IPEA300 | BJ23: IPE | BL23: H1000X300X19X28 | BM23: W | BO23: B 100X100X6 | BP23: B | BR23: SHS60X60X8 | BS23: B | BU23: Тп60x30x3,5 | BV23: HSS | BX23: 03_Tk_60x5,5 | BY23: HSS | CA23: 03_Тк_60х5,5 | CB23: HSS | CD23: 120X60X3.6RHS | CE23: RHS | CG23: =BL1 -> JIS-G-3192-2014 | CK23: TUBO60X30X5.4
A24: 150X50X2.5RHS | B24: B | D24: HSS16X12X1/2 | E24: B | G24: HSS406.4X304.8X12.7 | H24: B | J24: HSS18X18X7/8 | K24: B | M24: HSS457.2X457.2X22.2 | N24: B | P24: RHS50X25X1.6 | Q24: B | S24: UB356X127X39 | T24: W | V24: UB914X305X576 | W24: W | Y24: IPEO200 | Z24: W | AB24: HE360B | AC24: W | AE24: H 400 X 300 X 10 X 16 | AF24: W | AH24: W360X370X147 | AI24: W | AK24: W8X8X67 | AL24: W | AN24: W200X200X100 | AO24: W | AQ24: RHHF120X60X3.6 | AR24: B | AT24: HW400X400X18X28 | AU24: W | AW24: HS152X152X9.5 | AX24: B | AZ24: HS152X152X9.5 | BA24: B | BC24: TUBO60X30X5.9 | BD24: B | BF24: ISB66X33X2.9 | BG24: B | BI24: IPE300 | BJ24: IPE | BL24: H1000X300X19X25 | BM24: W | BO24: B 100X100X9 | BP24: B | BR24: SHS70X70X3 | BS24: B | BU24: Тп60x30x4 | BV24: HSS | BX24: 03_Tk_60x6 | BY24: HSS | CA24: 03_Тк_60х6 | CB24: HSS | CD24: 120X60X4.5RHS | CE24: RHS | CG24: =BR1 -> Nordic | CK24: TUBO60X30X5.9
A25: 150X50X2RHS | B25: B | D25: HSS16X12X3/8 | E25: B | G25: HSS406.4X304.8X9.5 | H25: B | J25: HSS18X18X3/4 | K25: B | M25: HSS457.2X457.2X19 | N25: B | P25: RHS50X25X2 | Q25: B | S25: UB356X171X45 | T25: W | V25: UB914X419X343 | W25: W | Y25: IPEAA220 | Z25: W | AB25: HE360M | AC25: W | AE25: H 400 X 400 X 13 X 21 | AF25: W | AH25: W360X370X162 | AI25: W | AK25: W10X4X12 | AL25: W | AN25: W250X100X17.9 | AO25: W | AQ25: RHHF120X60X5 | AR25: B | AT25: HW400X400X20X35 | AU25: W | AW25: HS152X152X8.0 | AX25: B | AZ25: HS152X152X8.0 | BA25: B | BC25: TUBO70X70X3.6 | BD25: B | BF25: ISB66X33X3.6 | BG25: B | BI25: IPEO300 | BJ25: IPE | BL25: H1000X300X16X32 | BM25: W | BO25: B 100X100X12 | BP25: B | BR25: SHS70X70X3.2 | BS25: B | BU25: Тп60x30x4,5 | BV25: HSS | BX25: 03_Tk_70x2 | BY25: HSS | CA25: 03_Тк_70х2 | CB25: HSS | CD25: 120X60X5.4RHS | CE25: RHS | CG25: =BU1 -> Russian | CK25: TUBO70X70X3.6
A26: 125X75X6RHS | B26: B | D26: HSS16X12X5/16 | E26: B | G26: HSS406.4X304.8X7.9 | H26: B | J26: HSS18X18X5/8 | K26: B | M26: HSS457.2X457.2X15.9 | N26: B | P26: RHS50X25X2.2 | Q26: B | S26: UB356X171X51 | T26: W | V26: UB914X419X388 | W26: W | Y26: IPEA220 | Z26: W | AB26: HE400A | AC26: W | AE26: H 400 X 400 X 21 X 21 | AF26: W | AH26: W360X370X179 | AI26: W | AK26: W10X4X15 | AL26: W | AN26: W250X100X22.3 | AO26: W | AQ26: RHHF120X60X6.3 | AR26: B | AT26: HW400X400X30X50 | AU26: W | AW26: HS152X152X6.4 | AX26: B | AZ26: HS152X152X6.4 | BA26: B | BC26: TUBO70X70X4 | BD26: B | BF26: ISB66X33X4.5 | BG26: B | BI26: IPEA360 | BJ26: IPE | BL26: H1000X300X16X28 | BM26: W | BO26: B 125X125X3.2 | BP26: B | BR26: SHS70X70X3.6 | BS26: B | BU26: Тп60x30x5 | BV26: HSS | BX26: 03_Tk_70x2,5 | BY26: HSS | CA26: 03_Тк_70х2,5 | CB26: HSS | CD26: 145X82X4.8RHS | CE26: RHS | CG26: =BX1 -> Russian2020_en | CK26: TUBO70X70X4
A27: 125X75X5RHS | B27: B | D27: HSS16X8X5/8 | E27: B | G27: HSS406.4X203.2X15.9 | H27: B | J27: HSS18X18X1/2 | K27: B | M27: HSS457.2X457.2X12.7 | N27: B | P27: RHS50X25X2.5 | Q27: B | S27: UB356X171X57 | T27: W | V27: UB1016X305X249 | W27: W | Y27: IPE220 | Z27: W | AB27: HE400B | AC27: W | AE27: H 400 X 400 X 18 X 28 | AF27: W | AH27: W360X370X196 | AI27: W | AK27: W10X4X17 | AL27: W | AN27: W250X100X25.3 | AO27: W | AQ27: RHHF120X60X8 | AR27: B | AT27: HW400X400X45X70 | AU27: W | AW27: HS152X152X4.8 | AX27: B | AZ27: HS152X152X4.8 | BA27: B | BC27: TUBO70X70X4.5 | BD27: B | BF27: ISB96X48X3.2 | BG27: B | BI27: IPE360 | BJ27: IPE | BL27: H1000X300X16X25 | BM27: W | BO27: B 125X125X4.5 | BP27: B | BR27: SHS70X70X4 | BS27: B | BU27: Тп60x30x5,5 | BV27: HSS | BX27: 03_Tk_70x3 | BY27: HSS | CA27: 03_Тк_70х3 | CB27: HSS | CD27: 145X82X5.4RHS | CE27: RHS | CG27: =CA1 -> Russian2020_ru | CK27: TUBO70X70X4.5
A28: 125X75X4RHS | B28: B | D28: HSS16X8X1/2 | E28: B | G28: HSS406.4X203.2X12.7 | H28: B | J28: HSS18X6X5/8 | K28: B | M28: HSS457.2X152.4X15.9 | N28: B | P28: RHS50X25X2.9 | Q28: B | S28: UB356X171X67 | T28: W | V28: UB1016X305X272 | W28: W | Y28: IPEO220 | Z28: W | AB28: HE400M | AC28: W | AE28: H 400 X 400 X 20 X 35 | AF28: W | AH28: W360X410X216 | AI28: W | AK28: W10X4X19 | AL28: W | AN28: W250X100X28.4 | AO28: W | AQ28: RHHF120X80X5 | AR28: B | AT28: HW500X500X15X20 | AU28: W | AW28: HS127X127X13 | AX28: B | AZ28: HS127X127X13 | BA28: B | BC28: TUBO70X70X5 | BD28: B | BF28: ISB96X48X4.0 | BG28: B | BI28: IPEO360 | BJ28: IPE | BL28: H1000X300X16X22 | BM28: W | BO28: B 125X125X5 | BP28: B | BR28: SHS70X70X5 | BS28: B | BU28: Тп60x30x6 | BV28: HSS | BX28: 03_Tk_70x3,5 | BY28: HSS | CA28: 03_Тк_70х3,5 | CB28: HSS | CD28: 172X92X4.8RHS | CE28: RHS | CG28: =CD1 -> TATA_Steel | CK28: TUBO70X70X5
A29: 125X75X3RHS | B29: B | D29: HSS16X8X3/8 | E29: B | G29: HSS406.4X203.2X9.5 | H29: B | J29: HSS18X6X1/2 | K29: B | M29: HSS457.2X152.4X12.7 | N29: B | P29: RHS50X25X3.2 | Q29: B | S29: UB406X140X39 | T29: W | V29: UB1016X305X314 | W29: W | Y29: IPEAA240 | Z29: W | AB29: HE450A | AC29: W | AE29: H 400 X 400 X 30 X 50 | AF29: W | AH29: W360X410X237 | AI29: W | AK29: W10X5.75X22 | AL29: W | AN29: W250X145X32.7 | AO29: W | AQ29: RHHF120X80X6.3 | AR29: B | AT29: HW500X500X15X25 | AU29: W | AW29: HS127X127X9.5 | AX29: B | AZ29: HS127X127X9.5 | BA29: B | BC29: TUBO70X70X5.4 | BD29: B | BF29: ISB96X48X4.8 | BG29: B | BI29: IPEA400 | BJ29: IPE | BL29: H1000X250X19X36 | BM29: W | BO29: B 125X125X6 | BP29: B | BR29: SHS70X70X6 | BS29: B | BU29: Тп60x40x2 | BV29: HSS | BX29: 03_Tk_70x4 | BY29: HSS | CA29: 03_Тк_70х4 | CB29: HSS | CD29: 172X92X5.4RHS | CE29: RHS | CK29: TUBO70X70X5.4
A30: 125X75X2.8RHS | B30: B | D30: HSS16X8X5/16 | E30: B | G30: HSS406.4X203.2X7.9 | H30: B | J30: HSS18X6X3/8 | K30: B | M30: HSS457.2X152.4X9.5 | N30: B | P30: RHS50X30X1.6 | Q30: B | S30: UB406X140X46 | T30: W | V30: UB1016X305X350 | W30: W | Y30: IPEA240 | Z30: W | AB30: HE450B | AC30: W | AE30: H 500 X 200 X 9 X 14 | AF30: W | AH30: W360X410X262 | AI30: W | AK30: W10X5.75X26 | AL30: W | AN30: W250X145X38.5 | AO30: W | AQ30: RHHF120X80X8 | AR30: B | AT30: HW500X500X20X25 | AU30: W | AW30: HS127X127X8.0 | AX30: B | AZ30: HS127X127X8.0 | BA30: B | BC30: TUBO70X70X5.9 | BD30: B | BF30: ISB122X61X3.6 | BG30: B | BI30: IPE400 | BJ30: IPE | BL30: H1000X250X19X32 | BM30: W | BO30: B 125X125X9 | BP30: B | BR30: SHS70X70X6.3 | BS30: B | BU30: Тп60x40x2,5 | BV30: HSS | BX30: 03_Tk_70x4,5 | BY30: HSS | CA30: 03_Тк_70х4,5 | CB30: HSS | CD30: 200X100X4.0RHS | CE30: RHS | CK30: TUBO70X70X5.9
A31: 125X75X2.5RHS | B31: B | D31: HSS16X8X1/4 | E31: B | G31: HSS406.4X203.2X6.4 | H31: B | J31: HSS18X6X5/16 | K31: B | M31: HSS457.2X152.4X7.9 | N31: B | P31: RHS50X30X2 | Q31: B | S31: UB406X178X54 | T31: W | V31: UB1016X305X393 | W31: W | Y31: IPE240 | Z31: W | AB31: HE450M | AC31: W | AE31: H 500 X 200 X 10 X 16 | AF31: W | AH31: W360X410X287 | AI31: W | AK31: W10X5.75X30 | AL31: W | AN31: W250X145X44.8 | AO31: W | AQ31: RHHF120X80X10 | AR31: B | AT31: HM150X100X6X9 | AU31: W | AW31: HS127X127X6.4 | AX31: B | AZ31: HS127X127X6.4 | BA31: B | BC31: TUBO70X70X7.1 | BD31: B | BF31: ISB122X61X4.5 | BG31: B | BI31: IPEO400 | BJ31: IPE | BL31: H1000X250X19X28 | BM31: W | BO31: B 125X125X12 | BP31: B | BR31: SHS70X70X8 | BS31: B | BU31: Тп60x40x3 | BV31: HSS | BX31: 03_Tk_70x5 | BY31: HSS | CA31: 03_Тк_70х5 | CB31: HSS | CD31: 200X100X5.0RHS | CE31: RHS | CK31: TUBO70X70X7.1
A32: 125X75X2.3RHS | B32: B | D32: HSS16X4X5/8 | E32: B | G32: HSS406.4X101.6X15.9 | H32: B | J32: HSS18X6X1/4 | K32: B | M32: HSS457.2X152.4X6.4 | N32: B | P32: RHS50X30X2.2 | Q32: B | S32: UB406X178X60 | T32: W | V32: UB1016X305X415 | W32: W | Y32: IPEO240 | Z32: W | AB32: HE500A | AC32: W | AE32: H 500 X 300 X 11 X 15 | AF32: W | AH32: W360X410X314 | AI32: W | AK32: W10X8X33 | AL32: W | AN32: W250X200X49.1 | AO32: W | AQ32: RHHF150X100X5 | AR32: B | AT32: HM200X150X6X9 | AU32: W | AW32: HS127X127X4.8 | AX32: B | AZ32: HS127X127X4.8 | BA32: B | BC32: TUBO70X70X8 | BD32: B | BF32: ISB122X61X5.4 | BG32: B | BI32: IPEA450 | BJ32: IPE | BL32: H1000X250X19X25 | BM32: W | BO32: B 150X150X4.5 | BP32: B | BR32: SHS80X80X3.2 | BS32: B | BU32: Тп60x40x3,5 | BV32: HSS | BX32: 03_Tk_70x5,5 | BY32: HSS | CA32: 03_Тк_70х5,5 | CB32: HSS | CD32: 200X100X6.0RHS | CE32: RHS | CK32: TUBO70X70X8
A33: 125X75X2RHS | B33: B | D33: HSS16X4X1/2 | E33: B | G33: HSS406.4X101.6X12.7 | H33: B | J33: HSS16X16X7/8 | K33: B | M33: HSS406.4X406.4X22.2 | N33: B | P33: RHS50X30X2.5 | Q33: B | S33: UB406X178X67 | T33: W | V33: UB1016X305X438 | W33: W | Y33: IPEA270 | Z33: W | AB33: HE500B | AC33: W | AE33: H 500 X 300 X 11 X 18 | AF33: W | AH33: W360X410X347 | AI33: W | AK33: W10X8X39 | AL33: W | AN33: W250X200X58 | AO33: W | AQ33: RHHF150X100X6.3 | AR33: B | AT33: HM250X175X7X11 | AU33: W | AW33: HS114X114X13 | AX33: B | AZ33: HS114X114X13 | BA33: B | BC33: TUBO70X70X10 | BD33: B | BF33: ISB145X82X4.8 | BG33: B | BI33: IPE450 | BJ33: IPE | BL33: H1000X250X16X32 | BM33: W | BO33: B 150X150X5 | BP33: B | BR33: SHS80X80X3.6 | BS33: B | BU33: Тп60x40x4 | BV33: HSS | BX33: 03_Tk_70x6 | BY33: HSS | CA33: 03_Тк_70х6 | CB33: HSS | CD33: 200X100X8.0RHS | CE33: RHS | CK33: TUBO70X70X10
A34: 100X50X6RHS | B34: B | D34: HSS16X4X3/8 | E34: B | G34: HSS406.4X101.6X9.5 | H34: B | J34: HSS16X16X3/4 | K34: B | M34: HSS406.4X406.4X19.0 | N34: B | P34: RHS50X30X2.9 | Q34: B | S34: UB406X178X74 | T34: W | V34: UB1016X305X494 | W34: W | Y34: IPE270 | Z34: W | AB34: HE500M | AC34: W | AE34: H 600 X 300 X 12 X 17 | AF34: W | AH34: W360X410X382 | AI34: W | AK34: W10X8X45 | AL34: W | AN34: W250X200X67 | AO34: W | AQ34: RHHF150X100X8 | AR34: B | AT34: HM300X200X8X12 | AU34: W | AW34: HS114X114X9.5 | AX34: B | AZ34: HS114X114X9.5 | BA34: B | BC34: TUBO70X70X12.5 | BD34: B | BF34: ISB145X82X5.4 | BG34: B | BI34: IPEO450 | BJ34: IPE | BL34: H1000X250X16X28 | BM34: W | BO34: B 150X150X6 | BP34: B | BR34: SHS80X80X4 | BS34: B | BU34: Тп60x40x4,5 | BV34: HSS | BX34: 03_Tk_70x6,5 | BY34: HSS | CA34: 03_Тк_70х6,5 | CB34: HSS | CD34: 220X140X4.0RHS | CE34: RHS | CK34: TUBO70X70X12.5
A35: 100X50X5RHS | B35: B | D35: HSS16X4X5/16 | E35: B | G35: HSS406.4X101.6X7.9 | H35: B | J35: HSS16X16X5/8 | K35: B | M35: HSS406.4X406.4X15.9 | N35: B | P35: RHS50X30X3.2 | Q35: B | S35: UB457X152X52 | T35: W | V35: UB1016X305X584 | W35: W | Y35: IPEO270 | Z35: W | AB35: HE550A | AC35: W | AE35: H 600 X 300 X 12 X 20 | AF35: W | AH35: W360X410X421 | AI35: W | AK35: W10X10X49 | AL35: W | AN35: W250X250X73 | AO35: W | AQ35: RHHF150X100X10 | AR35: B | AT35: HM300X200X9X14 | AU35: W | AW35: HS114X114X8.0 | AX35: B | AZ35: HS114X114X8.0 | BA35: B | BC35: TUBO70X49X3.6 | BD35: B | BF35: ISB172X92X4.8 | BG35: B | BI35: IPEA500 | BJ35: IPE | BL35: H1000X250X16X25 | BM35: W | BO35: B 150X150X9 | BP35: B | BR35: SHS80X80X5 | BS35: B | BU35: Тп60x40x5 | BV35: HSS | BX35: 03_Tk_70x7 | BY35: HSS | CA35: 03_Тк_70х7 | CB35: HSS | CD35: 220X140X5.0RHS | CE35: RHS | CK35: TUBO70X49X3.6
A36: 100X50X4RHS | B36: B | D36: HSS16X4X1/4 | E36: B | G36: HSS406.4X101.6X6.4 | H36: B | J36: HSS16X16X1/2 | K36: B | M36: HSS406.4X406.4X12.7 | N36: B | P36: RHS50X30X3.6 | Q36: B | S36: UB457X152X60 | T36: W | V36: UB1016X305X642 | W36: W | Y36: IPEA300 | Z36: W | AB36: HE550B | AC36: W | AE36: H 600 X 300 X 14 X 23 | AF36: W | AH36: W360X410X463 | AI36: W | AK36: W10X10X54 | AL36: W | AN36: W250X250X80 | AO36: W | AQ36: RHHF150X100X12.5 | AR36: B | AT36: HM350X250X9X14 | AU36: W | AW36: HS114X114X6.4 | AX36: B | AZ36: HS114X114X6.4 | BA36: B | BC36: TUBO70X49X4 | BD36: B | BF36: ISB172X92X5.4 | BG36: B | BI36: IPE500 | BJ36: IPE | BL36: H1000X250X16X22 | BM36: W | BO36: B 175X175X4.5 | BP36: B | BR36: SHS80X80X6 | BS36: B | BU36: Тп60x40x5,5 | BV36: HSS | BX36: 03_Tk_80x3 | BY36: HSS | CA36: 03_Тк_80х3 | CB36: HSS | CD36: 220X140X6.0RHS | CE36: RHS | CK36: TUBO70X49X4
A37: 100X50X3.5RHS | B37: B | D37: HSS16X4X3/16 | E37: B | G37: HSS406.4X101.6X4.8 | H37: B | J37: HSS16X16X3/8 | K37: B | M37: HSS406.4X406.4X9.5 | N37: B | P37: RHS50X30X4 | Q37: B | S37: UB457X152X67 | T37: W | V37: UB1016X305X748 | W37: W | Y37: IPE300 | Z37: W | AB37: HE550M | AC37: W | AE37: H 700 X 300 X 13 X 20 | AF37: W | AH37: W360X410X509 | AI37: W | AK37: W10X10X60 | AL37: W | AN37: W250X250X89 | AO37: W | AQ37: RHHF150X125X4 | AR37: B | AT37: HM400X300X10X16 | AU37: W | AW37: HS114X114X4.8 | AX37: B | AZ37: HS114X114X4.8 | BA37: B | BC37: TUBO70X49X4.5 | BD37: B | BF37: ISJB150 | BG37: W | BI37: IPEO500 | BJ37: IPE | BL37: H950X400X19X40 | BM37: W | BO37: B 175X175X5 | BP37: B | BR37: SHS80X80X6.3 | BS37: B | BU37: Тп60x40x6 | BV37: HSS | BX37: 03_Tk_80x3,5 | BY37: HSS | CA37: 03_Тк_80х3,5 | CB37: HSS | CD37: 220X140X8.0RHS | CE37: RHS | CK37: TUBO70X49X4.5
A38: 100X50X3RHS | B38: B | D38: HSS14X14X5/8 | E38: B | G38: HSS355.6X355.6X15.9 | H38: B | J38: HSS16X16X5/16 | K38: B | M38: HSS406.4X406.4X7.9 | N38: B | P38: RHS50X30X4.5 | Q38: B | S38: UB457X152X74 | T38: W | V38: UB1016X305X883 | W38: W | Y38: IPEO300 | Z38: W | AB38: HE600A | AC38: W | AE38: H 700 X 300 X 13 X 24 | AF38: W | AH38: W360X410X551 | AI38: W | AK38: W10X10X68 | AL38: W | AN38: W250X250X101 | AO38: W | AQ38: RHHF150X125X5 | AR38: B | AT38: HM450X300X11X18 | AU38: W | AW38: HS114X114X3.2 | AX38: B | AZ38: HS114X114X3.2 | BA38: B | BC38: TUBO70X49X5 | BD38: B | BF38: ISJB175 | BG38: W | BI38: IPEA600 | BJ38: IPE | BL38: H950X400X19X36 | BM38: W | BO38: B 175X175X6 | BP38: B | BR38: SHS80X80X8 | BS38: B | BU38: Тп70x50x2 | BV38: HSS | BX38: 03_Tk_80x4 | BY38: HSS | CA38: 03_Тк_80х4 | CB38: HSS | CD38: 240X120X4.0RHS | CE38: RHS | CK38: TUBO70X49X5
A39: 100X50X2.8RHS | B39: B | D39: HSS14X14X1/2 | E39: B | G39: HSS355.6X355.6X12.7 | H39: B | J39: HSS16X12X3/4 | K39: B | M39: HSS406.4X304.8X19 | N39: B | P39: RHS50X30X5 | Q39: B | S39: UB457X152X82 | T39: W | V39: UB1016X305X976 | W39: W | Y39: IPEA330 | Z39: W | AB39: HE600B | AC39: W | AE39: H 800 X 300 X 14 X 22 | AF39: W | AH39: W360X410X592 | AI39: W | AK39: W10X10X77 | AL39: W | AN39: W250X250X115 | AO39: W | AQ39: RHHF150X125X6.3 | AR39: B | AT39: HM500X300X11X15 | AU39: W | AW39: HS102X102X13 | AX39: B | AZ39: HS102X102X13 | BA39: B | BC39: TUBO70X49X5.4 | BD39: B | BF39: ISJB200 | BG39: W | BI39: IPE600 | BJ39: IPE | BL39: H950X400X19X32 | BM39: W | BO39: B 200X200X4.5 | BP39: B | BR39: SHS90X90X3.6 | BS39: B | BU39: Тп70x50x2,5 | BV39: HSS | BX39: 03_Tk_80x4,5 | BY39: HSS | CA39: 03_Тк_80х4,5 | CB39: HSS | CD39: 240X120X5.0RHS | CE39: RHS | CK39: TUBO70X49X5.4
A40: 100X50X2.5RHS | B40: B | D40: HSS14X14X3/8 | E40: B | G40: HSS355.6X355.6X9.5 | H40: B | J40: HSS16X12X5/8 | K40: B | M40: HSS406.4X304.8X15.9 | N40: B | P40: RHS50X30X6 | Q40: B | S40: UB457X191X67 | T40: W | V40: UC254X254X73 | W40: W | Y40: IPE330 | Z40: W | AB40: HE600M | AC40: W | AE40: H 800 X 300 X 14 X 26 | AF40: W | AH40: W360X410X634 | AI40: W | AK40: W10X10X88 | AL40: W | AN40: W250X250X131 | AO40: W | AQ40: RHHF150X125X8 | AR40: B | AT40: HM500X300X11X18 | AU40: W | AW40: HS102X102X9.5 | AX40: B | AZ40: HS102X102X9.5 | BA40: B | BC40: TUBO70X49X5.9 | BD40: B | BF40: ISJB225 | BG40: W | BI40: IPEO600 | BJ40: IPE | BL40: H950X400X19X28 | BM40: W | BO40: B 200X200X6 | BP40: B | BR40: SHS90X90X4 | BS40: B | BU40: Тп70x50x3 | BV40: HSS | BX40: 03_Tk_80x5 | BY40: HSS | CA40: 03_Тк_80х5 | CB40: HSS | CD40: 240X120X6.0RHS | CE40: RHS | CK40: TUBO70X49X5.9
A41: 100X50X2.3RHS | B41: B | D41: HSS14X14X5/16 | E41: B | G41: HSS355.6X355.6X7.9 | H41: B | J41: HSS16X12X1/2 | K41: B | M41: HSS406.4X304.8X12.7 | N41: B | P41: RHS50X30X8 | Q41: B | S41: UB457X191X74 | T41: W | V41: UC254X254X89 | W41: W | Y41: IPEO330 | Z41: W | AB41: HE600X337 | AC41: W | AE41: H 900 X 300 X 15 X 23 | AF41: W | AH41: W360X410X677 | AI41: W | AK41: W10X10X100 | AL41: W | AN41: W250X250X149 | AO41: W | AQ41: RHHF150X125X10 | AR41: B | AT41: HM550X300X11X15 | AU41: W | AW41: HS102X102X8.0 | AX41: B | AZ41: HS102X102X8.0 | BA41: B | BC41: TUBO70X49X7.1 | BD41: B | BF41: ISLB75 | BG41: W | BI41: IPEA100X55X6.9 | BJ41: IPE | BL41: H950X400X19X25 | BM41: W | BO41: B 200X200X8 | BP41: B | BR41: SHS90X90X5 | BS41: B | BU41: Тп70x50x3,5 | BV41: HSS | BX41: 03_Tk_80x5,5 | BY41: HSS | CA41: 03_Тк_80х5,5 | CB41: HSS | CD41: 240X120X8.0RHS | CE41: RHS | CK41: TUBO70X49X7.1
A42: 100X50X2RHS | B42: B | D42: HSS14X10X5/8 | E42: B | G42: HSS355.6X254X15.9 | H42: B | J42: HSS16X12X3/8 | K42: B | M42: HSS406.4X304.8X9.5 | N42: B | P42: RHS66X33X1.6 | Q42: B | S42: UB457X191X82 | T42: W | V42: UC254X254X107 | W42: W | Y42: IPEA360 | Z42: W | AB42: HE600X399 | AC42: W | AE42: H 900 X 300 X 16 X 28 | AF42: W | AH42: W360X410X744 | AI42: W | AK42: W10X10X112 | AL42: W | AN42: W250X250X167 | AO42: W | AQ42: RHHF150X125X12.5 | AR42: B | AT42: HM550X300X11X18 | AU42: W | AW42: HS102X102X6.4 | AX42: B | AZ42: HS102X102X6.4 | BA42: B | BC42: TUBO70X49X8 | BD42: B | BF42: ISLB100 | BG42: W | BI42: IPE100X55X8.1 | BJ42: IPE | BL42: H950X400X16X32 | BM42: W | BO42: B 200X200X9 | BP42: B | BR42: SHS90X90X6 | BS42: B | BU42: Тп70x50x4 | BV42: HSS | BX42: 03_Tk_80x6 | BY42: HSS | CA42: 03_Тк_80х6 | CB42: HSS | CD42: 260X180X6.0RHS | CE42: RHS | CK42: TUBO70X49X8
A43: 100X50X1.6RHS | B43: B | D43: HSS14X10X1/2 | E43: B | G43: HSS355.6X254X12.7 | H43: B | J43: HSS16X12X5/16 | K43: B | M43: HSS406.4X304.8X7.9 | N43: B | P43: RHS66X33X2 | Q43: B | S43: UB457X191X89 | T43: W | V43: UC254X254X132 | W43: W | Y43: IPE360 | Z43: W | AB43: HE650A | AC43: W | AE43: H 900 X 300 X 18 X 34 | AF43: W | AH43: W360X410X818 | AI43: W | AK43: W12X4X14 | AL43: W | AN43: W310X100X21.0 | AO43: W | AQ43: RHHF160X80X4 | AR43: B | AT43: HM600X300X12X17 | AU43: W | AW43: HS102X102X4.8 | AX43: B | AZ43: HS102X102X4.8 | BA43: B | BC43: TUBO70X35X3.6 | BD43: B | BF43: ISLB125 | BG43: W | BI43: IPEA120X64X8.7 | BJ43: IPE | BL43: H950X400X16X28 | BM43: W | BO43: B 200X200X12 | BP43: B | BR43: SHS90X90X6.3 | BS43: B | BU43: Тп70x50x4,5 | BV43: HSS | BX43: 03_Tk_80x6,5 | BY43: HSS | CA43: 03_Тк_80х6,5 | CB43: HSS | CD43: 260X180X8.0RHS | CE43: RHS | CK43: TUBO70X35X3.6
A44: 75X50X6RHS | B44: B | D44: HSS14X10X3/8 | E44: B | G44: HSS355.6X254X9.5 | H44: B | J44: HSS16X8X5/8 | K44: B | M44: HSS406.4X203.2X15.9 | N44: B | P44: RHS66X33X2.2 | Q44: B | S44: UB457X191X98 | T44: W | V44: UC254X254X167 | W44: W | Y44: IPEO360 | Z44: W | AB44: HE650B | AC44: W | AH44: W360X410X900 | AI44: W | AK44: W12X4X16 | AL44: W | AN44: W310X100X23.8 | AO44: W | AQ44: RHHF160X80X5 | AR44: B | AT44: HM600X300X12X20 | AU44: W | AW44: HS102X102X3.2 | AX44: B | AZ44: HS102X102X3.2 | BA44: B | BC44: TUBO70X35X4 | BD44: B | BF44: ISLB150 | BG44: W | BI44: IPE120X64X10.4 | BJ44: IPE | BL44: H950X400X16X25 | BM44: W | BO44: B 250X250X5 | BP44: B | BR44: SHS90X90X8 | BS44: B | BU44: Тп70x50x5 | BV44: HSS | BX44: 03_Tk_80x7 | BY44: HSS | CA44: 03_Тк_80х7 | CB44: HSS | CD44: 260X180X10.0RHS | CE44: RHS | CK44: TUBO70X35X4
A45: 75X50X5RHS | B45: B | D45: HSS14X10X5/16 | E45: B | G45: HSS355.6X254X7.9 | H45: B | J45: HSS16X8X1/2 | K45: B | M45: HSS406.4X203.2X12.7 | N45: B | P45: RHS66X33X2.5 | Q45: B | S45: UB533X210X82 | T45: W | V45: UC305X305X97 | W45: W | Y45: IPEA400 | Z45: W | AB45: HE650M | AC45: W | AH45: W360X410X990 | AI45: W | AK45: W12X4X19 | AL45: W | AN45: W310X100X28.3 | AO45: W | AQ45: RHHF160X80X6.3 | AR45: B | AT45: HM600X300X14X23 | AU45: W | AW45: HS89X89X9.5 | AX45: B | AZ45: HS89X89X9.5 | BA45: B | BC45: TUBO70X35X4.5 | BD45: B | BF45: ISLB175 | BG45: W | BI45: IPEA140X73X10.5 | BJ45: IPE | BL45: H950X400X16X22 | BM45: W | BO45: B 250X250X6 | BP45: B | BR45: SHS100X100X3.6 | BS45: B | BU45: Тп70x50x5,5 | BV45: HSS | BX45: 03_Tk_80x7,5 | BY45: HSS | CA45: 03_Тк_80х7,5 | CB45: HSS | CD45: 260X180X12.0RHS | CE45: RHS | CK45: TUBO70X35X4.5
A46: 75X50X4RHS | B46: B | D46: HSS14X10X1/4 | E46: B | G46: HSS355.6X254X6.4 | H46: B | J46: HSS16X8X3/8 | K46: B | M46: HSS406.4X203.2X9.5 | N46: B | P46: RHS66X33X2.9 | Q46: B | S46: UB533X210X92 | T46: W | V46: UC305X305X118 | W46: W | Y46: IPE400 | Z46: W | AB46: HE650X343 | AC46: W | AH46: W360X410X1086 | AI46: W | AK46: W12X4X22 | AL46: W | AN46: W310X100X32.7 | AO46: W | AQ46: RHHF160X80X8 | AR46: B | AT46: HN100X50X5X7 | AU46: W | AW46: HS89X89X8.0 | AX46: B | AZ46: HS89X89X8.0 | BA46: B | BC46: TUBO70X35X5 | BD46: B | BF46: ISLB200 | BG46: W | BI46: IPE140X73X12.9 | BJ46: IPE | BL46: H950X350X19X40 | BM46: W | BO46: B 250X250X8 | BP46: B | BR46: SHS100X100X4 | BS46: B | BU46: Тп70x50x6 | BV46: HSS | BX46: 03_Tk_80x8 | BY46: HSS | CA46: 03_Тк_80х8 | CB46: HSS | CD46: 300X150X6.0RHS | CE46: RHS | CK46: TUBO70X35X5
A47: 75X50X3RHS | B47: B | D47: HSS14X6X5/8 | E47: B | G47: HSS355.6X152.4X15.9 | H47: B | J47: HSS16X8X5/16 | K47: B | M47: HSS406.4X203.2X7.9 | N47: B | P47: RHS66X33X3.2 | Q47: B | S47: UB533X210X101 | T47: W | V47: UC305X305X137 | W47: W | Y47: IPEO400 | Z47: W | AB47: HE650X407 | AC47: W | AH47: W360X410X1202 | AI47: W | AK47: W12X6.5X26 | AL47: W | AN47: W310X165X38.7 | AO47: W | AQ47: RHHF160X80X10 | AR47: B | AT47: HN125X60X6X8 | AU47: W | AW47: HS89X89X6.4 | AX47: B | AZ47: HS89X89X6.4 | BA47: B | BC47: TUBO70X35X5.4 | BD47: B | BF47: ISLB225 | BG47: W | BI47: IPEA160X82X12.7 | BJ47: IPE | BL47: H950X350X19X36 | BM47: W | BO47: B 250X250X9 | BP47: B | BR47: SHS100X100X5 | BS47: B | BU47: Тп80x40x2 | BV47: HSS | BX47: 03_Tk_90x3 | BY47: HSS | CA47: 03_Тк_90х3 | CB47: HSS | CD47: 300X150X8.0RHS | CE47: RHS | CK47: TUBO70X35X5.4
A48: 75X50X2.8RHS | B48: B | D48: HSS14X6X1/2 | E48: B | G48: HSS355.6X152.4X12.7 | H48: B | J48: HSS16X8X1/4 | K48: B | M48: HSS406.4X203.2X6.4 | N48: B | P48: RHS60X40X1.6 | Q48: B | S48: UB533X210X109 | T48: W | V48: UC305X305X158 | W48: W | Y48: IPEA450 | Z48: W | AB48: HE700A | AC48: W | AH48: W360X410X1299 | AI48: W | AK48: W12X6.5X30 | AL48: W | AN48: W310X165X44.5 | AO48: W | AQ48: RHHF200X100X5 | AR48: B | AT48: HN150X75X5X7 | AU48: W | AW48: HS89X89X4.8 | AX48: B | AZ48: HS89X89X4.8 | BA48: B | BC48: TUBO70X35X5.9 | BD48: B | BF48: ISLB250 | BG48: W | BI48: IPE160X82X15.8 | BJ48: IPE | BL48: H950X350X19X32 | BM48: W | BO48: B 250X250X12 | BP48: B | BR48: SHS100X100X6 | BS48: B | BU48: Тп80x40x2,5 | BV48: HSS | BX48: 03_Tk_90x3,5 | BY48: HSS | CA48: 03_Тк_90х3,5 | CB48: HSS | CD48: 300X150X10.0RHS | CE48: RHS | CK48: TUBO70X35X5.9
A49: 75X50X2.5RHS | B49: B | D49: HSS14X6X3/8 | E49: B | G49: HSS355.6X152.4X9.5 | H49: B | J49: HSS16X4X5/8 | K49: B | M49: HSS406.4X101.6X15.9 | N49: B | P49: RHS60X40X2 | Q49: B | S49: UB533X210X122 | T49: W | V49: UC305X305X198 | W49: W | Y49: IPE450 | Z49: W | AB49: HE700B | AC49: W | AH49: W610X230X125 | AI49: W | AK49: W12X6.5X35 | AL49: W | AN49: W310X165X52 | AO49: W | AQ49: RHHF200X100X6.3 | AR49: B | AT49: HN175X90X5X8 | AU49: W | AW49: HS89X89X3.2 | AX49: B | AZ49: HS89X89X3.2 | BA49: B | BC49: TUBO80X80X4.5 | BD49: B | BF49: ISLB275 | BG49: W | BI49: IPEA180X91X15.4 | BJ49: IPE | BL49: H950X350X19X28 | BM49: W | BO49: B 300X300X4.5 | BP49: B | BR49: SHS100X100X6.3 | BS49: B | BU49: Тп80x40x3 | BV49: HSS | BX49: 03_Tk_90x4 | BY49: HSS | CA49: 03_Тк_90х4 | CB49: HSS | CD49: 300X150X12.0RHS | CE49: RHS | CK49: TUBO80X80X4.5
A50: 75X50X2.3RHS | B50: B | D50: HSS14X6X5/16 | E50: B | G50: HSS355.6X152.4X7.9 | H50: B | J50: HSS16X4X1/2 | K50: B | M50: HSS406.4X101.6X12.7 | N50: B | P50: RHS60X40X2.2 | Q50: B | S50: UB610X229X101 | T50: W | V50: UC305X305X240 | W50: W | Y50: IPEO450 | Z50: W | AB50: HE700M | AC50: W | AH50: W610X230X140 | AI50: W | AK50: W12X8X40 | AL50: W | AN50: W310X200X60 | AO50: W | AQ50: RHHF200X100X8 | AR50: B | AT50: HN200X100X4.5X7 | AU50: W | AW50: HS76X76X9.5 | AX50: B | AZ50: HS76X76X9.5 | BA50: B | BC50: TUBO80X80X5 | BD50: B | BF50: ISLB300 | BG50: W | BI50: IPE180X91X18.8 | BJ50: IPE | BL50: H950X350X19X25 | BM50: W | BO50: B 300X300X6 | BP50: B | BR50: SHS100X100X8 | BS50: B | BU50: Тп80x40x3,5 | BV50: HSS | BX50: 03_Tk_90x4,5 | BY50: HSS | CA50: 03_Тк_90х4,5 | CB50: HSS | CD50: 300X200X6.0RHS | CE50: RHS | CK50: TUBO80X80X5
A51: 75X50X2RHS | B51: B | D51: HSS14X6X1/4 | E51: B | G51: HSS355.6X152.4X6.4 | H51: B | J51: HSS16X4X3/8 | K51: B | M51: HSS406.4X101.6X9.5 | N51: B | P51: RHS60X40X2.5 | Q51: B | S51: UB610X229X113 | T51: W | V51: UC305X305X283 | W51: W | Y51: IPEA500 | Z51: W | AB51: HE700X352 | AC51: W | AH51: W610X230X153 | AI51: W | AK51: W12X8X45 | AL51: W | AN51: W310X200X67 | AO51: W | AQ51: RHHF200X100X10 | AR51: B | AT51: HN200X100X5.5X8 | AU51: W | AW51: HS76X76X8.0 | AX51: B | AZ51: HS76X76X8.0 | BA51: B | BC51: TUBO80X80X5.4 | BD51: B | BF51: ISLB325 | BG51: W | BI51: IPEO180X92X21.3 | BJ51: IPE | BL51: H950X350X16X32 | BM51: W | BO51: B 300X300X9 | BP51: B | BR51: SHS100X100X10 | BS51: B | BU51: Тп80x40x4 | BV51: HSS | BX51: 03_Tk_90x5 | BY51: HSS | CA51: 03_Тк_90х5 | CB51: HSS | CD51: 300X200X8.0RHS | CE51: RHS | CK51: TUBO80X80X5.4
A52: 75X50X1.6RHS | B52: B | D52: HSS14X6X3/16 | E52: B | G52: HSS355.6X152.4X4.8 | H52: B | J52: HSS16X4X5/16 | K52: B | M52: HSS406.4X101.6X7.9 | N52: B | P52: RHS60X40X2.9 | Q52: B | S52: UB610X229X125 | T52: W | V52: UC356X368X129 | W52: W | Y52: IPE500 | Z52: W | AB52: HE700X418 | AC52: W | AH52: W610X325X155 | AI52: W | AK52: W12X8X50 | AL52: W | AN52: W310X200X74 | AO52: W | AQ52: RHHF200X100X12.5 | AR52: B | AT52: HN250X125X5X8 | AU52: W | AW52: HS76X76X6.4 | AX52: B | AZ52: HS76X76X6.4 | BA52: B | BC52: TUBO80X80X5.9 | BD52: B | BF52: ISLB350 | BG52: W | BI52: IPEA200X100X18.4 | BJ52: IPE | BL52: H950X350X16X28 | BM52: W | BO52: B 300X300X12 | BP52: B | BR52: SHS120X120X4 | BS52: B | BU52: Тп80x40x4,5 | BV52: HSS | BX52: 03_Tk_90x5,5 | BY52: HSS | CA52: 03_Тк_90х5,5 | CB52: HSS | CD52: 300X200X10.0RHS | CE52: RHS | CK52: TUBO80X80X5.9
A53: 75X25X2.5RHS | B53: B | D53: HSS14X4X5/8 | E53: B | G53: HSS355.6X101.6X15.9 | H53: B | J53: HSS16X4X1/4 | K53: B | M53: HSS406.4X101.6X6.4 | N53: B | P53: RHS60X40X3.2 | Q53: B | S53: UB610X229X140 | T53: W | V53: UC356X368X153 | W53: W | Y53: IPEO500 | Z53: W | AB53: HE800A | AC53: W | AH53: W610X325X174 | AI53: W | AK53: W12X10X53 | AL53: W | AN53: W310X250X79 | AO53: W | AQ53: RHHF200X120X5 | AR53: B | AT53: HN250X125X6X9 | AU53: W | AW53: HS76X76X4.8 | AX53: B | AZ53: HS76X76X4.8 | BA53: B | BC53: TUBO80X80X7.1 | BD53: B | BF53: ISLB400 | BG53: W | BI53: IPE200X100X22.4 | BJ53: IPE | BL53: H950X350X16X25 | BM53: W | BO53: B 350X350X9 | BP53: B | BR53: SHS120X120X5 | BS53: B | BU53: Тп80x40x5 | BV53: HSS | BX53: 03_Tk_90x6 | BY53: HSS | CA53: 03_Тк_90х6 | CB53: HSS | CD53: 300X200X12.0RHS | CE53: RHS | CK53: TUBO80X80X7.1
A54: 75X25X2RHS | B54: B | D54: HSS14X4X1/2 | E54: B | G54: HSS355.6X101.6X12.7 | H54: B | J54: HSS16X4X3/16 | K54: B | M54: HSS406.4X101.6X4.8 | N54: B | P54: RHS60X40X3.6 | Q54: B | S54: UB610X305X149 | T54: W | V54: UC356X368X177 | W54: W | Y54: IPEA550 | Z54: W | AB54: HE800B | AC54: W | AH54: W610X325X195 | AI54: W | AK54: W12X10X58 | AL54: W | AN54: W310X250X86 | AO54: W | AQ54: RHHF200X120X6.3 | AR54: B | AT54: HN300X150X5.5X8 | AU54: W | AW54: HS76X76X3.2 | AX54: B | AZ54: HS76X76X3.2 | BA54: B | BC54: TUBO80X80X8 | BD54: B | BF54: ISLB450 | BG54: W | BI54: IPEO200X102X25.1 | BJ54: IPE | BL54: H950X350X16X22 | BM54: W | BO54: B 350X350X12 | BP54: B | BR54: SHS120X120X6 | BS54: B | BU54: Тп80x40x5,5 | BV54: HSS | BX54: 03_Tk_90x6,5 | BY54: HSS | CA54: 03_Тк_90х6,5 | CB54: HSS | CD54: 25X25X1.6SHS | CE54: SHS | CK54: TUBO80X80X8
A55: 75X25X1.6RHS | B55: B | D55: HSS14X4X3/8 | E55: B | G55: HSS355.6X101.6X9.5 | H55: B | J55: HSS14X14X7/8 | K55: B | M55: HSS355.6X355.6X22.2 | N55: B | P55: RHS60X40X4 | Q55: B | S55: UB610X305X179 | T55: W | V55: UC356X368X202 | W55: W | Y55: IPE550 | Z55: W | AB55: HE800M | AC55: W | AH55: W610X325X217 | AI55: W | AK55: W12X12X65 | AL55: W | AN55: W310X310X97 | AO55: W | AQ55: RHHF200X120X8 | AR55: B | AT55: HN300X150X6.5X9 | AU55: W | AW55: HS64X64X8.0 | AX55: B | AZ55: HS64X64X8.0 | BA55: B | BC55: TUBO80X80X10 | BD55: B | BF55: ISLB500 | BG55: W | BI55: IPEA220X110X22.2 | BJ55: IPE | BL55: H950X300X19X40 | BM55: W | BO55: B 50X20X1.6 | BP55: B | BR55: SHS120X120X6.3 | BS55: B | BU55: Тп80x40x6 | BV55: HSS | BX55: 03_Tk_90x7 | BY55: HSS | CA55: 03_Тк_90х7 | CB55: HSS | CD55: 25X25X2.0SHS | CE55: SHS | CK55: TUBO80X80X10
A56: 65X35X4RHS | B56: B | D56: HSS14X4X5/16 | E56: B | G56: HSS355.6X101.6X7.9 | H56: B | J56: HSS14X14X3/4 | K56: B | M56: HSS355.6X355.6X19 | N56: B | P56: RHS60X40X4.5 | Q56: B | S56: UB610X305X238 | T56: W | V56: UC356X406X235 | W56: W | Y56: IPEO550 | Z56: W | AB56: HE800X373 | AC56: W | AH56: W610X325X241 | AI56: W | AK56: W12X12X72 | AL56: W | AN56: W310X310X107 | AO56: W | AQ56: RHHF200X120X10 | AR56: B | AT56: HN350X175X6X9 | AU56: W | AW56: HS64X64X6.4 | AX56: B | AZ56: HS64X64X6.4 | BA56: B | BC56: TUBO80X80X12.5 | BD56: B | BF56: ISLB550 | BG56: W | BI56: IPE220X110X26.2 | BJ56: IPE | BL56: H950X300X19X36 | BM56: W | BO56: B 50X20X2.3 | BP56: B | BR56: SHS120X120X8 | BS56: B | BU56: Тп80x60x2 | BV56: HSS | BX56: 03_Tk_90x7,5 | BY56: HSS | CA56: 03_Тк_90х7,5 | CB56: HSS | CD56: 25X25X2.6SHS | CE56: SHS | CK56: TUBO80X80X12.5
A57: 65X35X3RHS | B57: B | D57: HSS14X4X1/4 | E57: B | G57: HSS355.6X101.6X6.4 | H57: B | J57: HSS14X14X5/8 | K57: B | M57: HSS355.6X355.6X15.9 | N57: B | P57: RHS60X40X5 | Q57: B | S57: UB686X254X125 | T57: W | V57: UC356X406X287 | W57: W | Y57: IPEA600 | Z57: W | AB57: HE800X444 | AC57: W | AH57: W610X325X262 | AI57: W | AK57: W12X12X79 | AL57: W | AN57: W310X310X117 | AO57: W | AQ57: RHHF200X120X14.2 | AR57: B | AT57: HN350X175X7X11 | AU57: W | AW57: HS64X64X4.8 | AX57: B | AZ57: HS64X64X4.8 | BA57: B | BC57: TUBO80X80X14.2 | BD57: B | BF57: ISLB600 | BG57: W | BI57: IPEO220X112X29.3 | BJ57: IPE | BL57: H950X300X19X32 | BM57: W | BO57: B 50X30X1.6 | BP57: B | BR57: SHS120X120X10 | BS57: B | BU57: Тп80x60x2,5 | BV57: HSS | BX57: 03_Tk_90x8 | BY57: HSS | CA57: 03_Тк_90х8 | CB57: HSS | CD57: 25X25X3.2SHS | CE57: SHS | CK57: TUBO80X80X14.2
A58: 65X35X2.8RHS | B58: B | D58: HSS14X4X3/16 | E58: B | G58: HSS355.6X101.6X4.8 | H58: B | J58: HSS14X14X1/2 | K58: B | M58: HSS355.6X355.6X12.7 | N58: B | P58: RHS60X40X6 | Q58: B | S58: UB686X254X140 | T58: W | V58: UC356X406X340 | W58: W | Y58: IPE600 | Z58: W | AB58: HE900A | AC58: W | AH58: W610X325X285 | AI58: W | AK58: W12X12X87 | AL58: W | AN58: W310X310X129 | AO58: W | AQ58: RHHF200X150X8 | AR58: B | AT58: HN400X150X8X13 | AU58: W | AW58: HS64X64X3.2 | AX58: B | AZ58: HS64X64X3.2 | BA58: B | BC58: TUBO80X56X3.6 | BD58: B | BF58: ISMB100 | BG58: W | BI58: IPEA240X120X26.1 | BJ58: IPE | BL58: H950X300X19X28 | BM58: W | BO58: B 50X30X2.3 | BP58: B | BR58: SHS120X120X12 | BS58: B | BU58: Тп80x60x3 | BV58: HSS | BX58: 03_Tk_100x3 | BY58: HSS | CA58: 03_Тк_100х3 | CB58: HSS | CD58: 30X30X2.0SHS | CE58: SHS | CK58: TUBO80X56X3.6
A59: 65X35X2.5RHS | B59: B | D59: HSS12X12X5/8 | E59: B | G59: HSS304.8X304.8X15.9 | H59: B | J59: HSS14X14X3/8 | K59: B | M59: HSS355.6X355.6X9.5 | N59: B | P59: RHS75X25X1.6 | Q59: B | S59: UB686X254X152 | T59: W | V59: UC356X406X393 | W59: W | Y59: IPEO600 | Z59: W | AB59: HE900B | AC59: W | AH59: W610X325X307 | AI59: W | AK59: W12X12X96 | AL59: W | AN59: W310X310X143 | AO59: W | AQ59: RHHF200X150X10 | AR59: B | AT59: HN400X200X7X11 | AU59: W | AW59: HS51X51X6.4 | AX59: B | AZ59: HS51X51X6.4 | BA59: B | BC59: TUBO80X56X4 | BD59: B | BF59: ISMB125 | BG59: W | BI59: IPE240X120X30.7 | BJ59: IPE | BL59: H950X300X19X25 | BM59: W | BO59: B 60X30X1.6 | BP59: B | BR59: SHS120X120X12.5 | BS59: B | BU59: Тп80x60x3,5 | BV59: HSS | BX59: 03_Tk_100x3,5 | BY59: HSS | CA59: 03_Тк_100х3,5 | CB59: HSS | CD59: 30X30X2.6SHS | CE59: SHS | CK59: TUBO80X56X4
A60: 65X35X2.3RHS | B60: B | D60: HSS12X12X1/2 | E60: B | G60: HSS304.8X304.8X12.7 | H60: B | J60: HSS14X14X5/16 | K60: B | M60: HSS355.6X355.6X7.9 | N60: B | P60: RHS75X25X2 | Q60: B | S60: UB686X254X170 | T60: W | V60: UC356X406X467 | W60: W | Y60: IPE750X137 | Z60: W | AB60: HE900M | AC60: W | AH60: W610X325X341 | AI60: W | AK60: W12X12X106 | AL60: W | AN60: W310X310X158 | AO60: W | AQ60: RHHF250X120X10 | AR60: B | AT60: HN400X200X8X13 | AU60: W | AW60: HS51X51X4.8 | AX60: B | AZ60: HS51X51X4.8 | BA60: B | BC60: TUBO80X56X4.5 | BD60: B | BF60: ISMB150 | BG60: W | BI60: IPEO240X122X34.3 | BJ60: IPE | BL60: H950X300X16X32 | BM60: W | BO60: B 60X30X2.3 | BP60: B | BR60: SHS140X140X5 | BS60: B | BU60: Тп80x60x4 | BV60: HSS | BX60: 03_Tk_100x4 | BY60: HSS | CA60: 03_Тк_100х4 | CB60: HSS | CD60: 30X30X3.2SHS | CE60: SHS | CK60: TUBO80X56X4.5
A61: 65X35X2RHS | B61: B | D61: HSS12X12X3/8 | E61: B | G61: HSS304.8X304.8X9.5 | H61: B | J61: HSS14X10X5/8 | K61: B | M61: HSS355.6X254X15.9 | N61: B | P61: RHS75X25X2.5 | Q61: B | S61: UB762X267X134 | T61: W | V61: UC356X406X509 | W61: W | Y61: IPE750X147 | Z61: W | AB61: HE900X391 | AC61: W | AH61: W610X325X415 | AI61: W | AK61: W12X12X120 | AL61: W | AN61: W310X310X179 | AO61: W | AQ61: RHHF250X120X12.5 | AR61: B | AT61: HN450X150X7X12 | AU61: W | AW61: HS51X51X3.2 | AX61: B | AZ61: HS51X51X3.2 | BA61: B | BC61: TUBO80X56X5 | BD61: B | BF61: ISMB175 | BG61: W | BI61: IPEA270X135X30.7 | BJ61: IPE | BL61: H950X300X16X28 | BM61: W | BO61: B 60X30X3.2 | BP61: B | BR61: SHS140X140X6 | BS61: B | BU61: Тп80x60x4,5 | BV61: HSS | BX61: 03_Tk_100x4,5 | BY61: HSS | CA61: 03_Тк_100х4,5 | CB61: HSS | CD61: 38X38X2.0SHS | CE61: SHS | CK61: TUBO80X56X5
A62: 50X25X3RHS | B62: B | D62: HSS12X12X5/16 | E62: B | G62: HSS304.8X304.8X7.9 | H62: B | J62: HSS14X10X1/2 | K62: B | M62: HSS355.6X254X12.7 | N62: B | P62: RHS75X25X2.9 | Q62: B | S62: UB762X267X147 | T62: W | V62: UC356X406X551 | W62: W | Y62: IPE750X173 | Z62: W | AB62: HE900X466 | AC62: W | AH62: W610X325X455 | AI62: W | AK62: W12X12X136 | AL62: W | AN62: W310X310X202 | AO62: W | AQ62: RHHF250X120X14.2 | AR62: B | AT62: HN450X150X8X14 | AU62: W | AW62: HS38X38X4.8 | AX62: B | AZ62: HS38X38X4.8 | BA62: B | BC62: TUBO80X56X5.4 | BD62: B | BF62: ISMB200 | BG62: W | BI62: IPE270X135X36.1 | BJ62: IPE | BL62: H950X300X16X25 | BM62: W | BO62: B 75X20X1.6 | BP62: B | BR62: SHS140X140X6.3 | BS62: B | BU62: Тп80x60x5 | BV62: HSS | BX62: 03_Tk_100x5 | BY62: HSS | CA62: 03_Тк_100х5 | CB62: HSS | CD62: 38X38X2.6SHS | CE62: SHS | CK62: TUBO80X56X5.4
A63: 50X25X2.8RHS | B63: B | D63: HSS12X12X1/4 | E63: B | G63: HSS304.8X304.8X6.4 | H63: B | J63: HSS14X10X3/8 | K63: B | M63: HSS355.6X254X9.5 | N63: B | P63: RHS75X25X3.2 | Q63: B | S63: UB762X267X173 | T63: W | V63: UC356X406X592 | W63: W | Y63: IPE750X196 | Z63: W | AB63: HE1000X249 | AC63: W | AH63: W610X325X498 | AI63: W | AK63: W12X12X152 | AL63: W | AN63: W310X310X226 | AO63: W | AQ63: RHHF250X150X5 | AR63: B | AT63: HN450X200X8X12 | AU63: W | AW63: HS38X38X3.2 | AX63: B | AZ63: HS38X38X3.2 | BA63: B | BC63: TUBO80X56X5.9 | BD63: B | BF63: ISMB225 | BG63: W | BI63: IPEO270X136X42.3 | BJ63: IPE | BL63: H950X300X16X22 | BM63: W | BO63: B 75X20X2.3 | BP63: B | BR63: SHS140X140X8 | BS63: B | BU63: Тп80x60x5,5 | BV63: HSS | BX63: 03_Tk_100x5,5 | BY63: HSS | CA63: 03_Тк_100х5,5 | CB63: HSS | CD63: 38X38X3.2SHS | CE63: SHS | CK63: TUBO80X56X5.9
A64: 50X25X2.5RHS | B64: B | D64: HSS12X12X3/16 | E64: B | G64: HSS304.8X304.8X4.8 | H64: B | J64: HSS14X10X5/16 | K64: B | M64: HSS355.6X254X7.9 | N64: B | P64: RHS70X30X3 | Q64: B | S64: UB762X267X197 | T64: W | V64: UC356X406X634 | W64: W | Y64: HE100AA | Z64: W | AB64: HE1000A | AC64: W | AH64: W610X325X551 | AI64: W | AK64: W12X12X170 | AL64: W | AN64: W310X310X253 | AO64: W | AQ64: RHHF250X150X6.3 | AR64: B | AT64: HN450X200X9X14 | AU64: W | AW64: HS356X254X16 | AX64: B | AZ64: HS356X254X16 | BA64: B | BC64: TUBO80X56X7.1 | BD64: B | BF64: ISMB250 | BG64: W | BI64: IPEA300X150X36.5 | BJ64: IPE | BL64: H950X250X19X36 | BM64: W | BO64: B 75X45X1.6 | BP64: B | BR64: SHS140X140X10 | BS64: B | BU64: Тп80x60x6 | BV64: HSS | BX64: 03_Tk_100x6 | BY64: HSS | CA64: 03_Тк_100х6 | CB64: HSS | CD64: 38X38X4.0SHS | CE64: SHS | CK64: TUBO80X56X7.1
A65: 50X25X2.3RHS | B65: B | D65: HSS12X10X1/2 | E65: B | G65: HSS304.8X254X12.7 | H65: B | J65: HSS14X10X1/4 | K65: B | M65: HSS355.6X254X6.4 | N65: B | P65: RHS70X30X3.2 | Q65: B | S65: UB838X292X176 | T65: W | V65: UC356X406X677 | W65: W | Y65: HE100A | Z65: W | AB65: HE1000B | AC65: W | AH65: W690X250X152 | AI65: W | AK65: W12X12X190 | AL65: W | AN65: W310X310X283 | AO65: W | AQ65: RHHF250X150X8 | AR65: B | AT65: HN475X150X7X13 | AU65: W | AW65: HS356X254X13 | AX65: B | AZ65: HS356X254X13 | BA65: B | BC65: TUBO80X56X8 | BD65: B | BF65: ISMB300 | BG65: W | BI65: IPE300X150X42.2 | BJ65: IPE | BL65: H950X250X19X32 | BM65: W | BO65: B 75X45X2.3 | BP65: B | BR65: SHS140X140X12 | BS65: B | BU65: Тп80x60x6,5 | BV65: HSS | BX65: 03_Tk_100x6,5 | BY65: HSS | CA65: 03_Тк_100х6,5 | CB65: HSS | CD65: 40X40X2.6SHS | CE65: SHS | CK65: TUBO80X56X8
A66: 50X25X2RHS | B66: B | D66: HSS12X10X3/8 | E66: B | G66: HSS304.8X254X9.5 | H66: B | J66: HSS14X6X5/8 | K66: B | M66: HSS355.6X152.4X15.9 | N66: B | P66: RHS70X30X3.6 | Q66: B | S66: UB838X292X194 | T66: W | V66: UC356X406X744 | W66: W | Y66: HE100B | Z66: W | AB66: HE1000M | AC66: W | AH66: W690X250X170 | AI66: W | AK66: W12X12X210 | AL66: W | AN66: W310X310X313 | AO66: W | AQ66: RHHF250X150X10 | AR66: B | AT66: HN475X150X8.5X15.5 | AU66: W | AW66: HS356X254X9.5 | AX66: B | AZ66: HS356X254X9.5 | BA66: B | BC66: TUBO80X56X10 | BD66: B | BF66: ISMB350 | BG66: W | BI66: IPEO300X152X49.3 | BJ66: IPE | BL66: H950X250X19X28 | BM66: W | BO66: B 75X45X3.2 | BP66: B | BR66: SHS140X140X12.5 | BS66: B | BU66: Тп80x60x7 | BV66: HSS | BX66: 03_Tk_100x7 | BY66: HSS | CA66: 03_Тк_100х7 | CB66: HSS | CD66: 40X40X2.9SHS | CE66: SHS | CK66: TUBO80X56X10
A67: 50X25X1.6RHS | B67: B | D67: HSS12X10X5/16 | E67: B | G67: HSS304.8X254X7.9 | H67: B | J67: HSS14X6X1/2 | K67: B | M67: HSS355.6X152.4X12.7 | N67: B | P67: RHS70X30X4 | Q67: B | S67: UB838X292X226 | T67: W | V67: UC356X406X818 | W67: W | Y67: HE100C | Z67: W | AB67: HE1000X393 | AC67: W | AH67: W690X250X192 | AI67: W | AK67: W12X12X230 | AL67: W | AN67: W310X310X342 | AO67: W | AQ67: RHHF250X150X12.5 | AR67: B | AT67: HN475X150X10.5X19 | AU67: W | AW67: HS305X203X16 | AX67: B | AZ67: HS305X203X16 | BA67: B | BC67: TUBO80X40X3.6 | BD67: B | BF67: ISMB400 | BG67: W | BI67: NPB300X150X36.5 | BJ67: NPB | BL67: H950X250X19X25 | BM67: W | BO67: B 80X40X1.6 | BP67: B | BR67: SHS150X150X5 | BS67: B | BU67: Тп80x70x3 | BV67: HSS | BX67: 03_Tk_100x7,5 | BY67: HSS | CA67: 03_Тк_100х7,5 | CB67: HSS | CD67: 40X40X3.2SHS | CE67: SHS | CK67: =IF(OFFSET(A67,0,($CJ$2-1)*3)=0,"",OFFSET(A67,0,($CJ$2-1)*3)) -> TUBO80X40X3.6
A68: 50X20X3RHS | B68: B | D68: HSS12X10X1/4 | E68: B | G68: HSS304.8X254X6.4 | H68: B | J68: HSS14X6X3/8 | K68: B | M68: HSS355.6X152.4X9.5 | N68: B | P68: RHS70X30X4.5 | Q68: B | S68: UB914X305X201 | T68: W | V68: UC356X406X900 | W68: W | Y68: HE100M | Z68: W | AB68: HE1000X415 | AC68: W | AH68: W760X265X161 | AI68: W | AK68: W14X5X22 | AL68: W | AN68: W360X130X32.9 | AO68: W | AQ68: RHHF250X150X14.2 | AR68: B | AT68: HN500X150X7X12 | AU68: W | AW68: HS305X203X13 | AX68: B | AZ68: HS305X203X13 | BA68: B | BC68: TUBO80X40X4 | BD68: B | BF68: ISMB450 | BG68: W | BI68: NPB300X150X42.2 | BJ68: NPB | BL68: H950X250X16X32 | BM68: W | BO68: B 80X40X2.3 | BP68: B | BR68: SHS150X150X6 | BS68: B | BU68: Тп80x70x3,5 | BV68: HSS | BX68: 03_Tk_100x8 | BY68: HSS | CA68: 03_Тк_100х8 | CB68: HSS | CD68: 40X40X4.0SHS | CE68: SHS | CK68: TUBO80X40X4
A69: 50X20X2.8RHS | B69: B | D69: HSS12X8X5/8 | E69: B | G69: HSS304.8X203.2X15.9 | H69: B | J69: HSS14X6X5/16 | K69: B | M69: HSS355.6X152.4X7.9 | N69: B | P69: RHS70X30X5 | Q69: B | S69: UB914X305X224 | T69: W | V69: UC356X406X990 | W69: W | Y69: HE120AA | Z69: W | AB69: HE1000X438 | AC69: W | AH69: W760X265X173 | AI69: W | AK69: W14X5X26 | AL69: W | AN69: W360X130X39.0 | AO69: W | AQ69: RHHF250X150X16 | AR69: B | AT69: HN500X150X9X16 | AU69: W | AW69: HS305X203X9.5 | AX69: B | AZ69: HS305X203X9.5 | BA69: B | BC69: TUBO80X40X4.5 | BD69: B | BF69: ISMB500 | BG69: W | BI69: NPB300X150X49.3 | BJ69: NPB | BL69: H950X250X16X28 | BM69: W | BO69: B 80X40X3.2 | BP69: B | BR69: SHS150X150X6.3 | BS69: B | BU69: Тп80x70x4 | BV69: HSS | BX69: 03_Tk_120x3 | BY69: HSS | CA69: 03_Тк_120х3 | CB69: HSS | CD69: 50X50X2.6SHS | CE69: SHS | CK69: TUBO80X40X4.5
A70: 50X20X2.5RHS | B70: B | D70: HSS12X8X1/2 | E70: B | G70: HSS304.8X203.2X12.7 | H70: B | J70: HSS14X6X1/4 | K70: B | M70: HSS355.6X152.4X6.4 | N70: B | P70: RHS70X30X5.4 | Q70: B | S70: UB914X305X238 | T70: W | V70: UC356X406X1086 | W70: W | Y70: HE120A | Z70: W | AB70: HE1000X494 | AC70: W | AH70: W760X265X185 | AI70: W | AK70: W14X6.75X30 | AL70: W | AN70: W360X170X44.6 | AO70: W | AQ70: RHHF250X200X10 | AR70: B | AT70: HN500X150X10X18 | AU70: W | AW70: HS305X203X8.0 | AX70: B | AZ70: HS305X203X8.0 | BA70: B | BC70: TUBO80X40X5 | BD70: B | BF70: ISMB550 | BG70: W | BI70: NPB350X170X50.2 | BJ70: NPB | BL70: H950X250X16X25 | BM70: W | BO70: B 90X45X2.3 | BP70: B | BR70: SHS150X150X8 | BS70: B | BU70: Тп80x70x4,5 | BV70: HSS | BX70: 03_Tk_120x3,5 | BY70: HSS | CA70: 03_Тк_120х3,5 | CB70: HSS | CD70: 50X50X2.9SHS | CE70: SHS | CK70: TUBO80X40X5
A71: 50X20X2.3RHS | B71: B | D71: HSS12X8X3/8 | E71: B | G71: HSS304.8X203.2X9.5 | H71: B | J71: HSS14X6X3/16 | K71: B | M71: HSS355.6X152.4X4.8 | N71: B | P71: RHS70X30X6 | Q71: B | S71: UB914X305X253 | T71: W | V71: UC356X406X1202 | W71: W | Y71: HE120B | Z71: W | AB71: HE1000X584 | AC71: W | AH71: W760X265X196 | AI71: W | AK71: W14X6.75X34 | AL71: W | AN71: W360X170X51 | AO71: W | AQ71: RHHF250X200X12.5 | AR71: B | AT71: HN500X200X9X14 | AU71: W | AW71: HS305X203X6.4 | AX71: B | AZ71: HS305X203X6.4 | BA71: B | BC71: TUBO80X40X5.4 | BD71: B | BF71: ISMB600 | BG71: W | BI71: NPB350X170X57.1 | BJ71: NPB | BL71: H950X250X16X22 | BM71: W | BO71: B 90X45X3.2 | BP71: B | BR71: SHS150X150X10 | BS71: B | BU71: Тп80x70x5 | BV71: HSS | BX71: 03_Tk_120x4 | BY71: HSS | CA71: 03_Тк_120х4 | CB71: HSS | CD71: 50X50X3.6SHS | CE71: SHS | CK71: TUBO80X40X5.4
A72: 50X20X2RHS | B72: B | D72: HSS12X8X5/16 | E72: B | G72: HSS304.8X203.2X7.9 | H72: B | J72: HSS14X4X5/8 | K72: B | M72: HSS355.6X101.6X15.9 | N72: B | P72: RHS70X30X8 | Q72: B | S72: UB914X305X271 | T72: W | V72: UC356X406X1299 | W72: W | Y72: HE120C | Z72: W | AB72: HL920X344 | AC72: W | AH72: W760X265X220 | AI72: W | AK72: W14X6.75X38 | AL72: W | AN72: W360X170X58 | AO72: W | AQ72: RHHF250X200X14.2 | AR72: B | AT72: HN500X200X10X16 | AU72: W | AW72: HS254X152X16 | AX72: B | AZ72: HS254X152X16 | BA72: B | BC72: TUBO80X40X5.9 | BD72: B | BF72: ISWB150 | BG72: W | BI72: NPB350X170X66 | BJ72: NPB | BL72: H900X400X19X40 | BM72: W | BO72: B 100X20X1.6 | BP72: B | BR72: SHS150X150X12 | BS72: B | BU72: Тп80x70x5,5 | BV72: HSS | BX72: 03_Tk_120x4,5 | BY72: HSS | CA72: 03_Тк_120х4,5 | CB72: HSS | CD72: 50X50X4.5SHS | CE72: SHS | CK72: TUBO80X40X5.9
A73: 50X20X1.6RHS | B73: B | D73: HSS12X8X1/4 | E73: B | G73: HSS304.8X203.2X6.4 | H73: B | J73: HSS14X4X1/2 | K73: B | M73: HSS355.6X101.6X12.7 | N73: B | P73: RHS70X50X3 | Q73: B | S73: UB914X305X289 | T73: W | V73: UBP254X254X85 | W73: W | Y73: HE120M | Z73: W | AB73: HL920X368 | AC73: W | AH73: W840X295X193 | AI73: W | AK73: W14X8X43 | AL73: W | AN73: W360X200X64 | AO73: W | AQ73: RHHF260X140X5 | AR73: B | AT73: HN500X200X11X19 | AU73: W | AW73: HS254X152X13 | AX73: B | AZ73: HS254X152X13 | BA73: B | BC73: TUBO80X40X7.1 | BD73: B | BF73: ISWB175 | BG73: W | BI73: NPB400X180X57.4 | BJ73: NPB | BL73: H900X400X19X36 | BM73: W | BO73: B 100X20X2.3 | BP73: B | BR73: SHS150X150X12.5 | BS73: B | BU73: Тп80x70x6 | BV73: HSS | BX73: 03_Tk_120x5 | BY73: HSS | CA73: 03_Тк_120х5 | CB73: HSS | CD73: 60X60X2.6SHS | CE73: SHS | CK73: TUBO80X40X7.1
A74: 250X250X9SHS | B74: B | D74: HSS12X8X3/16 | E74: B | G74: HSS304.8X203.2X4.8 | H74: B | J74: HSS14X4X3/8 | K74: B | M74: HSS355.6X101.6X9.5 | N74: B | P74: RHS70X50X3.2 | Q74: B | S74: UB914X305X313 | T74: W | V74: UBP305X305X110 | W74: W | Y74: HE140AA | Z74: W | AB74: HL920X390 | AC74: W | AH74: W840X295X210 | AI74: W | AK74: W14X8X48 | AL74: W | AN74: W360X200X72 | AO74: W | AQ74: RHHF260X140X6.3 | AR74: B | AT74: HN550X200X9X14 | AU74: W | AW74: HS254X152X9.5 | AX74: B | AZ74: HS254X152X9.5 | BA74: B | BC74: TUBO90X90X5 | BD74: B | BF74: ISWB200 | BG74: W | BI74: NPB400X180X66.3 | BJ74: NPB | BL74: H900X400X19X32 | BM74: W | BO74: B 100X40X1.6 | BP74: B | BR74: SHS150X150X16 | BS74: B | BU74: Тп80x70x6,5 | BV74: HSS | BX74: 03_Tk_120x5,5 | BY74: HSS | CA74: 03_Тк_120х5,5 | CB74: HSS | CD74: 60X60X2.9SHS | CE74: SHS | CK74: TUBO90X90X5
A75: 250X250X6SHS | B75: B | D75: HSS12X6X5/8 | E75: B | G75: HSS304.8X152.4X15.9 | H75: B | J75: HSS14X4X5/16 | K75: B | M75: HSS355.6X101.6X7.9 | N75: B | P75: RHS70X50X3.6 | Q75: B | S75: UB914X305X345 | T75: W | V75: UBP305X305X126 | W75: W | Y75: HE140A | Z75: W | AB75: HL920X420 | AC75: W | AH75: W840X295X226 | AI75: W | AK75: W14X8X53 | AL75: W | AN75: W360X200X79 | AO75: W | AQ75: RHHF260X140X8 | AR75: B | AT75: HN550X200X10X16 | AU75: W | AW75: HS254X152X8.0 | AX75: B | AZ75: HS254X152X8.0 | BA75: B | BC75: TUBO90X90X5.4 | BD75: B | BF75: ISWB225 | BG75: W | BI75: NPB400X180X75.7 | BJ75: NPB | BL75: H900X400X19X28 | BM75: W | BO75: B 100X40X2.3 | BP75: B | BR75: SHS160X160X5 | BS75: B | BU75: Тп80x70x7 | BV75: HSS | BX75: 03_Tk_120x6 | BY75: HSS | CA75: 03_Тк_120х6 | CB75: HSS | CD75: 60X60X3.2SHS | CE75: SHS | CK75: TUBO90X90X5.4
A76: 200X200X9SHS | B76: B | D76: HSS12X6X1/2 | E76: B | G76: HSS304.8X152.4X12.7 | H76: B | J76: HSS14X4X1/4 | K76: B | M76: HSS355.6X101.6X6.4 | N76: B | P76: RHS70X50X4 | Q76: B | S76: UB914X305X381 | T76: W | V76: UBP305X305X149 | W76: W | Y76: HE140B | Z76: W | AB76: HL920X449 | AC76: W | AH76: W840X295X251 | AI76: W | AK76: W14X10X61 | AL76: W | AN76: W360X250X91 | AO76: W | AQ76: RHHF260X140X10 | AR76: B | AT76: HN550X200X10X15 | AU76: W | AW76: HS254X152X6.4 | AX76: B | AZ76: HS254X152X6.4 | BA76: B | BC76: TUBO90X90X5.9 | BD76: B | BF76: ISWB250 | BG76: W | BI76: NPB450X190X67.1 | BJ76: NPB | BL76: H900X400X16X32 | BM76: W | BO76: B 100X40X4.2 | BP76: B | BR76: SHS160X160X6 | BS76: B | BU76: Тп90x50x3 | BV76: HSS | BX76: 03_Tk_120x6,5 | BY76: HSS | CA76: 03_Тк_120х6,5 | CB76: HSS | CD76: 60X60X4.0SHS | CE76: SHS | CK76: TUBO90X90X5.9
A77: 200X200X6SHS | B77: B | D77: HSS12X6X3/8 | E77: B | G77: HSS304.8X152.4X9.5 | H77: B | J77: HSS14X4X3/16 | K77: B | M77: HSS355.6X101.6X4.8 | N77: B | P77: RHS70X50X5 | Q77: B | S77: UB914X305X425 | T77: W | V77: UBP305X305X186 | W77: W | Y77: HE140C | Z77: W | AB77: HL920X491 | AC77: W | AH77: W920X310X223 | AI77: W | AK77: W14X10X68 | AL77: W | AN77: W360X250X101 | AO77: W | AQ77: RHHF260X140X12.5 | AR77: B | AT77: HN600X200X11X17 | AU77: W | AW77: HS203X152X13 | AX77: B | AZ77: HS203X152X13 | BA77: B | BC77: TUBO90X90X7.1 | BD77: B | BF77: ISWB300 | BG77: W | BI77: NPB450X190X77.6 | BJ77: NPB | BL77: H900X400X16X28 | BM77: W | BO77: B 100X50X1.6 | BP77: B | BR77: SHS160X160X6.3 | BS77: B | BU77: Тп90x50x3,5 | BV77: HSS | BX77: 03_Tk_120x7 | BY77: HSS | CA77: 03_Тк_120х7 | CB77: HSS | CD77: 60X60X4.8SHS | CE77: SHS | CK77: TUBO90X90X7.1
A78: 200X200X5SHS | B78: B | D78: HSS12X6X5/16 | E78: B | G78: HSS304.8X152.4X7.9 | H78: B | J78: HSS12X12X3/4 | K78: B | M78: HSS304.8X304.8X19 | N78: B | P78: RHS70X50X5.4 | Q78: B | S78: UB914X305X474 | T78: W | V78: UBP305X305X223 | W78: W | Y78: HE140M | Z78: W | AB78: HL920X537 | AC78: W | AH78: W920X310X238 | AI78: W | AK78: W14X10X74 | AL78: W | AN78: W360X250X110 | AO78: W | AQ78: RHHF260X140X14.2 | AR78: B | AT78: HN600X200X12X20 | AU78: W | AW78: HS203X152X9.5 | AX78: B | AZ78: HS203X152X9.5 | BA78: B | BC78: TUBO90X90X8 | BD78: B | BF78: ISWB350 | BG78: W | BI78: NPB450X190X92.4 | BJ78: NPB | BL78: H900X400X16X25 | BM78: W | BO78: B 100X50X2.3 | BP78: B | BR78: SHS160X160X8 | BS78: B | BU78: Тп90x50x4 | BV78: HSS | BX78: 03_Tk_120x7,5 | BY78: HSS | CA78: 03_Тк_120х7,5 | CB78: HSS | CD78: 72X72X3.2SHS | CE78: SHS | CK78: TUBO90X90X8
A79: 150X150X9SHS | B79: B | D79: HSS12X6X1/4 | E79: B | G79: HSS304.8X152.4X6.4 | H79: B | J79: HSS12X12X5/8 | K79: B | M79: HSS304.8X304.8X15.9 | N79: B | P79: RHS70X50X6 | Q79: B | S79: UB914X305X521 | T79: W | V79: UBP356X368X109 | W79: W | Y79: HE160AA | Z79: W | AB79: HL920X588 | AC79: W | AH79: W920X310X253 | AI79: W | AK79: W14X10X82 | AL79: W | AN79: W360X250X122 | AO79: W | AQ79: RHHF260X140X16 | AR79: B | AT79: HN625X200X11.5X17.5 | AU79: W | AW79: HS203X152X8.0 | AX79: B | AZ79: HS203X152X8.0 | BA79: B | BC79: TUBO90X90X10 | BD79: B | BF79: ISWB400 | BG79: W | BI79: NPB500X200X79.4 | BJ79: NPB | BL79: H900X350X19X40 | BM79: W | BO79: B 100X50X3.2 | BP79: B | BR79: SHS160X160X10 | BS79: B | BU79: Тп90x50x4,5 | BV79: HSS | BX79: 03_Tk_120x8 | BY79: HSS | CA79: 03_Тк_120х8 | CB79: HSS | CD79: 72X72X4.0SHS | CE79: SHS | CK79: TUBO90X90X10
A80: 150X150X6SHS | B80: B | D80: HSS12X6X3/16 | E80: B | G80: HSS304.8X152.4X4.8 | H80: B | J80: HSS12X12X1/2 | K80: B | M80: HSS304.8X304.8X12.7 | N80: B | P80: RHS70X50X8 | Q80: B | S80: UB914X305X576 | T80: W | V80: UBP356X368X133 | W80: W | Y80: HE160A | Z80: W | AB80: HL920X656 | AC80: W | AH80: W920X310X271 | AI80: W | AK80: W14X14.5X90 | AL80: W | AN80: W360X370X134 | AO80: W | AQ80: RHHF300X100X8 | AR80: B | AT80: HN625X200X13X20 | AU80: W | AW80: HS203X152X6.4 | AX80: B | AZ80: HS203X152X6.4 | BA80: B | BC80: TUBO90X90X12.5 | BD80: B | BF80: ISWB450 | BG80: W | BI80: NPB500X200X90.7 | BJ80: NPB | BL80: H900X350X19X36 | BM80: W | BO80: B 100X50X4.5 | BP80: B | BR80: SHS160X160X12 | BS80: B | BU80: Тп90x50x5 | BV80: HSS | BX80: 03_Tk_140x4 | BY80: HSS | CA80: 03_Тк_140х4 | CB80: HSS | CD80: 72X72X4.8SHS | CE80: SHS | CK80: TUBO90X90X12.5
A81: 150X150X5SHS | B81: B | D81: HSS12X4X5/8 | E81: B | G81: HSS304.8X101.6X15.9 | H81: B | J81: HSS12X12X3/8 | K81: B | M81: HSS304.8X304.8X9.5 | N81: B | P81: RHS75X25X1.6 | Q81: B | S81: UB914X419X343 | T81: W | V81: UBP356X368X152 | W81: W | Y81: HE160B | Z81: W | AB81: HL920X725 | AC81: W | AH81: W920X310X289 | AI81: W | AK81: W14X14.5X99 | AL81: W | AN81: W360X370X147 | AO81: W | AQ81: RHHF300X100X10 | AR81: B | AT81: HN625X200X15X24 | AU81: W | AW81: HS203X152X4.8 | AX81: B | AZ81: HS203X152X4.8 | BA81: B | BC81: TUBO90X90X14.2 | BD81: B | BF81: ISWB500 | BG81: W | BI81: NPB500X200X107.3 | BJ81: NPB | BL81: H900X350X19X32 | BM81: W | BO81: B 125X40X1.6 | BP81: B | BR81: SHS160X160X12.5 | BS81: B | BU81: Тп90x50x5,5 | BV81: HSS | BX81: 03_Tk_140x4,5 | BY81: HSS | CA81: 03_Тк_140х4,5 | CB81: HSS | CD81: 80X80X3.2SHS | CE81: SHS | CK81: TUBO90X90X14.2
A82: 150X150X4SHS | B82: B | D82: HSS12X4X1/2 | E82: B | G82: HSS304.8X101.6X12.7 | H82: B | J82: HSS12X12X5/16 | K82: B | M82: HSS304.8X304.8X7.9 | N82: B | P82: RHS75X25X2 | Q82: B | S82: UB914X419X388 | T82: W | V82: UBP356X368X174 | W82: W | Y82: HE160C | Z82: W | AB82: HL920X787 | AC82: W | AH82: W920X310X313 | AI82: W | AK82: W14X14.5X109 | AL82: W | AN82: W360X370X162 | AO82: W | AQ82: RHHF300X100X14.2 | AR82: B | AT82: HN650X300X10X15 | AU82: W | AW82: HS203X102X13 | AX82: B | AZ82: HS203X102X13 | BA82: B | BC82: TUBO90X90X16 | BD82: B | BF82: ISWB550 | BG82: W | BI82: NPB600X220X107.6 | BJ82: NPB | BL82: H900X350X19X28 | BM82: W | BO82: B 125X40X2.3 | BP82: B | BR82: SHS160X160X16 | BS82: B | BU82: Тп90x50x6 | BV82: HSS | BX82: 03_Tk_140x5 | BY82: HSS | CA82: 03_Тк_140х5 | CB82: HSS | CD82: 80X80X4.0SHS | CE82: SHS | CK82: TUBO90X90X16
A83: 150X150X3SHS | B83: B | D83: HSS12X4X3/8 | E83: B | G83: HSS304.8X101.6X9.5 | H83: B | J83: HSS12X12X1/4 | K83: B | M83: HSS304.8X304.8X6.4 | N83: B | P83: RHS75X25X2.2 | Q83: B | S83: UB1016X305X222 | T83: W | Y83: HE160M | Z83: W | AB83: HL920X970 | AC83: W | AH83: W920X310X345 | AI83: W | AK83: W14X14.5X120 | AL83: W | AN83: W360X370X179 | AO83: W | AQ83: RHHF300X150X8 | AR83: B | AT83: HN650X300X11X17 | AU83: W | AW83: HS203X102X9.5 | AX83: B | AZ83: HS203X102X9.5 | BA83: B | BC83: TUBO90X90X17.5 | BD83: B | BF83: ISWB600-1 | BG83: W | BI83: NPB600X220X122.4 | BJ83: NPB | BL83: H900X350X19X25 | BM83: W | BO83: B 125X75X2.3 | BP83: B | BR83: SHS180X180X5 | BS83: B | BU83: Тп90x50x6,5 | BV83: HSS | BX83: 03_Tk_140x5,5 | BY83: HSS | CA83: 03_Тк_140х5,5 | CB83: HSS | CD83: 80X80X4.8SHS | CE83: SHS | CK83: TUBO90X90X17.5
A84: 125X125X9SHS | B84: B | D84: HSS12X4X5/16 | E84: B | G84: HSS304.8X101.6X7.9 | H84: B | J84: HSS12X12X3/16 | K84: B | M84: HSS304.8X304.8X4.8 | N84: B | P84: RHS75X25X2.6 | Q84: B | S84: UB1016X305X249 | T84: W | Y84: HE180AA | Z84: W | AB84: HL920X1077 | AC84: W | AH84: W920X310X381 | AI84: W | AK84: W14X14.5X132 | AL84: W | AN84: W360X370X196 | AO84: W | AQ84: RHHF300X150X10 | AR84: B | AT84: HN650X300X12X20 | AU84: W | AW84: HS203X102X8.0 | AX84: B | AZ84: HS203X102X8.0 | BA84: B | BC84: TUBO90X63X3.6 | BD84: B | BF84: ISWB600-2 | BG84: W | BI84: NPB600X220X154.5 | BJ84: NPB | BL84: H900X350X16X32 | BM84: W | BO84: B 125X75X3.2 | BP84: B | BR84: SHS180X180X6 | BS84: B | BU84: Тп90x50x7 | BV84: HSS | BX84: 03_Tk_140x6 | BY84: HSS | CA84: 03_Тк_140х6 | CB84: HSS | CD84: 91.5X91.5X3.6SHS | CE84: SHS | CK84: TUBO90X63X3.6
A85: 125X125X6SHS | B85: B | D85: HSS12X4X1/4 | E85: B | G85: HSS304.8X101.6X6.4 | H85: B | J85: HSS12X10X1/2 | K85: B | M85: HSS304.8X254X12.7 | N85: B | P85: RHS75X50X1.6 | Q85: B | S85: UB1016X305X272 | T85: W | Y85: HE180A | Z85: W | AB85: HL920X1194 | AC85: W | AH85: W920X310X425 | AI85: W | AK85: W14X16X145 | AL85: W | AN85: W360X410X216 | AO85: W | AQ85: RHHF300X150X12.5 | AR85: B | AT85: HN700X300X13X20 | AU85: W | AW85: HS203X102X6.4 | AX85: B | AZ85: HS203X102X6.4 | BA85: B | BC85: TUBO90X63X4 | BD85: B | BF85: ISHB150-1 | BG85: W | BI85: NPB100X55X8.1 | BJ85: NPB | BL85: H900X350X16X28 | BM85: W | BO85: B 125X75X4 | BP85: B | BR85: SHS180X180X6.3 | BS85: B | BU85: Тп90x60x3 | BV85: HSS | BX85: 03_Tk_140x6,5 | BY85: HSS | CA85: 03_Тк_140х6,5 | CB85: HSS | CD85: 91.5X91.5X4.5SHS | CE85: SHS | CK85: TUBO90X63X4
A86: 125X125X5SHS | B86: B | D86: HSS12X4X3/16 | E86: B | G86: HSS304.8X101.6X4.8 | H86: B | J86: HSS12X10X3/8 | K86: B | M86: HSS304.8X254X9.5 | N86: B | P86: RHS75X50X2 | Q86: B | S86: UB1016X305X314 | T86: W | Y86: HE180B | Z86: W | AB86: HL920X1269 | AC86: W | AH86: W920X310X474 | AI86: W | AK86: W14X16X159 | AL86: W | AN86: W360X410X237 | AO86: W | AQ86: RHHF300X150X14.2 | AR86: B | AT86: HN700X300X13X24 | AU86: W | AW86: HS203X102X4.8 | AX86: B | AZ86: HS203X102X4.8 | BA86: B | BC86: TUBO90X63X4.5 | BD86: B | BF86: ISHB150-2 | BG86: W | BI86: NPB120X60X10.4 | BJ86: NPB | BL86: H900X350X16X25 | BM86: W | BO86: B 125X75X4.5 | BP86: B | BR86: SHS180X180X8 | BS86: B | BU86: Тп90x60x3,5 | BV86: HSS | BX86: 03_Tk_140x7 | BY86: HSS | CA86: 03_Тк_140х7 | CB86: HSS | CD86: 91.5X91.5X5.4SHS | CE86: SHS | CK86: TUBO90X63X4.5
A87: 125X125X4SHS | B87: B | D87: HSS12X3-1/2X3/8 | E87: B | G87: HSS304.8X88.9X9.5 | H87: B | J87: HSS12X10X5/16 | K87: B | M87: HSS304.8X254X7.9 | N87: B | P87: RHS75X50X2.2 | Q87: B | S87: UB1016X305X350 | T87: W | Y87: HE180C | Z87: W | AB87: HL920X1377 | AC87: W | AH87: W920X310X521 | AI87: W | AK87: W14X16X176 | AL87: W | AN87: W360X410X262 | AO87: W | AQ87: RHHF300X150X16 | AR87: B | AT87: HN750X300X12X16 | AU87: W | AW87: HS178X127X13 | AX87: B | AZ87: HS178X127X13 | BA87: B | BC87: TUBO90X63X5 | BD87: B | BF87: ISHB150-3 | BG87: W | BI87: NPB140X70X12.9 | BJ87: NPB | BL87: H900X300X19X32 | BM87: W | BO87: B 125X75X6 | BP87: B | BR87: SHS180X180X10 | BS87: B | BU87: Тп90x60x4 | BV87: HSS | BX87: 03_Tk_140x7,5 | BY87: HSS | CA87: 03_Тк_140х7,5 | CB87: HSS | CD87: 100X100X4.0SHS | CE87: SHS | CK87: TUBO90X63X5
A88: 100X100X9SHS | B88: B | D88: HSS12X3-1/2X5/16 | E88: B | G88: HSS304.8X88.9X7.9 | H88: B | J88: HSS12X10X1/4 | K88: B | M88: HSS304.8X254X6.4 | N88: B | P88: RHS75X50X2.5 | Q88: B | S88: UB1016X305X393 | T88: W | Y88: HE180M | Z88: W | AB88: HL1000AA | AC88: W | AH88: W920X310X576 | AI88: W | AK88: W14X16X193 | AL88: W | AN88: W360X410X287 | AO88: W | AQ88: RHHF300X200X6.3 | AR88: B | AT88: HN750X300X13X20 | AU88: W | AW88: HS178X127X9.5 | AX88: B | AZ88: HS178X127X9.5 | BA88: B | BC88: TUBO90X63X5.4 | BD88: B | BF88: ISHB200-1 | BG88: W | BI88: NPB160X80X15.8 | BJ88: NPB | BL88: H900X300X19X28 | BM88: W | BO88: B 150X75X3.2 | BP88: B | BR88: SHS180X180X12 | BS88: B | BU88: Тп90x60x4,5 | BV88: HSS | BX88: 03_Tk_140x8 | BY88: HSS | CA88: 03_Тк_140х8 | CB88: HSS | CD88: 100X100X5.0SHS | CE88: SHS | CK88: TUBO90X63X5.4
A89: 100X100X6SHS | B89: B | D89: HSS12X3X5/16 | E89: B | G89: HSS304.8X76.2X7.9 | H89: B | J89: HSS12X8X5/8 | K89: B | M89: HSS304.8X203.2X15.9 | N89: B | P89: RHS75X50X2.9 | Q89: B | S89: UB1016X305X415 | T89: W | Y89: HE200AA | Z89: W | AB89: HL1000A | AC89: W | AH89: W920X420X344 | AI89: W | AK89: W14X16X211 | AL89: W | AN89: W360X410X314 | AO89: W | AQ89: RHHF300X200X8 | AR89: B | AT89: HN750X300X13X24 | AU89: W | AW89: HS178X127X8.0 | AX89: B | AZ89: HS178X127X8.0 | BA89: B | BC89: TUBO90X63X5.9 | BD89: B | BF89: ISHB200-2 | BG89: W | BI89: NPB180X90X15.4 | BJ89: NPB | BL89: H900X300X19X25 | BM89: W | BO89: B 150X80X4.5 | BP89: B | BR89: SHS180X180X12.5 | BS89: B | BU89: Тп90x60x5 | BV89: HSS | BX89: 03_Tk_150x4 | BY89: HSS | CA89: 03_Тк_150х4 | CB89: HSS | CD89: 100X100X6.0SHS | CE89: SHS | CK89: TUBO90X63X5.9
A90: 100X100X5SHS | B90: B | D90: HSS12X3X1/4 | E90: B | G90: HSS304.8X76.2X6.4 | H90: B | J90: HSS12X8X1/2 | K90: B | M90: HSS304.8X203.2X12.7 | N90: B | P90: RHS75X50X3.2 | Q90: B | S90: UB1016X305X438 | T90: W | Y90: HE200A | Z90: W | AB90: HL1000B | AC90: W | AH90: W920X420X368 | AI90: W | AK90: W14X16X233 | AL90: W | AN90: W360X410X347 | AO90: W | AQ90: RHHF300X200X10 | AR90: B | AT90: HN750X300X16X28 | AU90: W | AW90: HS178X127X6.4 | AX90: B | AZ90: HS178X127X6.4 | BA90: B | BC90: TUBO90X63X7.1 | BD90: B | BF90: ISHB225-1 | BG90: W | BI90: NPB180X90X18.8 | BJ90: NPB | BL90: H900X300X19X22 | BM90: W | BO90: B 150X80X5 | BP90: B | BR90: SHS180X180X16 | BS90: B | BU90: Тп90x60x5,5 | BV90: HSS | BX90: 03_Tk_150x4,5 | BY90: HSS | CA90: 03_Тк_150х4,5 | CB90: HSS | CD90: 113.5X113.5X4.8SHS | CE90: SHS | CK90: TUBO90X63X7.1
A91: 100X100X4SHS | B91: B | D91: HSS12X3X3/16 | E91: B | G91: HSS304.8X76.2X4.8 | H91: B | J91: HSS12X8X3/8 | K91: B | M91: HSS304.8X203.2X9.5 | N91: B | P91: RHS75X50X3.6 | Q91: B | S91: UB1016X305X494 | T91: W | Y91: HE200B | Z91: W | AB91: HL1000M | AC91: W | AH91: W920X420X390 | AI91: W | AK91: W14X16X257 | AL91: W | AN91: W360X410X382 | AO91: W | AQ91: RHHF300X200X12.5 | AR91: B | AT91: HN800X300X14X22 | AU91: W | AW91: HS178X127X4.8 | AX91: B | AZ91: HS178X127X4.8 | BA91: B | BC91: TUBO90X63X8 | BD91: B | BF91: ISHB225-2 | BG91: W | BI91: NPB180X90X21.3 | BJ91: NPB | BL91: H900X300X16X32 | BM91: W | BO91: B 150X80X6 | BP91: B | BR91: SHS200X200X5 | BS91: B | BU91: Тп90x60x6 | BV91: HSS | BX91: 03_Tk_150x5 | BY91: HSS | CA91: 03_Тк_150х5 | CB91: HSS | CD91: 113.5X113.5X5.4SHS | CE91: SHS | CK91: TUBO90X63X8
A92: 100X100X3SHS | B92: B | D92: HSS12X2X5/16 | E92: B | G92: HSS304.8X50.8X7.9 | H92: B | J92: HSS12X8X5/16 | K92: B | M92: HSS304.8X203.2X7.9 | N92: B | P92: RHS75X50X4 | Q92: B | S92: UB1016X305X584 | T92: W | Y92: HE200C | Z92: W | AB92: HL1000X443 | AC92: W | AH92: W920X420X420 | AI92: W | AK92: W14X16X283 | AL92: W | AN92: W360X410X421 | AO92: W | AQ92: RHHF300X200X14.2 | AR92: B | AT92: HN800X300X14X26 | AU92: W | AW92: HS152X102X13 | AX92: B | AZ92: HS152X102X13 | BA92: B | BC92: TUBO90X63X10 | BD92: B | BF92: ISHB250-1 | BG92: W | BI92: NPB200X100X18.4 | BJ92: NPB | BL92: H900X300X16X28 | BM92: W | BO92: B 150X100X3.2 | BP92: B | BR92: SHS200X200X6 | BS92: B | BU92: Тп90x60x7 | BV92: HSS | BX92: 03_Tk_150x5,5 | BY92: HSS | CA92: 03_Тк_150х5,5 | CB92: HSS | CD92: 132X132X4.8SHS | CE92: SHS | CK92: TUBO90X63X10
A93: 100X100X2.8SHS | B93: B | D93: HSS12X2X1/4 | E93: B | G93: HSS304.8X50.8X6.4 | H93: B | J93: HSS12X8X1/4 | K93: B | M93: HSS304.8X203.2X6.4 | N93: B | P93: RHS80X40X1.6 | Q93: B | S93: UB1016X305X642 | T93: W | Y93: HE200M | Z93: W | AB93: HL1000X483 | AC93: W | AH93: W920X420X449 | AI93: W | AK93: W14X16X311 | AL93: W | AN93: W360X410X463 | AO93: W | AQ93: RHHF300X200X16 | AR93: B | AT93: HN850X300X14X19 | AU93: W | AW93: HS152X102X9.5 | AX93: B | AZ93: HS152X102X9.5 | BA93: B | BC93: TUBO90X63X12.5 | BD93: B | BF93: ISHB250-2 | BG93: W | BI93: NPB200X100X22.4 | BJ93: NPB | BL93: H900X300X16X25 | BM93: W | BO93: B 150X100X4.5 | BP93: B | BR93: SHS200X200X6.3 | BS93: B | BU93: Тп100x40x3 | BV93: HSS | BX93: 03_Tk_150x6 | BY93: HSS | CA93: 03_Тк_150х6 | CB93: HSS | CD93: 132X132X5.4SHS | CE93: SHS | CK93: TUBO90X63X12.5
A94: 100X100X2.5SHS | B94: B | D94: HSS12X2X3/16 | E94: B | G94: HSS304.8X50.8X4.8 | H94: B | J94: HSS12X8X3/16 | K94: B | M94: HSS304.8X203.2X4.8 | N94: B | P94: RHS80X40X1.8 | Q94: B | S94: UB1016X305X748 | T94: W | Y94: HE220AA | Z94: W | AB94: HL1000X539 | AC94: W | AH94: W920X420X491 | AI94: W | AK94: W14X16X342 | AL94: W | AN94: W360X410X509 | AO94: W | AQ94: RHHF300X250X5 | AR94: B | AT94: HN850X300X15X23 | AU94: W | AW94: HS152X102X8.0 | AX94: B | AZ94: HS152X102X8.0 | BA94: B | BC94: TUBO90X45X3.6 | BD94: B | BF94: ISHB300-1 | BG94: W | BI94: NPB200X100X25.1 | BJ94: NPB | BL94: H900X300X16X22 | BM94: W | BO94: B 150X100X6 | BP94: B | BR94: SHS200X200X8 | BS94: B | BU94: Тп100x40x3,5 | BV94: HSS | BX94: 03_Tk_150x6,5 | BY94: HSS | CA94: 03_Тк_150х6,5 | CB94: HSS | CD94: 150X150X4.0SHS | CE94: SHS | CK94: TUBO90X45X3.6
A95: 100X100X2.3SHS | B95: B | D95: HSS10X10X5/8 | E95: B | G95: HSS254X254X15.9 | H95: B | J95: HSS12X6X5/8 | K95: B | M95: HSS304.8X152.4X15.9 | N95: B | P95: RHS80X40X2 | Q95: B | S95: UB1016X305X883 | T95: W | Y95: HE220A | Z95: W | AB95: HL1000X554 | AC95: W | AH95: W920X420X537 | AI95: W | AK95: W14X16X370 | AL95: W | AN95: W360X410X551 | AO95: W | AQ95: RHHF300X250X6.3 | AR95: B | AT95: HN850X300X16X27 | AU95: W | AW95: HS152X102X6.4 | AX95: B | AZ95: HS152X102X6.4 | BA95: B | BC95: TUBO90X45X4 | BD95: B | BF95: ISHB300-2 | BG95: W | BI95: NPB200X130X27.2 | BJ95: NPB | BL95: H900X300X16X19 | BM95: W | BO95: B 150X100X9 | BP95: B | BR95: SHS200X200X10 | BS95: B | BU95: Тп100x40x4 | BV95: HSS | BX95: 03_Tk_150x7 | BY95: HSS | CA95: 03_Тк_150х7 | CB95: HSS | CD95: 150X150X5.0SHS | CE95: SHS | CK95: TUBO90X45X4
A96: 100X100X2SHS | B96: B | D96: HSS10X10X1/2 | E96: B | G96: HSS254X254X12.7 | H96: B | J96: HSS12X6X1/2 | K96: B | M96: HSS304.8X152.4X12.7 | N96: B | P96: RHS80X40X2.2 | Q96: B | S96: UB1016X305X976 | T96: W | Y96: HE220B | Z96: W | AB96: HL1000X591 | AC96: W | AH96: W920X420X588 | AI96: W | AK96: W14X16X398 | AL96: W | AN96: W360X410X592 | AO96: W | AQ96: RHHF300X250X8 | AR96: B | AT96: HN850X300X17X31 | AU96: W | AW96: HS152X102X4.8 | AX96: B | AZ96: HS152X102X4.8 | BA96: B | BC96: TUBO90X45X4.5 | BD96: B | BF96: ISHB350-1 | BG96: W | BI96: NPB200X130X32 | BJ96: NPB | BL96: H900X250X16X28 | BM96: W | BO96: B 200X100X4.5 | BP96: B | BR96: SHS200X200X12 | BS96: B | BU96: Тп100x40x4,5 | BV96: HSS | BX96: 03_Tk_150x7,5 | BY96: HSS | CA96: 03_Тк_150х7,5 | CB96: HSS | CD96: 150X150X6.0SHS | CE96: SHS | CK96: TUBO90X45X4.5
A97: 89X89X6SHS | B97: B | D97: HSS10X10X3/8 | E97: B | G97: HSS254X254X9.5 | H97: B | J97: HSS12X6X3/8 | K97: B | M97: HSS304.8X152.4X9.5 | N97: B | P97: RHS80X40X2.5 | Q97: B | S97: UC152X152X23 | T97: W | Y97: HE220C | Z97: W | AB97: HL1000X642 | AC97: W | AH97: W920X420X656 | AI97: W | AK97: W14X16X426 | AL97: W | AN97: W360X410X634 | AO97: W | AQ97: RHHF300X250X10 | AR97: B | AT97: HN900X300X15X23 | AU97: W | AW97: HS152X76X13 | AX97: B | AZ97: HS152X76X13 | BA97: B | BC97: TUBO90X45X5 | BD97: B | BF97: ISHB350-2 | BG97: W | BI97: NPB220X110X22.2 | BJ97: NPB | BL97: H900X250X16X25 | BM97: W | BO97: B 200X100X6 | BP97: B | BR97: SHS200X200X12.5 | BS97: B | BU97: Тп100x40x5 | BV97: HSS | BX97: 03_Tk_150x8 | BY97: HSS | CA97: 03_Тк_150х8 | CB97: HSS | CD97: 150X150X7.0SHS | CE97: SHS | CK97: TUBO90X45X5
A98: 89X89X5SHS | B98: B | D98: HSS10X10X5/16 | E98: B | G98: HSS254X254X7.9 | H98: B | J98: HSS12X6X5/16 | K98: B | M98: HSS304.8X152.4X7.9 | N98: B | P98: RHS80X40X2.9 | Q98: B | S98: UC152X152X30 | T98: W | Y98: HE220M | Z98: W | AB98: HL1000X748 | AC98: W | AH98: W920X420X725 | AI98: W | AK98: W14X16X455 | AL98: W | AN98: W360X410X677 | AO98: W | AQ98: RHHF300X250X12.5 | AR98: B | AT98: HN900X300X16X28 | AU98: W | AW98: HS152X76X9.5 | AX98: B | AZ98: HS152X76X9.5 | BA98: B | BC98: TUBO90X45X5.4 | BD98: B | BF98: ISHB400-1 | BG98: W | BI98: NPB220X110X26.2 | BJ98: NPB | BL98: H900X250X16X22 | BM98: W | BO98: B 200X100X9 | BP98: B | BR98: SHS200X200X16 | BS98: B | BU98: Тп100x40x5,5 | BV98: HSS | BX98: 03_Tk_160x4 | BY98: HSS | CA98: 03_Тк_160х4 | CB98: HSS | CD98: 150X150X8.0SHS | CE98: SHS | CK98: TUBO90X45X5.4
A99: 89X89X3.5SHS | B99: B | D99: HSS10X10X1/4 | E99: B | G99: HSS254X254X6.4 | H99: B | J99: HSS12X6X1/4 | K99: B | M99: HSS304.8X152.4X6.4 | N99: B | P99: RHS80X40X3.2 | Q99: B | S99: UC152X152X37 | T99: W | Y99: HE240AA | Z99: W | AB99: HL1000X883 | AC99: W | AH99: W920X420X787 | AI99: W | AK99: W14X16X500 | AL99: W | AN99: W360X410X744 | AO99: W | AQ99: RHHF300X250X14.2 | AR99: B | AT99: HN900X300X18X34 | AU99: W | AW99: HS152X76X8.0 | AX99: B | AZ99: HS152X76X8.0 | BA99: B | BC99: TUBO90X45X5.9 | BD99: B | BF99: ISHB400-2 | BG99: W | BI99: NPB220X110X29.3 | BJ99: NPB | BL99: H900X250X16X19 | BM99: W | BO99: B 200X150X4.5 | BP99: B | BR99: SHS250X250X5 | BS99: B | BU99: Тп100x40x6 | BV99: HSS | BX99: 03_Tk_160x4,5 | BY99: HSS | CA99: 03_Тк_160х4,5 | CB99: HSS | CD99: 180X180X4.0SHS | CE99: SHS | CK99: TUBO90X45X5.9
A100: 75X75X6SHS | B100: B | D100: HSS10X10X3/16 | E100: B | G100: HSS254X254X4.8 | H100: B | J100: HSS12X6X3/16 | K100: B | M100: HSS304.8X152.4X4.8 | N100: B | P100: RHS80X40X3.6 | Q100: B | S100: UC203X203X46 | T100: W | Y100: HE240A | Z100: W | AB100: HL1000X976 | AC100: W | AH100: W920X420X970 | AI100: W | AK100: W14X16X550 | AL100: W | AN100: W360X410X818 | AO100: W | AQ100: RHHF300X250X16 | AR100: B | AT100: HN1000X300X16X21 | AU100: W | AW100: HS152X76X6.4 | AX100: B | AZ100: HS152X76X6.4 | BA100: B | BC100: TUBO90X45X7.1 | BD100: B | BF100: ISHB450-1 | BG100: W | BI100: NPB240X120X26.1 | BJ100: NPB | BL100: H850X400X19X40 | BM100: W | BO100: B 200X150X6 | BP100: B | BR100: SHS250X250X6 | BS100: B | BU100: Тп100x40x6,5 | BV100: HSS | BX100: 03_Tk_160x5 | BY100: HSS | CA100: 03_Тк_160х5 | CB100: HSS | CD100: 180X180X5.0SHS | CE100: SHS | CK100: TUBO90X45X7.1
A101: 75X75X5SHS | B101: B | D101: HSS10X8X5/8 | E101: B | G101: HSS254X203.2X15.9 | H101: B | J101: HSS12X4X5/8 | K101: B | M101: HSS304.8X101.6X15.9 | N101: B | P101: RHS80X40X4 | Q101: B | S101: UC203X203X52 | T101: W | Y101: HE240B | Z101: W | AB101: HL1100A | AC101: W | AH101: W920X420X1077 | AI101: W | AK101: W14X16X605 | AL101: W | AN101: W360X410X900 | AO101: W | AQ101: RHHF350X150X5 | AR101: B | AT101: HN1000X300X17X26 | AU101: W | AW101: HS152X76X4.8 | AX101: B | AZ101: HS152X76X4.8 | BA101: B | BC101: TUBO90X45X8 | BD101: B | BF101: ISHB450-2 | BG101: W | BI101: NPB240X120X30.7 | BJ101: NPB | BL101: H850X400X19X36 | BM101: W | BO101: B 200X150X9 | BP101: B | BR101: SHS250X250X6.3 | BS101: B | BU101: Тп100x40x7 | BV101: HSS | BX101: 03_Tk_160x5,5 | BY101: HSS | CA101: 03_Тк_160х5,5 | CB101: HSS | CD101: 180X180X6.0SHS | CE101: SHS | CK101: TUBO90X45X8
A102: 75X75X4SHS | B102: B | D102: HSS10X8X1/2 | E102: B | G102: HSS254X203.2X12.7 | H102: B | J102: HSS12X4X1/2 | K102: B | M102: HSS304.8X101.6X12.7 | N102: B | P102: RHS80X40X5 | Q102: B | S102: UC203X203X60 | T102: W | Y102: HE240C | Z102: W | AB102: HL1100B | AC102: W | AH102: W920X420X1194 | AI102: W | AK102: W14X16X665 | AL102: W | AN102: W360X410X990 | AO102: W | AQ102: RHHF350X150X6.3 | AR102: B | AT102: HN1000X300X17X31 | AU102: W | AW102: HS127X76X9.5 | AX102: B | AZ102: HS127X76X9.5 | BA102: B | BC102: TUBO100X100X5.4 | BD102: B | BI102: NPB240X120X34.3 | BJ102: NPB | BL102: H850X400X19X32 | BM102: W | BO102: B 250X150X6 | BP102: B | BR102: SHS250X250X8 | BS102: B | BU102: Тп100x50x3 | BV102: HSS | BX102: 03_Tk_160x6 | BY102: HSS | CA102: 03_Тк_160х6 | CB102: HSS | CD102: 180X180X7.0SHS | CE102: SHS | CK102: TUBO100X100X5.4
A103: 75X75X3.5SHS | B103: B | D103: HSS10X8X3/8 | E103: B | G103: HSS254X203.2X9.5 | H103: B | J103: HSS12X4X3/8 | K103: B | M103: HSS304.8X101.6X9.5 | N103: B | P103: RHS96X48X1.6 | Q103: B | S103: UC203X203X71 | T103: W | Y103: HE240M | Z103: W | AB103: HL1100M | AC103: W | AH103: W920X420X1269 | AI103: W | AK103: W14X16X730 | AL103: W | AN103: W360X410X1086 | AO103: W | AQ103: RHHF350X150X8 | AR103: B | AT103: HN1000X300X19X36 | AU103: W | AW103: HS127X76X8.0 | AX103: B | AZ103: HS127X76X8.0 | BA103: B | BC103: TUBO100X100X5.9 | BD103: B | BI103: NPB270X135X30.7 | BJ103: NPB | BL103: H850X400X19X28 | BM103: W | BO103: B 250X150X9 | BP103: B | BR103: SHS250X250X10 | BS103: B | BU103: Тп100x50x3,5 | BV103: HSS | BX103: 03_Tk_160x6,5 | BY103: HSS | CA103: 03_Тк_160х6,5 | CB103: HSS | CD103: 180X180X8.0SHS | CE103: SHS | CK103: TUBO100X100X5.9
A104: 75X75X3SHS | B104: B | D104: HSS10X8X5/16 | E104: B | G104: HSS254X203.2X7.9 | H104: B | J104: HSS12X4X5/16 | K104: B | M104: HSS304.8X101.6X7.9 | N104: B | P104: RHS96X48X2 | Q104: B | S104: UC203X203X86 | T104: W | Y104: HE260AA | Z104: W | AB104: HL1100R | AC104: W | AH104: W920X420X1377 | AI104: W | AK104: W14X16X808 | AL104: W | AN104: W360X410X1202 | AO104: W | AQ104: RHHF350X150X10 | AR104: B | AT104: HN1000X300X21X40 | AU104: W | AW104: HS127X76X6.4 | AX104: B | AZ104: HS127X76X6.4 | BA104: B | BC104: TUBO100X100X7.1 | BD104: B | BI104: NPB270X135X36.1 | BJ104: NPB | BL104: H850X400X16X32 | BM104: W | BO104: B 250X150X12 | BP104: B | BR104: SHS250X250X12 | BS104: B | BU104: Тп100x50x4 | BV104: HSS | BX104: 03_Tk_160x7 | BY104: HSS | CA104: 03_Тк_160х7 | CB104: HSS | CD104: 220X220X6.0SHS | CE104: SHS | CK104: TUBO100X100X7.1
A105: 75X75X2.8SHS | B105: B | D105: HSS10X8X1/4 | E105: B | G105: HSS254X203.2X6.4 | H105: B | J105: HSS12X4X1/4 | K105: B | M105: HSS304.8X101.6X6.4 | N105: B | P105: RHS96X48X2.2 | Q105: B | S105: UC254X254X73 | T105: W | Y105: HE260A | Z105: W | AB105: HD260X68.2 | AC105: W | AH105: W1000X300X249 | AI105: W | AK105: W14X16X873 | AL105: W | AN105: W360X410X1299 | AO105: W | AQ105: RHHF350X150X12.5 | AR105: B | AT105: HN100X75X6X8 | AU105: W | AW105: HS127X76X4.8 | AX105: B | AZ105: HS127X76X4.8 | BA105: B | BC105: TUBO100X100X8 | BD105: B | BI105: NPB270X135X42.3 | BJ105: NPB | BL105: H850X400X16X28 | BM105: W | BO105: B 300X200X6 | BP105: B | BR105: SHS250X250X12.5 | BS105: B | BU105: Тп100x50x4,5 | BV105: HSS | BX105: 03_Tk_160x7,5 | BY105: HSS | CA105: 03_Тк_160х7,5 | CB105: HSS | CD105: 220X220X8.0SHS | CE105: SHS | CK105: TUBO100X100X8
A106: 75X75X2.5SHS | B106: B | D106: HSS10X8X3/16 | E106: B | G106: HSS254X203.2X4.8 | H106: B | J106: HSS12X4X3/16 | K106: B | M106: HSS304.8X101.6X4.8 | N106: B | P106: RHS96X48X2.5 | Q106: B | S106: UC254X254X89 | T106: W | Y106: HE260B | Z106: W | AB106: HD260X93.0 | AC106: W | AH106: W1000X300X272 | AI106: W | AK106: W16X5.5X26 | AL106: W | AN106: W410X140X38.8 | AO106: W | AQ106: RHHF350X150X14.2 | AR106: B | AT106: HN126X75X6X8 | AU106: W | AW106: HS102X76X9.5 | AX106: B | AZ106: HS102X76X9.5 | BA106: B | BC106: TUBO100X100X10 | BD106: B | BI106: UB203X133X25 | BJ106: UB | BL106: H850X400X16X25 | BM106: W | BO106: B 300X200X9 | BP106: B | BR106: SHS250X250X16 | BS106: B | BU106: Тп100x50x5 | BV106: HSS | BX106: 03_Tk_160x8 | BY106: HSS | CA106: 03_Тк_160х8 | CB106: HSS | CD106: 220X220X10.0SHS | CE106: SHS | CK106: TUBO100X100X10
A107: 75X75X2.3SHS | B107: B | D107: HSS10X6X5/8 | E107: B | G107: HSS254X152.4X15.9 | H107: B | J107: HSS12X3-1/2X3/8 | K107: B | M107: HSS304.8X88.9X9.5 | N107: B | P107: RHS96X48X2.9 | Q107: B | S107: UC254X254X107 | T107: W | Y107: HE260C | Z107: W | AB107: HD260X114 | AC107: W | AH107: W1000X300X314 | AI107: W | AK107: W16X5.5X31 | AL107: W | AN107: W410X140X46.1 | AO107: W | AQ107: RHHF350X150X16 | AR107: B | AT107: HN140X90X5X8 | AU107: W | AW107: HS102X76X8.0 | AX107: B | AZ107: HS102X76X8.0 | BA107: B | BC107: TUBO100X100X12.5 | BD107: B | BI107: UB203X133X30 | BJ107: UB | BL107: H850X350X19X40 | BM107: W | BO107: B 300X200X12 | BP107: B | BR107: SHS300X300X6 | BS107: B | BU107: Тп100x50x5,5 | BV107: HSS | BX107: 03_Tk_180x5 | BY107: HSS | CA107: 03_Тк_180х5 | CB107: HSS | CD107: 220X220X12.0SHS | CE107: SHS | CK107: TUBO100X100X12.5
A108: 75X75X2SHS | B108: B | D108: HSS10X6X1/2 | E108: B | G108: HSS254X152.4X12.7 | H108: B | J108: HSS12X3-1/2X5/16 | K108: B | M108: HSS304.8X88.9X7.9 | N108: B | P108: RHS96X48X3.2 | Q108: B | S108: UC254X254X132 | T108: W | Y108: HE260M | Z108: W | AB108: HD260X142 | AC108: W | AH108: W1000X300X350 | AI108: W | AK108: W16X7X36 | AL108: W | AN108: W410X180X53 | AO108: W | AQ108: RHHF350X250X5 | AR108: B | AT108: HN160X90X5X8 | AU108: W | AW108: HS102X76X6.4 | AX108: B | AZ108: HS102X76X6.4 | BA108: B | BC108: TUBO100X100X14.2 | BD108: B | BI108: UB254X146X31 | BJ108: UB | BL108: H850X350X19X36 | BM108: W | BO108: B 350X150X6 | BP108: B | BR108: SHS300X300X6.3 | BS108: B | BU108: Тп100x50x6 | BV108: HSS | BX108: 03_Tk_180x5,5 | BY108: HSS | CA108: 03_Тк_180х5,5 | CB108: HSS | CD108: 250X250X6.0SHS | CE108: SHS | CK108: TUBO100X100X14.2
A109: 65X65X6SHS | B109: B | D109: HSS10X6X3/8 | E109: B | G109: HSS254X152.4X9.5 | H109: B | J109: HSS12X3X5/16 | K109: B | M109: HSS304.8X76.2X7.9 | N109: B | P109: RHS96X48X3.6 | Q109: B | S109: UC254X254X167 | T109: W | Y109: HE280AA | Z109: W | AB109: HD260X172 | AC109: W | AH109: W1000X300X393 | AI109: W | AK109: W16X7X40 | AL109: W | AN109: W410X180X60 | AO109: W | AQ109: RHHF350X250X6.3 | AR109: B | AT109: HN180X90X5X8 | AU109: W | AW109: HS102X76X4.8 | AX109: B | AZ109: HS102X76X4.8 | BA109: B | BC109: TUBO100X100X16 | BD109: B | BI109: UB254X146X37 | BJ109: UB | BL109: H850X350X19X32 | BM109: W | BO109: B 350X150X9 | BP109: B | BR109: SHS300X300X8 | BS109: B | BU109: Тп100x50x6,5 | BV109: HSS | BX109: 03_Tk_180x6 | BY109: HSS | CA109: 03_Тк_180х6 | CB109: HSS | CD109: 250X250X8.0SHS | CE109: SHS | CK109: TUBO100X100X16
A110: 65X65X5SHS | B110: B | D110: HSS10X6X5/16 | E110: B | G110: HSS254X152.4X7.9 | H110: B | J110: HSS12X3X1/4 | K110: B | M110: HSS304.8X76.2X6.4 | N110: B | P110: RHS96X48X4 | Q110: B | S110: UC305X305X97 | T110: W | Y110: HE280A | Z110: W | AB110: HD320X97.6 | AC110: W | AH110: W1000X300X415 | AI110: W | AK110: W16X7X45 | AL110: W | AN110: W410X180X67 | AO110: W | AQ110: RHHF350X250X8 | AR110: B | AT110: HN220X125X6X9 | AU110: W | AW110: HS102X76X3.2 | AX110: B | AZ110: HS102X76X3.2 | BA110: B | BC110: TUBO100X100X17.5 | BD110: B | BI110: UB254X146X43 | BJ110: UB | BL110: H850X350X19X28 | BM110: W | BO110: B 350X150X12 | BP110: B | BR110: SHS300X300X10 | BS110: B | BU110: Тп100x50x7 | BV110: HSS | BX110: 03_Tk_180x6,5 | BY110: HSS | CA110: 03_Тк_180х6,5 | CB110: HSS | CD110: 250X250X10.0SHS | CE110: SHS | CK110: TUBO100X100X17.5
A111: 65X65X4SHS | B111: B | D111: HSS10X6X1/4 | E111: B | G111: HSS254X152.4X6.4 | H111: B | J111: HSS12X3X3/16 | K111: B | M111: HSS304.8X76.2X4.8 | N111: B | P111: RHS96X48X4.5 | Q111: B | S111: UC305X305X118 | T111: W | Y111: HE280B | Z111: W | AB111: HD320X127 | AC111: W | AH111: W1000X300X438 | AI111: W | AK111: W16X7X50 | AL111: W | AN111: W410X180X75 | AO111: W | AQ111: RHHF350X250X10 | AR111: B | AT111: HN280X125X6X9 | AU111: W | AW111: HS102X51X9.5 | AX111: B | AZ111: HS102X51X9.5 | BA111: B | BC111: TUBO100X70X3.6 | BD111: B | BI111: UB305X165X40 | BJ111: UB | BL111: H850X350X16X32 | BM111: W | BO111: B 400X200X6 | BP111: B | BR111: SHS300X300X12 | BS111: B | BU111: Тп100x60x3 | BV111: HSS | BX111: 03_Tk_180x7 | BY111: HSS | CA111: 03_Тк_180х7 | CB111: HSS | CD111: 250X250X12.0SHS | CE111: SHS | CK111: TUBO100X70X3.6
A112: 65X65X3SHS | B112: B | D112: HSS10X6X3/16 | E112: B | G112: HSS254X152.4X4.8 | H112: B | J112: HSS12X2X5/16 | K112: B | M112: HSS304.8X50.8X7.9 | N112: B | P112: RHS96X48X5 | Q112: B | S112: UC305X305X137 | T112: W | Y112: HE280C | Z112: W | AB112: HD320X158 | AC112: W | AH112: W1000X300X494 | AI112: W | AK112: W16X7X57 | AL112: W | AN112: W410X180X85 | AO112: W | AQ112: RHHF350X250X12.5 | AR112: B | AT112: HN320X150X6.5X9 | AU112: W | AW112: HS102X51X8.0 | AX112: B | AZ112: HS102X51X8.0 | BA112: B | BC112: TUBO100X70X4 | BD112: B | BI112: UB305X165X46 | BJ112: UB | BL112: H850X350X16X28 | BM112: W | BO112: B 400X200X9 | BP112: B | BR112: SHS300X300X12.5 | BS112: B | BU112: Тп100x60x3,5 | BV112: HSS | BX112: 03_Tk_180x7,5 | BY112: HSS | CA112: 03_Тк_180х7,5 | CB112: HSS | CK112: TUBO100X70X4
A113: 65X65X2.5SHS | B113: B | D113: HSS10X5X3/8 | E113: B | G113: HSS254X127X9.5 | H113: B | J113: HSS12X2X1/4 | K113: B | M113: HSS304.8X50.8X6.4 | N113: B | P113: RHS100X50X1.6 | Q113: B | S113: UC305X305X158 | T113: W | Y113: HE280M | Z113: W | AB113: HD320X198 | AC113: W | AH113: W1000X300X584 | AI113: W | AK113: W16X10.25X67 | AL113: W | AN113: W410X260X100 | AO113: W | AQ113: RHHF350X250X14.2 | AR113: B | AT113: HN360X150X7X11 | AU113: W | AW113: HS102X51X6.4 | AX113: B | AZ113: HS102X51X6.4 | BA113: B | BC113: TUBO100X70X4.5 | BD113: B | BI113: UB305X165X54 | BJ113: UB | BL113: H850X350X16X25 | BM113: W | BO113: B 400X200X12 | BP113: B | BR113: SHS300X300X16 | BS113: B | BU113: Тп100x60x4 | BV113: HSS | BX113: 03_Tk_180x8 | BY113: HSS | CA113: 03_Тк_180х8 | CB113: HSS | CK113: TUBO100X70X4.5
A114: 65X65X2.3SHS | B114: B | D114: HSS10X5X5/16 | E114: B | G114: HSS254X127X7.9 | H114: B | J114: HSS12X2X3/16 | K114: B | M114: HSS304.8X50.8X4.8 | N114: B | P114: RHS100X50X2 | Q114: B | S114: UC305X305X198 | T114: W | Y114: HE300AA | Z114: W | AB114: HD320X245 | AC114: W | AH114: W1000X400X296 | AI114: W | AK114: W16X10.25X77 | AL114: W | AN114: W410X260X114 | AO114: W | AQ114: RHHF350X250X16 | AR114: B | AT114: HN560X175X11X17 | AU114: W | AW114: HS102X51X4.8 | AX114: B | AZ114: HS102X51X4.8 | BA114: B | BC114: TUBO100X70X5 | BD114: B | BI114: UB356X171X45 | BJ114: UB | BL114: H850X300X16X32 | BM114: W | BO114: H 100X50X5/7 | BP114: W | BR114: SHS350X350X8 | BS114: B | BU114: Тп100x60x4,5 | BV114: HSS | BX114: 03_Tk_180x8,5 | BY114: HSS | CA114: 03_Тк_180х8,5 | CB114: HSS | CK114: TUBO100X70X5
A115: 65X65X2SHS | B115: B | D115: HSS10X5X1/4 | E115: B | G115: HSS254X127X6.4 | H115: B | J115: HSS10X10X3/4 | K115: B | M115: HSS254X254X19 | N115: B | P115: RHS100X50X2.2 | Q115: B | S115: UC305X305X240 | T115: W | Y115: HE300A | Z115: W | AB115: HD320X300 | AC115: W | AH115: W1000X400X321 | AI115: W | AK115: W16X10.25X89 | AL115: W | AN115: W410X260X132 | AO115: W | AQ115: RHHF400X120X5 | AR115: B | AT115: HN630X200X13X20 | AU115: W | AW115: HS102X51X3.2 | AX115: B | AZ115: HS102X51X3.2 | BA115: B | BC115: TUBO100X70X5.4 | BD115: B | BI115: UB356X171X51 | BJ115: UB | BL115: H850X300X16X28 | BM115: W | BO115: H 100X100X6/8 | BP115: W | BR115: SHS350X350X10 | BS115: B | BU115: Тп100x60x5 | BV115: HSS | BX115: 03_Tk_180x9 | BY115: HSS | CA115: 03_Тк_180х9 | CB115: HSS | CK115: TUBO100X70X5.4
A116: 65X65X1.6SHS | B116: B | D116: HSS10X5X3/16 | E116: B | G116: HSS254X127X4.8 | H116: B | J116: HSS10X10X5/8 | K116: B | M116: HSS254X254X15.9 | N116: B | P116: RHS100X50X2.5 | Q116: B | S116: UC305X305X283 | T116: W | Y116: HE300B | Z116: W | AB116: HD360X134 | AC116: W | AH116: W1000X400X371 | AI116: W | AK116: W16X10.25X100 | AL116: W | AN116: W410X260X149 | AO116: W | AQ116: RHHF400X120X6.3 | AR116: B | AT116: HT100X50X3.2X4.5 | AU116: W | AW116: HS89X64X8.0 | AX116: B | AZ116: HS89X64X8.0 | BA116: B | BC116: TUBO100X70X5.9 | BD116: B | BI116: UB356X171X57 | BJ116: UB | BL116: H850X300X16X25 | BM116: W | BO116: H 125X60X6/8 | BP116: W | BR116: SHS350X350X12 | BS116: B | BU116: Тп100x60x5,5 | BV116: HSS | BX116: 03_Tk_180x9,5 | BY116: HSS | CA116: 03_Тк_180х9,5 | CB116: HSS | CK116: TUBO100X70X5.9
A117: 50X50X5SHS | B117: B | D117: HSS10X4X5/8 | E117: B | G117: HSS254X101.6X15.9 | H117: B | J117: HSS10X10X1/2 | K117: B | M117: HSS254X254X12.7 | N117: B | P117: RHS100X50X2.9 | Q117: B | S117: UC356X368X129 | T117: W | Y117: HE300C | Z117: W | AB117: HD360X147 | AC117: W | AH117: W1000X400X412 | AI117: W | AK117: W18X6X35 | AL117: W | AN117: W460X150X52 | AO117: W | AQ117: RHHF400X120X8 | AR117: B | AT117: HT100X50X4X5.5 | AU117: W | AW117: HS89X64X6.4 | AX117: B | AZ117: HS89X64X6.4 | BA117: B | BC117: TUBO100X70X7.1 | BD117: B | BI117: UB356X171X67 | BJ117: UB | BL117: H850X300X16X22 | BM117: W | BO117: H 125X125X6.5/9 | BP117: W | BR117: SHS350X350X12.5 | BS117: B | BU117: Тп100x60x6 | BV117: HSS | BX117: 03_Tk_180x10 | BY117: HSS | CA117: 03_Тк_180х10 | CB117: HSS | CK117: TUBO100X70X7.1
A118: 50X50X4SHS | B118: B | D118: HSS10X4X1/2 | E118: B | G118: HSS254X101.6X12.7 | H118: B | J118: HSS10X10X3/8 | K118: B | M118: HSS254X254X9.5 | N118: B | P118: RHS100X50X3.2 | Q118: B | S118: UC356X368X153 | T118: W | Y118: HE300M | Z118: W | AB118: HD360X162 | AC118: W | AH118: W1000X400X443 | AI118: W | AK118: W18X6X40 | AL118: W | AN118: W460X150X60 | AO118: W | AQ118: RHHF400X120X10 | AR118: B | AT118: HT100X100X4.5X6 | AU118: W | AW118: HS89X64X4.8 | AX118: B | AZ118: HS89X64X4.8 | BA118: B | BC118: TUBO100X70X8 | BD118: B | BI118: UB406X178X54 | BJ118: UB | BL118: H850X250X16X28 | BM118: W | BO118: H 150X75X5/7 | BP118: W | BR118: SHS350X350X16 | BS118: B | BU118: Тп100x60x6,5 | BV118: HSS | BX118: 03_Tk_200x6 | BY118: HSS | CA118: 03_Тк_200х6 | CB118: HSS | CK118: TUBO100X70X8
A119: 50X50X3SHS | B119: B | D119: HSS10X4X3/8 | E119: B | G119: HSS254X101.6X9.5 | H119: B | J119: HSS10X10X5/16 | K119: B | M119: HSS254X254X7.9 | N119: B | P119: RHS100X50X3.6 | Q119: B | S119: UC356X368X177 | T119: W | Y119: HE320AA | Z119: W | AB119: HD360X179 | AC119: W | AH119: W1000X400X483 | AI119: W | AK119: W18X6X46 | AL119: W | AN119: W460X150X68 | AO119: W | AQ119: RHHF400X120X12.5 | AR119: B | AT119: HT125X60X3.2X4.5 | AU119: W | AW119: HS89X64X3.2 | AX119: B | AZ119: HS89X64X3.2 | BA119: B | BC119: TUBO100X70X10 | BD119: B | BI119: UB406X178X60 | BJ119: UB | BL119: H850X250X16X25 | BM119: W | BO119: H 148X100X6/9 | BP119: W | BR119: SHS400X400X8 | BS119: B | BU119: Тп100x60x7 | BV119: HSS | BX119: 03_Tk_200x6,5 | BY119: HSS | CA119: 03_Тк_200х6,5 | CB119: HSS | CK119: TUBO100X70X10
A120: 50X50X2.8SHS | B120: B | D120: HSS10X4X5/16 | E120: B | G120: HSS254X101.6X7.9 | H120: B | J120: HSS10X10X1/4 | K120: B | M120: HSS254X254X6.4 | N120: B | P120: RHS100X50X4 | Q120: B | S120: UC356X368X202 | T120: W | Y120: HE320A | Z120: W | AB120: HD360X196 | AC120: W | AH120: W1000X400X539 | AI120: W | AK120: W18X7.5X50 | AL120: W | AN120: W460X190X74 | AO120: W | AQ120: RHHF400X120X14.2 | AR120: B | AT120: HT125X60X4X5.5 | AU120: W | AW120: HS76X51X8.0 | AX120: B | AZ120: HS76X51X8.0 | BA120: B | BC120: TUBO100X70X12.5 | BD120: B | BI120: UB406X178X67 | BJ120: UB | BL120: H850X250X14X25 | BM120: W | BO120: H 150X150X7/10 | BP120: W | BR120: SHS400X400X10 | BS120: B | BU120: Тп120x40x3 | BV120: HSS | BX120: 03_Tk_200x7 | BY120: HSS | CA120: 03_Тк_200х7 | CB120: HSS | CK120: TUBO100X70X12.5
A121: 50X50X2.5SHS | B121: B | D121: HSS10X4X1/4 | E121: B | G121: HSS254X101.6X6.4 | H121: B | J121: HSS10X10X3/16 | K121: B | M121: HSS254X254X4.8 | N121: B | P121: RHS100X50X5 | Q121: B | S121: UC356X406X235 | T121: W | Y121: HE320B | Z121: W | AB121: HD400X187 | AC121: W | AH121: W1000X400X554 | AI121: W | AK121: W18X7.5X55 | AL121: W | AN121: W460X190X82 | AO121: W | AQ121: RHHF400X120X16 | AR121: B | AT121: HT125X125X4.5X6 | AU121: W | AW121: HS76X51X6.4 | AX121: B | AZ121: HS76X51X6.4 | BA121: B | BC121: TUBO100X50X3.6 | BD121: B | BI121: UB406X178X74 | BJ121: UB | BL121: H850X250X14X22 | BM121: W | BO121: H 175X90X5/8 | BP121: W | BR121: SHS400X400X12 | BS121: B | BU121: Тп120x40x3,5 | BV121: HSS | BX121: 03_Tk_200x7,5 | BY121: HSS | CA121: 03_Тк_200х7,5 | CB121: HSS | CK121: TUBO100X50X3.6
A122: 50X50X2.3SHS | B122: B | D122: HSS10X4X3/16 | E122: B | G122: HSS254X101.6X4.8 | H122: B | J122: HSS10X8X5/8 | K122: B | M122: HSS254X203.2X15.9 | N122: B | P122: RHS100X50X5.4 | Q122: B | S122: UC356X406X287 | T122: W | Y122: HE320C | Z122: W | AB122: HD400X216 | AC122: W | AH122: W1000X400X591 | AI122: W | AK122: W18X7.5X60 | AL122: W | AN122: W460X190X89 | AO122: W | AQ122: RHHF400X150X5 | AR122: B | AT122: HT150X75X3.2X4.5 | AU122: W | AW122: HS76X51X4.8 | AX122: B | AZ122: HS76X51X4.8 | BA122: B | BC122: TUBO100X50X4 | BD122: B | BI122: UB457X152X52 | BJ122: UB | BL122: H800X400X19X40 | BM122: W | BO122: H 175X175X7.5/11 | BP122: W | BR122: SHS400X400X12.5 | BS122: B | BU122: Тп120x40x4 | BV122: HSS | BX122: 03_Tk_200x8 | BY122: HSS | CA122: 03_Тк_200х8 | CB122: HSS | CK122: TUBO100X50X4
A123: 50X50X2SHS | B123: B | D123: HSS10X4X1/8 | E123: B | G123: HSS254X101.6X3.2 | H123: B | J123: HSS10X8X1/2 | K123: B | M123: HSS254X203.2X12.7 | N123: B | P123: RHS100X50X6 | Q123: B | S123: UC356X406X340 | T123: W | Y123: HE320M | Z123: W | AB123: HD400X237 | AC123: W | AH123: W1000X400X642 | AI123: W | AK123: W18X7.5X65 | AL123: W | AN123: W460X190X97 | AO123: W | AQ123: RHHF400X150X6.3 | AR123: B | AT123: HT150X75X4X5.5 | AU123: W | AW123: HS76X51X3.2 | AX123: B | AZ123: HS76X51X3.2 | BA123: B | BC123: TUBO100X50X4.5 | BD123: B | BI123: UB457X152X60 | BJ123: UB | BL123: H800X400X19X36 | BM123: W | BO123: H 198X99X4.5/7 | BP123: W | BR123: SHS400X400X16 | BS123: B | BU123: Тп120x40x4,5 | BV123: HSS | BX123: 03_Tk_200x8,5 | BY123: HSS | CA123: 03_Тк_200х8,5 | CB123: HSS | CK123: TUBO100X50X4.5
A124: 50X50X1.6SHS | B124: B | D124: HSS10X3-1/2X1/2 | E124: B | G124: HSS254X88.9X12.7 | H124: B | J124: HSS10X8X3/8 | K124: B | M124: HSS254X203.2X9.5 | N124: B | P124: RHS100X50X8 | Q124: B | S124: UC356X406X393 | T124: W | Y124: HE340AA | Z124: W | AB124: HD400X262 | AC124: W | AH124: W1000X400X748 | AI124: W | AK124: W18X7.5X71 | AL124: W | AN124: W460X190X106 | AO124: W | AQ124: RHHF400X150X8 | AR124: B | AT124: HT150X100X3.2X4.5 | AU124: W | AW124: HS51X25X4.8 | AX124: B | AZ124: HS51X25X4.8 | BA124: B | BC124: TUBO100X50X5 | BD124: B | BI124: UB457X152X67 | BJ124: UB | BL124: H800X400X19X32 | BM124: W | BO124: H 200X100X5.5/8 | BP124: W | BR124: SHS400X400X20 | BS124: B | BU124: Тп120x40x5 | BV124: HSS | BX124: 03_Tk_200x9 | BY124: HSS | CA124: 03_Тк_200х9 | CB124: HSS | CK124: TUBO100X50X5
A125: 40X40X4SHS | B125: B | D125: HSS10X3-1/2X3/8 | E125: B | G125: HSS254X88.9X9.5 | H125: B | J125: HSS10X8X5/16 | K125: B | M125: HSS254X203.2X7.9 | N125: B | P125: RHS120X60X1.6 | Q125: B | S125: UC356X406X467 | T125: W | Y125: HE340A | Z125: W | AB125: HD400X287 | AC125: W | AH125: W1000X400X883 | AI125: W | AK125: W18X11X76 | AL125: W | AN125: W460X280X113 | AO125: W | AQ125: RHHF400X150X10 | AR125: B | AT125: HT150X100X4.5X6 | AU125: W | AW125: HS51X25X3.2 | AX125: B | AZ125: HS51X25X3.2 | BA125: B | BC125: TUBO100X50X5.4 | BD125: B | BI125: UB457X152X74 | BJ125: UB | BL125: H800X400X19X28 | BM125: W | BO125: H 194X150X6/9 | BP125: W | BR125: CFRHS50X25X2 | BS125: B | BU125: Тп120x40x5,5 | BV125: HSS | BX125: 03_Tk_200x9,5 | BY125: HSS | CA125: 03_Тк_200х9,5 | CB125: HSS | CK125: TUBO100X50X5.4
A126: 40X40X3SHS | B126: B | D126: HSS10X3-1/2X5/16 | E126: B | G126: HSS254X88.9X7.9 | H126: B | J126: HSS10X8X1/4 | K126: B | M126: HSS254X203.2X6.4 | N126: B | P126: RHS120X60X2 | Q126: B | S126: UC356X406X509 | T126: W | Y126: HE340B | Z126: W | AB126: HD400X314 | AC126: W | AH126: W1000X400X976 | AI126: W | AK126: W18X11X86 | AL126: W | AN126: W460X280X128 | AO126: W | AQ126: RHHF400X150X12.5 | AR126: B | AT126: HT150X150X5X7 | AU126: W | AW126: HA305X305X16 | AX126: B | AZ126: HA305X305X16 | BA126: B | BC126: TUBO100X50X5.9 | BD126: B | BI126: UB457X152X82 | BJ126: UB | BL126: H800X400X16X36 | BM126: W | BO126: H 200X200X8/12 | BP126: W | BR126: CFRHS50X25X2.5 | BS126: B | BU126: Тп120x40x6 | BV126: HSS | BX126: 03_Tk_200x10 | BY126: HSS | CA126: 03_Тк_200х10 | CB126: HSS | CK126: TUBO100X50X5.9
A127: 40X40X2.8SHS | B127: B | D127: HSS10X3-1/2X1/4 | E127: B | G127: HSS254X88.9X6.4 | H127: B | J127: HSS10X8X3/16 | K127: B | M127: HSS254X203.2X4.8 | N127: B | P127: RHS120X60X2.2 | Q127: B | S127: UC356X406X551 | T127: W | Y127: HE340M | Z127: W | AB127: HD400X347 | AC127: W | AH127: W1100X400X343 | AI127: W | AK127: W18X11X97 | AL127: W | AN127: W460X280X144 | AO127: W | AQ127: RHHF400X150X14.2 | AR127: B | AT127: HT150X150X6X8.5 | AU127: W | AW127: HA305X305X13 | AX127: B | AZ127: HA305X305X13 | BA127: B | BC127: TUBO100X50X7.1 | BD127: B | BI127: UB457X191X67 | BJ127: UB | BL127: H800X400X16X32 | BM127: W | BO127: H 200X204X12/12 | BP127: W | BR127: CFRHS50X25X3 | BS127: B | BU127: Тп120x40x6,5 | BV127: HSS | BX127: 03_Tk_200x10,5 | BY127: HSS | CA127: 03_Тк_200х10,5 | CB127: HSS | CK127: TUBO100X50X7.1
A128: 40X40X2.5SHS | B128: B | D128: HSS10X3-1/2X3/16 | E128: B | G128: HSS254X88.9X4.8 | H128: B | J128: HSS10X6X5/8 | K128: B | M128: HSS254X152.4X15.9 | N128: B | P128: RHS120X60X2.5 | Q128: B | S128: UC356X406X592 | T128: W | Y128: HE360AA | Z128: W | AB128: HD400X382 | AC128: W | AH128: W1100X400X390 | AI128: W | AK128: W18X11X106 | AL128: W | AN128: W460X280X158 | AO128: W | AQ128: RHHF400X150X16 | AR128: B | AT128: HT175X90X3.2X4.5 | AU128: W | AW128: HA305X305X9.5 | AX128: B | AZ128: HA305X305X9.5 | BA128: B | BC128: TUBO100X50X8 | BD128: B | BI128: UB457X191X74 | BJ128: UB | BL128: H800X400X16X28 | BM128: W | BO128: H 208X202X10/16 | BP128: W | BR128: CFRHS50X30X2 | BS128: B | BU128: Тп120x40x7 | BV128: HSS | BX128: 03_Tk_200x11 | BY128: HSS | CA128: 03_Тк_200х11 | CB128: HSS | CK128: TUBO100X50X8
A129: 40X40X2.3SHS | B129: B | D129: HSS10X3-1/2X1/8 | E129: B | G129: HSS254X88.9X3.2 | H129: B | J129: HSS10X6X1/2 | K129: B | M129: HSS254X152.4X12.7 | N129: B | P129: RHS120X60X2.9 | Q129: B | S129: UC356X406X634 | T129: W | Y129: HE360A | Z129: W | AB129: HD400X421 | AC129: W | AH129: W1100X400X433 | AI129: W | AK129: W18X11X119 | AL129: W | AN129: W460X280X177 | AO129: W | AQ129: RHHF400X200X8 | AR129: B | AT129: HT175X90X4X6 | AU129: W | AW129: HA305X305X8.0 | AX129: B | AZ129: HA305X305X8.0 | BA129: B | BC129: TUBO120X120X7.1 | BD129: B | BI129: UB457X191X82 | BJ129: UB | BL129: H800X400X16X25 | BM129: W | BO129: H 248X124X5/8 | BP129: W | BR129: CFRHS50X30X2.5 | BS129: B | BU129: Тп120x60x3 | BV129: HSS | BX129: 03_Tk_200x11,5 | BY129: HSS | CA129: 03_Тк_200х11,5 | CB129: HSS | CK129: TUBO120X120X7.1
A130: 40X40X2SHS | B130: B | D130: HSS10X3X3/8 | E130: B | G130: HSS254X76.2X9.5 | H130: B | J130: HSS10X6X3/8 | K130: B | M130: HSS254X152.4X9.5 | N130: B | P130: RHS120X60X3.2 | Q130: B | S130: UC356X406X677 | T130: W | Y130: HE360B | Z130: W | AB130: HD400X463 | AC130: W | AH130: W1100X400X499 | AI130: W | AK130: W18X11X130 | AL130: W | AN130: W460X280X193 | AO130: W | AQ130: RHHF400X200X10 | AR130: B | AT130: HT175X175X5X7 | AU130: W | AW130: HA305X305X6.4 | AX130: B | AZ130: HA305X305X6.4 | BA130: B | BC130: TUBO120X120X8 | BD130: B | BI130: UB457X191X89 | BJ130: UB | BL130: H800X400X14X28 | BM130: W | BO130: H 250X125X6/9 | BP130: W | BR130: CFRHS50X30X3 | BS130: B | BU130: Тп120x60x3,5 | BV130: HSS | BX130: 03_Tk_200x12 | BY130: HSS | CA130: 03_Тк_200х12 | CB130: HSS | CK130: TUBO120X120X8
A131: 40X40X1.6SHS | B131: B | D131: HSS10X3X5/16 | E131: B | G131: HSS254X76.2X7.9 | H131: B | J131: HSS10X6X5/16 | K131: B | M131: HSS254X152.4X7.9 | N131: B | P131: RHS120X60X3.6 | Q131: B | S131: UC356X406X744 | T131: W | Y131: HE360M | Z131: W | AB131: HD400X509 | AC131: W | AH131: HP250X85 | AI131: I | AK131: W18X11X143 | AL131: W | AN131: W460X280X213 | AO131: W | AQ131: RHHF400X200X12.5 | AR131: B | AT131: HT175X175X6.5X9.5 | AU131: W | AW131: HA254X254X16 | AX131: B | AZ131: HA254X254X16 | BA131: B | BC131: TUBO120X120X10 | BD131: B | BI131: UB457X191X98 | BJ131: UB | BL131: H800X400X14X25 | BM131: W | BO131: H 244X175X7/11 | BP131: W | BR131: CFRHS50X30X4 | BS131: B | BU131: Тп120x60x4 | BV131: HSS | BX131: 03_Tk_250x6 | BY131: HSS | CA131: 03_Тк_250х6 | CB131: HSS | CK131: =IF(OFFSET(A131,0,($CJ$2-1)*3)=0,"",OFFSET(A131,0,($CJ$2-1)*3)) -> TUBO120X120X10
A132: 35X35X3SHS | B132: B | D132: HSS10X3X1/4 | E132: B | G132: HSS254X76.2X6.4 | H132: B | J132: HSS10X6X1/4 | K132: B | M132: HSS254X152.4X6.4 | N132: B | P132: RHS120X60X4 | Q132: B | S132: UC356X406X818 | T132: W | Y132: HE400AA | Z132: W | AB132: HD400X551 | AC132: W | AH132: HP310X110 | AI132: I | AK132: W18X11X158 | AL132: W | AN132: W460X280X235 | AO132: W | AQ132: RHHF400X200X14.2 | AR132: B | AT132: HT200X100X3.2X4.5 | AU132: W | AW132: HA254X254X13 | AX132: B | AZ132: HA254X254X13 | BA132: B | BC132: TUBO120X120X12.5 | BD132: B | BI132: UB533X210X82 | BJ132: UB | BL132: H800X350X19X40 | BM132: W | BO132: H 244X252X11/11 | BP132: W | BR132: CFRHS60X40X2.5 | BS132: B | BU132: Тп120x60x4,5 | BV132: HSS | BX132: 03_Tk_250x6,5 | BY132: HSS | CA132: 03_Тк_250х6,5 | CB132: HSS | CK132: TUBO120X120X12.5
A133: 35X35X2.8SHS | B133: B | D133: HSS10X3X3/16 | E133: B | G133: HSS254X76.2X4.8 | H133: B | J133: HSS10X6X3/16 | K133: B | M133: HSS254X152.4X4.8 | N133: B | P133: RHS120X60X4.5 | Q133: B | S133: UC356X406X900 | T133: W | Y133: HE400A | Z133: W | AB133: HD400X592 | AC133: W | AH133: HP310X125 | AI133: I | AK133: W18X11X175 | AL133: W | AN133: W460X280X260 | AO133: W | AQ133: RHHF400X200X16 | AR133: B | AT133: HT200X100X4X6 | AU133: W | AW133: HA254X254X9.5 | AX133: B | AZ133: HA254X254X9.5 | BA133: B | BC133: TUBO120X120X14.2 | BD133: B | BI133: UB533X210X92 | BJ133: UB | BL133: H800X350X19X36 | BM133: W | BO133: H 248X249X8/13 | BP133: W | BR133: CFRHS60X40X3 | BS133: B | BU133: Тп120x60x5 | BV133: HSS | BX133: 03_Tk_250x7 | BY133: HSS | CA133: 03_Тк_250х7 | CB133: HSS | CK133: TUBO120X120X14.2
A134: 35X35X2.5SHS | B134: B | D134: HSS10X3X1/8 | E134: B | G134: HSS254X76.2X3.2 | H134: B | J134: HSS10X5X3/8 | K134: B | M134: HSS254X127X9.5 | N134: B | P134: RHS120X60X5 | Q134: B | S134: UC356X406X990 | T134: W | Y134: HE400B | Z134: W | AB134: HD400X634 | AC134: W | AH134: HP310X132 | AI134: I | AK134: W21X6.5X44 | AL134: W | AN134: W530X165X66 | AO134: W | AQ134: RHHF400X300X8 | AR134: B | AT134: HT200X150X4.5X6 | AU134: W | AW134: HA254X254X8.0 | AX134: B | AZ134: HA254X254X8.0 | BA134: B | BC134: TUBO120X120X16 | BD134: B | BI134: UB533X210X101 | BJ134: UB | BL134: H800X350X19X32 | BM134: W | BO134: H 250X250X9/14 | BP134: W | BR134: CFRHS60X40X4 | BS134: B | BU134: Тп120x60x5,5 | BV134: HSS | BX134: 03_Tk_250x7,5 | BY134: HSS | CA134: 03_Тк_250х7,5 | CB134: HSS | CK134: TUBO120X120X16
A135: 35X35X2.3SHS | B135: B | D135: HSS10X2X3/8 | E135: B | G135: HSS254X50.8X9.5 | H135: B | J135: HSS10X5X5/16 | K135: B | M135: HSS254X127X7.9 | N135: B | P135: RHS120X60X6 | Q135: B | S135: UC356X406X1086 | T135: W | Y135: HE400M | Z135: W | AB135: HD400X677 | AC135: W | AH135: HP360X132 | AI135: I | AK135: W21X6.5X50 | AL135: W | AN135: W530X165X74 | AO135: W | AQ135: RHHF400X300X10 | AR135: B | AT135: HT200X200X6X8 | AU135: W | AW135: HA254X254X6.4 | AX135: B | AZ135: HA254X254X6.4 | BA135: B | BC135: TUBO120X120X17.5 | BD135: B | BI135: UB533X210X109.8 | BJ135: UB | BL135: H800X350X19X28 | BM135: W | BO135: H 250X255X14/14 | BP135: W | BR135: CFRHS80X40X3 | BS135: B | BU135: Тп120x60x6 | BV135: HSS | BX135: 03_Tk_250x8 | BY135: HSS | CA135: 03_Тк_250х8 | CB135: HSS | CK135: TUBO120X120X17.5
A136: 35X35X2SHS | B136: B | D136: HSS10X2X5/16 | E136: B | G136: HSS254X50.8X7.9 | H136: B | J136: HSS10X5X1/4 | K136: B | M136: HSS254X127X6.4 | N136: B | P136: RHS150X25X1.6 | Q136: B | S136: UC356X406X1202 | T136: W | Y136: HE450AA | Z136: W | AB136: HD400X744 | AC136: W | AH136: HP360X152 | AI136: I | AK136: W21X6.5X57 | AL136: W | AN136: W530X165X85 | AO136: W | AQ136: RHHF400X300X12.5 | AR136: B | AT136: HT250X125X4.5X6 | AU136: W | AW136: HA203X203X16 | AX136: B | AZ136: HA203X203X16 | BA136: B | BC136: TUBO120X120X20 | BD136: B | BI136: UB533X210X122 | BJ136: UB | BL136: H800X350X19X25 | BM136: W | BO136: H 298X149X5.5/8 | BP136: W | BR136: CFRHS80X40X4 | BS136: B | BU136: Тп120x60x6,5 | BV136: HSS | BX136: 03_Tk_250x8,5 | BY136: HSS | CA136: 03_Тк_250х8,5 | CB136: HSS | CK136: TUBO120X120X20
A137: 35X35X1.6SHS | B137: B | D137: HSS10X2X1/4 | E137: B | G137: HSS254X50.8X6.4 | H137: B | J137: HSS10X5X3/16 | K137: B | M137: HSS254X127X4.8 | N137: B | P137: RHS150X25X2 | Q137: B | S137: UC356X406X1299 | T137: W | Y137: HE450A | Z137: W | AB137: HD400X818 | AC137: W | AH137: HP360X174 | AI137: I | AK137: W21X8.25X48 | AL137: W | AN137: W530X210X72 | AO137: W | AQ137: RHHF400X300X14.2 | AR137: B | AT137: HT250X175X4.5X8 | AU137: W | AW137: HA203X203X13 | AX137: B | AZ137: HA203X203X13 | BA137: B | BC137: TUBO120X120X22.2 | BD137: B | BI137: UB610X229X101 | BJ137: UB | BL137: H800X350X16X36 | BM137: W | BO137: H 300X150X6.5/9 | BP137: W | BR137: CFRHS90X50X3 | BS137: B | BU137: Тп120x60x7 | BV137: HSS | BX137: 03_Tk_250x9 | BY137: HSS | CA137: 03_Тк_250х9 | CB137: HSS | CK137: TUBO120X120X22.2
A138: 30X30X3SHS | B138: B | D138: HSS10X2X3/16 | E138: B | G138: HSS254X50.8X4.8 | H138: B | J138: HSS10X4X5/8 | K138: B | M138: HSS254X101.6X15.9 | N138: B | P138: RHS150X25X2.2 | Q138: B | S138: UBP203X203X45 | T138: W | Y138: HE450B | Z138: W | AB138: HD400X900 | AC138: W | AK138: W 21X8.25X55 | AL138: W | AN138: W530X210X82 | AO138: W | AQ138: RHHF400X300X16 | AR138: B | AT138: HT300X150X4.5X6 | AU138: W | AW138: HA203X203X9.5 | AX138: B | AZ138: HA203X203X9.5 | BA138: B | BC138: TUBO120X84X4.5 | BD138: B | BI138: UB610X229X113 | BJ138: UB | BL138: H800X350X16X32 | BM138: W | BO138: H 294X200X8/12 | BP138: W | BR138: CFRHS90X50X3.6 | BS138: B | BU138: Тп120x80x3 | BV138: HSS | BX138: 03_Tk_250x9,5 | BY138: HSS | CA138: 03_Тк_250х9,5 | CB138: HSS | CK138: TUBO120X84X4.5
A139: 30X30X2.5SHS | B139: B | D139: HSS10X2X1/8 | E139: B | G139: HSS254X50.8X3.2 | H139: B | J139: HSS10X4X1/2 | K139: B | M139: HSS254X101.6X12.7 | N139: B | P139: RHS150X25X2.6 | Q139: B | S139: UBP203X203X54 | T139: W | Y139: HE450M | Z139: W | AB139: HD400X990 | AC139: W | AK139: W21X8.25X62 | AL139: W | AN139: W530X210X92 | AO139: W | AQ139: RHHF450X250X8 | AR139: B | AT139: HT300X200X6X8 | AU139: W | AW139: HA203X203X8.0 | AX139: B | AZ139: HA203X203X8.0 | BA139: B | BC139: TUBO120X84X5 | BD139: B | BI139: UB610X229X125.1 | BJ139: UB | BL139: H800X350X16X28 | BM139: W | BO139: H 298X201X9/14 | BP139: W | BR139: CFRHS90X50X4 | BS139: B | BU139: Тп120x80x3,5 | BV139: HSS | BX139: 03_Tk_250x10 | BY139: HSS | CA139: 03_Тк_250х10 | CB139: HSS | CK139: TUBO120X84X5
A140: 30X30X2SHS | B140: B | D140: HSS9X9X5/8 | E140: B | G140: HSS228.6X228.6X15.9 | H140: B | J140: HSS10X4X3/8 | K140: B | M140: HSS254X101.6X9.5 | N140: B | P140: RHS150X30X1.6 | Q140: B | S140: UBP254X254X63 | T140: W | Y140: HE500AA | Z140: W | AB140: HD400X1086 | AC140: W | AK140: W21X8.25X68 | AL140: W | AN140: W530X210X101 | AO140: W | AQ140: RHHF450X250X10 | AR140: B | AT140: HT350X175X4.5X6 | AU140: W | AW140: HA203X203X6.4 | AX140: B | AZ140: HA203X203X6.4 | BA140: B | BC140: TUBO120X84X5.4 | BD140: B | BI140: UB610X229X139.9 | BJ140: UB | BL140: H800X350X16X25 | BM140: W | BO140: H 294X302X12/12 | BP140: W | BR140: CFRHS90X50X5 | BS140: B | BU140: Тп120x80x4 | BV140: HSS | BX140: 03_Tk_250x10,5 | BY140: HSS | CA140: 03_Тк_250х10,5 | CB140: HSS | CK140: TUBO120X84X5.4
A141: 30X30X1.6SHS | B141: B | D141: HSS9X9X1/2 | E141: B | G141: HSS228.6X228.6X12.7 | H141: B | J141: HSS10X4X5/16 | K141: B | M141: HSS254X101.6X7.9 | N141: B | P141: RHS150X30X1.8 | Q141: B | S141: UBP254X254X71 | T141: W | Y141: HE500A | Z141: W | AB141: HD400X1202 | AC141: W | AK141: W21X8.25X73 | AL141: W | AN141: W530X210X109 | AO141: W | AQ141: RHHF450X250X12.5 | AR141: B | AT141: HT400X150X6X8 | AU141: W | AW141: HA178X178X16 | AX141: B | AZ141: HA178X178X16 | BA141: B | BC141: TUBO120X84X5.9 | BD141: B | BI141: UC152X152X23 | BJ141: UC | BL141: H800X350X14X28 | BM141: W | BO141: H 298X299X9/14 | BP141: W | BR141: CFRHS100X50X3 | BS141: B | BU141: Тп120x80x4,5 | BV141: HSS | BX141: 03_Tk_250x11 | BY141: HSS | CA141: 03_Тк_250х11 | CB141: HSS | CK141: TUBO120X84X5.9
A142: 25X25X3SHS | B142: B | D142: HSS9X9X3/8 | E142: B | G142: HSS228.6X228.6X9.5 | H142: B | J142: HSS10X4X1/4 | K142: B | M142: HSS254X101.6X6.4 | N142: B | P142: RHS150X30X2 | Q142: B | S142: UBP254X254X85 | T142: W | Y142: HE500B | Z142: W | AB142: HD400X1299 | AC142: W | AK142: W21X8.25X83 | AL142: W | AN142: W530X210X123 | AO142: W | AQ142: RHHF450X250X14.2 | AR142: B | AT142: HT400X200X6X8 | AU142: W | AW142: HA178X178X13 | AX142: B | AZ142: HA178X178X13 | BA142: B | BC142: TUBO120X84X7.1 | BD142: B | BI142: UC152X152X30 | BJ142: UC | BL142: H800X350X14X25 | BM142: W | BO142: H 300X300X10/15 | BP142: W | BR142: CFRHS100X50X4 | BS142: B | BU142: Тп120x80x5 | BV142: HSS | BX142: 03_Tk_250x11,5 | BY142: HSS | CA142: 03_Тк_250х11,5 | CB142: HSS | CK142: TUBO120X84X7.1
A143: 25X25X2.5SHS | B143: B | D143: HSS9X9X5/16 | E143: B | G143: HSS228.6X228.6X7.9 | H143: B | J143: HSS10X4X3/16 | K143: B | M143: HSS254X101.6X4.8 | N143: B | P143: RHS150X30X2.5 | Q143: B | S143: UBP305X305X79 | T143: W | Y143: HE500M | Z143: W | AB143: HP305X110 | AC143: W | AK143: W21X8.25X93 | AL143: W | AN143: W530X210X138 | AO143: W | AQ143: RHHF450X250X16 | AR143: B | AT143: YB-H300X200X6X10 | AU143: W | AW143: HA178X178X9.5 | AX143: B | AZ143: HA178X178X9.5 | BA143: B | BC143: TUBO120X84X8 | BD143: B | BI143: UC152X152X37 | BJ143: UC | BL143: H800X300X16X32 | BM143: W | BO143: H 300X305X15/15 | BP143: W | BR143: CFRHS100X50X5 | BS143: B | BU143: Тп120x80x5,5 | BV143: HSS | BX143: 03_Tk_250x12 | BY143: HSS | CA143: 03_Тк_250х12 | CB143: HSS | CK143: TUBO120X84X8
A144: 25X25X2SHS | B144: B | D144: HSS9X9X1/4 | E144: B | G144: HSS228.6X228.6X6.4 | H144: B | J144: HSS10X4X1/8 | K144: B | M144: HSS254X101.6X3.2 | N144: B | P144: RHS150X30X2.9 | Q144: B | S144: UBP305X305X88 | T144: W | Y144: HE550AA | Z144: W | AB144: HP305X126 | AC144: W | AK144: W24X7X55 | AL144: W | AN144: W610X180X82 | AO144: W | AQ144: RHHF500X200X8 | AR144: B | AT144: YB-H300X200X6X12 | AU144: W | AW144: HA178X178X8.0 | AX144: B | AZ144: HA178X178X8.0 | BA144: B | BC144: TUBO120X84X10 | BD144: B | BI144: UC203X203X46.1 | BJ144: UC | BL144: H800X300X16X28 | BM144: W | BO144: H 304X301X11/17 | BP144: W | BR144: CFRHS100X50X6 | BS144: B | BU144: Тп120x80x6 | BV144: HSS | BX144: 03_Tk_300x6 | BY144: HSS | CA144: 03_Тк_300х6 | CB144: HSS | CK144: TUBO120X84X10
A145: 25X25X1.6SHS | B145: B | D145: HSS9X9X3/16 | E145: B | G145: HSS228.6X228.6X74.8 | H145: B | J145: HSS10X3-1/2X1/2 | K145: B | M145: HSS254X88.9X12.7 | N145: B | P145: RHS150X50X1.6 | Q145: B | S145: UBP305X305X95 | T145: W | Y145: HE550A | Z145: W | AB145: HP305X149 | AC145: W | AK145: W24X7X62 | AL145: W | AN145: W610X180X92 | AO145: W | AQ145: RHHF500X200X10 | AR145: B | AT145: YB-H300X200X8X14 | AU145: W | AW145: HA178X178X6.4 | AX145: B | AZ145: HA178X178X6.4 | BA145: B | BC145: TUBO120X84X12.5 | BD145: B | BI145: UC203X203X52 | BJ145: UC | BL145: H800X300X16X25 | BM145: W | BO145: H 310X305X15/20 | BP145: W | BR145: CFRHS100X50X6.3 | BS145: B | BU145: Тп120x80x6,5 | BV145: HSS | BX145: 03_Tk_300x6,5 | BY145: HSS | CA145: 03_Тк_300х6,5 | CB145: HSS | CK145: TUBO120X84X12.5
A146: 20X20X1.6SHS | B146: B | D146: HSS9X9X1/8 | E146: B | G146: HSS228.6X228.6X3.2 | H146: B | J146: HSS10X3-1/2X3/8 | K146: B | M146: HSS254X88.9X9.5 | N146: B | P146: RHS150X50X2 | Q146: B | S146: UBP305X305X110 | T146: W | Y146: HE550B | Z146: W | AB146: HP305X180 | AC146: W | AK146: W24X9X68 | AL146: W | AN146: W610X230X101 | AO146: W | AQ146: RHHF500X200X12.5 | AR146: B | AT146: YB-H300X250X8X12 | AU146: W | AW146: HA178X178X4.8 | AX146: B | AZ146: HA178X178X4.8 | BA146: B | BC146: TUBO120X84X14.2 | BD146: B | BI146: UC203X203X60 | BJ146: UC | BL146: H800X300X16X22 | BM146: W | BO146: H 310X310X20/20 | BP146: W | BR146: CFRHS100X60X3 | BS146: B | BU146: Тп120x80x7 | BV146: HSS | BX146: 03_Tk_300x7 | BY146: HSS | CA146: 03_Тк_300х7 | CB146: HSS | CK146: TUBO120X84X14.2
A147: 15X15X1.8SHS | B147: B | D147: HSS9X7X5/8 | E147: B | G147: HSS228.6X177.8X15.9 | H147: B | J147: HSS10X3-1/2X5/16 | K147: B | M147: HSS254X88.9X7.9 | N147: B | P147: RHS150X50X2.2 | Q147: B | S147: UBP305X305X126 | T147: W | Y147: HE550M | Z147: W | AB147: HP305X186 | AC147: W | AK147: W24X9X76 | AL147: W | AN147: W610X230X113 | AO147: W | AQ147: RHHF500X200X14.2 | AR147: B | AT147: YB-H300X250X10X14 | AU147: W | AW147: HA152X152X13 | AX147: B | AZ147: HA152X152X13 | BA147: B | BC147: TUBO120X84X16 | BD147: B | BI147: UC203X203X71 | BJ147: UC | BL147: H800X300X14X28 | BM147: W | BO147: H 346X174X6/9 | BP147: W | BR147: CFRHS100X60X3.6 | BS147: B | BU147: Тп140x60x3 | BV147: HSS | BX147: 03_Tk_300x7,5 | BY147: HSS | CA147: 03_Тк_300х7,5 | CB147: HSS | CK147: TUBO120X84X16
A148: 13X13X1.8SHS | B148: B | D148: HSS9X7X1/2 | E148: B | G148: HSS228.6X177.8X12.7 | H148: B | J148: HSS10X3-1/2X1/4 | K148: B | M148: HSS254X88.9X6.4 | N148: B | P148: RHS150X50X2.5 | Q148: B | S148: UBP305X305X149 | T148: W | Y148: HE600AA | Z148: W | AB148: HP305X223 | AC148: W | AK148: W24X9X84 | AL148: W | AN148: W610X230X125 | AO148: W | AQ148: RHHF500X200X16 | AR148: B | AT148: YB-H300X300X8X12 | AU148: W | AW148: HA152X152X9.5 | AX148: B | AZ148: HA152X152X9.5 | BA148: B | BC148: TUBO120X60X3.6 | BD148: B | BI148: UC203X203X86.1 | BJ148: UC | BL148: H800X300X14X25 | BM148: W | BO148: H 350X175X7/11 | BP148: W | BR148: CFRHS100X60X4 | BS148: B | BU148: Тп140x60x3,5 | BV148: HSS | BX148: 03_Tk_300x8 | BY148: HSS | CA148: 03_Тк_300х8 | CB148: HSS | CK148: TUBO120X60X3.6
A149: 610UB125 | B149: W | D149: HSS9X7X3/8 | E149: B | G149: HSS228.6X177.8X9.5 | H149: B | J149: HSS10X3-1/2X3/16 | K149: B | M149: HSS254X88.9X4.8 | N149: B | P149: RHS150X50X2.8 | Q149: B | S149: UBP305X305X186 | T149: W | Y149: HE600A | Z149: W | AB149: HP320X103 | AC149: W | AK149: W24X9X94 | AL149: W | AN149: W610X230X140 | AO149: W | AQ149: RHHF500X300X8 | AR149: B | AT149: YB-H300X300X10X16 | AU149: W | AW149: HA152X152X8.0 | AX149: B | AZ149: HA152X152X8.0 | BA149: B | BC149: TUBO120X60X4 | BD149: B | BI149: UC254X254X73.1 | BJ149: UC | BL149: H800X300X14X22 | BM149: W | BO149: H 354X176X8/13 | BP149: W | BR149: CFRHS100X60X5 | BS149: B | BU149: Тп140x60x4 | BV149: HSS | BX149: 03_Tk_300x8,5 | BY149: HSS | CA149: 03_Тк_300х8,5 | CB149: HSS | CK149: TUBO120X60X4
A150: 610UB113 | B150: W | D150: HSS9X7X5/16 | E150: B | G150: HSS228.6X177.8X7.9 | H150: B | J150: HSS10X3-1/2X1/8 | K150: B | M150: HSS254X88.9X3.2 | N150: B | P150: RHS150X50X3.2 | Q150: B | S150: UBP305X305X223 | T150: W | Y150: HE600B | Z150: W | AB150: HP320X117 | AC150: W | AK150: W24X9X103 | AL150: W | AN150: W610X230X153 | AO150: W | AQ150: RHHF500X300X10 | AR150: B | AT150: YB-H300X300X12X20 | AU150: W | AW150: HA152X152X6.4 | AX150: B | AZ150: HA152X152X6.4 | BA150: B | BC150: TUBO120X60X4.5 | BD150: B | BI150: UC254X254X89.5 | BJ150: UC | BL150: H800X250X16X32 | BM150: W | BO150: H 336X249X8/12 | BP150: W | BR150: CFRHS100X60X6 | BS150: B | BU150: Тп140x60x4,5 | BV150: HSS | BX150: 03_Tk_300x9 | BY150: HSS | CA150: 03_Тк_300х9 | CB150: HSS | CK150: TUBO120X60X4.5
A151: 610UB101 | B151: W | D151: HSS9X7X1/4 | E151: B | G151: HSS228.6X177.8X6.4 | H151: B | J151: HSS10X3X3/8 | K151: B | M151: HSS254X76.2X9.5 | N151: B | P151: RHS150X50X3.6 | Q151: B | S151: UBP356X368X109 | T151: W | Y151: HE600M | Z151: W | AB151: HP320X147 | AC151: W | AK151: W24X12.75X104 | AL151: W | AN151: W610X325X155 | AO151: W | AQ151: RHHF500X300X12.5 | AR151: B | AT151: YB-H350X175X6X10 | AU151: W | AW151: HA152X152X4.8 | AX151: B | AZ151: HA152X152X4.8 | BA151: B | BC151: TUBO120X60X5 | BD151: B | BI151: UC254X254X107.1 | BJ151: UC | BL151: H800X250X16X28 | BM151: W | BO151: H 340X250X9/14 | BP151: W | BR151: CFRHS100X60X6.3 | BS151: B | BU151: Тп140x60x5 | BV151: HSS | BX151: 03_Tk_300x9,5 | BY151: HSS | CA151: 03_Тк_300х9,5 | CB151: HSS | CK151: TUBO120X60X5
A152: 530UB92.4 | B152: W | D152: HSS9X7X3/16 | E152: B | G152: HSS228.6X177.8X4.8 | H152: B | J152: HSS10X3X5/16 | K152: B | M152: HSS254X76.2X7.9 | N152: B | P152: RHS150X50X4 | Q152: B | S152: UBP356X368X133 | T152: W | Y152: HE600X337 | Z152: W | AB152: HP320X184 | AC152: W | AK152: W24X12.75X117 | AL152: W | AN152: W610X325X174 | AO152: W | AQ152: RHHF500X300X14.2 | AR152: B | AT152: YB-H350X175X8X12 | AU152: W | AW152: HA127X127X13 | AX152: B | AZ152: HA127X127X13 | BA152: B | BC152: TUBO120X60X5.4 | BD152: B | BI152: UC254X254X132 | BJ152: UC | BL152: H800X250X16X25 | BM152: W | BO152: H 338X351X13/13 | BP152: W | BR152: CFRHS120X60X3 | BS152: B | BU152: Тп140x60x5,5 | BV152: HSS | BX152: 03_Tk_300x10 | BY152: HSS | CA152: 03_Тк_300х10 | CB152: HSS | CK152: TUBO120X60X5.4
A153: 530UB82.0 | B153: W | D153: HSS9X5X5/8 | E153: B | G153: HSS228.6X127X15.9 | H153: B | J153: HSS10X3X1/4 | K153: B | M153: HSS254X76.2X6.4 | N153: B | P153: RHS150X50X4.5 | Q153: B | S153: UBP356X368X152 | T153: W | Y153: HE600X399 | Z153: W | AB153: HP360X133 | AC153: W | AK153: W24X12.75X131 | AL153: W | AN153: W610X325X195 | AO153: W | AQ153: RHHF500X300X16 | AR153: B | AT153: YB-H350X200X6X8 | AU153: W | AW153: HA127X127X9.5 | AX153: B | AZ153: HA127X127X9.5 | BA153: B | BC153: TUBO120X60X5.9 | BD153: B | BI153: UC254X254X167.1 | BJ153: UC | BL153: H800X250X14X25 | BM153: W | BO153: H 344X348X10/16 | BP153: W | BR153: CFRHS120X60X3.6 | BS153: B | BU153: Тп140x60x6 | BV153: HSS | BX153: 03_Tk_300x10,5 | BY153: HSS | CA153: 03_Тк_300х10,5 | CB153: HSS | CK153: TUBO120X60X5.9
A154: 460UB82.1 | B154: W | D154: HSS9X5X1/2 | E154: B | G154: HSS228.6X127X12.7 | H154: B | J154: HSS10X3X3/16 | K154: B | M154: HSS254X76.2X4.8 | N154: B | P154: RHS150X50X5 | Q154: B | S154: UBP356X368X174 | T154: W | Y154: HE650AA | Z154: W | AB154: HP360X152 | AC154: W | AK154: W24X12.75X146 | AL154: W | AN154: W610X325X217 | AO154: W | AQ154: RHHF500X300X20 | AR154: B | AT154: YB-H350X200X8X10 | AU154: W | AW154: HA127X127X8.0 | AX154: B | AZ154: HA127X127X8.0 | BA154: B | BC154: TUBO120X60X7.1 | BD154: B | BI154: UC305X305X96.9 | BJ154: UC | BL154: H800X250X14X22 | BM154: W | BO154: H 344X354X16/16 | BP154: W | BR154: CFRHS120X60X4 | BS154: B | BU154: Тп140x60x6,5 | BV154: HSS | BX154: 03_Tk_300x11 | BY154: HSS | CA154: 03_Тк_300х11 | CB154: HSS | CK154: TUBO120X60X7.1
A155: 460UB74.6 | B155: W | D155: HSS9X5X3/8 | E155: B | G155: HSS228.6X127X9.5 | H155: B | J155: HSS10X3X1/8 | K155: B | M155: HSS254X76.2X3.2 | N155: B | P155: RHS150X75X2.5 | Q155: B | Y155: HE650A | Z155: W | AB155: HP360X174 | AC155: W | AK155: W24X12.75X162 | AL155: W | AN155: W610X325X241 | AO155: W | AQ155: SHHF40X40X3 | AR155: B | AT155: YB-H350X200X8X12 | AU155: W | AW155: HA127X127X6.4 | AX155: B | AZ155: HA127X127X6.4 | BA155: B | BC155: TUBO120X60X8 | BD155: B | BI155: UC305X305X117.9 | BJ155: UC | BL155: H750X350X16X36 | BM155: W | BO155: H 350X350X12/19 | BP155: W | BR155: CFRHS120X60X5 | BS155: B | BU155: Тп140x60x7 | BV155: HSS | BX155: 03_Tk_300x11,5 | BY155: HSS | CA155: 03_Тк_300х11,5 | CB155: HSS | CK155: TUBO120X60X8
A156: 460UB67.1 | B156: W | D156: HSS9X5X5/16 | E156: B | G156: HSS228.6X127X7.9 | H156: B | J156: HSS10X2X3/8 | K156: B | M156: HSS254X50.8X9.5 | N156: B | P156: RHS150X75X2.9 | Q156: B | Y156: HE650B | Z156: W | AB156: HP360X180 | AC156: W | AK156: W24X12.75X176 | AL156: W | AN156: W610X325X262 | AO156: W | AQ156: SHHF40X40X3.2 | AR156: B | AT156: YB-H350X200X10X16 | AU156: W | AW156: HA127X127X4.8 | AX156: B | AZ156: HA127X127X4.8 | BA156: B | BC156: TUBO120X60X10 | BD156: B | BI156: UC305X305X136.9 | BJ156: UC | BL156: H750X350X16X32 | BM156: W | BO156: H 350X357X19/19 | BP156: W | BR156: CFRHS120X60X6 | BS156: B | BU156: Тп140x100x4 | BV156: HSS | BX156: 03_Tk_300x12 | BY156: HSS | CA156: 03_Тк_300х12 | CB156: HSS | CK156: TUBO120X60X10
A157: 410UB59.7 | B157: W | D157: HSS9X5X1/4 | E157: B | G157: HSS228.6X127X6.4 | H157: B | J157: HSS10X2X5/16 | K157: B | M157: HSS254X50.8X7.9 | N157: B | P157: RHS150X75X3.2 | Q157: B | Y157: HE650M | Z157: W | AB157: HP400X140 | AC157: W | AK157: W24X12.75X192 | AL157: W | AN157: W610X325X285 | AO157: W | AQ157: SHHF40X40X4 | AR157: B | AT157: YB-H350X250X8X10 | AU157: W | AW157: HA114X114X13 | AX157: B | AZ157: HA114X114X13 | BA157: B | BC157: TUBO140X140X7.1 | BD157: B | BI157: UC305X305X158.1 | BJ157: UC | BL157: H750X350X16X28 | BM157: W | BO157: H 396X199X7/11 | BP157: W | BR157: CFRHS120X60X6.3 | BS157: B | BU157: Тп140x100x4,5 | BV157: HSS | BX157: 03_Tp_50x25x2 | BY157: HSS | CA157: 03_Тп_50х25х2 | CB157: HSS | CK157: TUBO140X140X7.1
A158: 410UB53.7 | B158: W | D158: HSS9X5X3/16 | E158: B | G158: HSS228.6X127X4.8 | H158: B | J158: HSS10X2X1/4 | K158: B | M158: HSS254X50.8X6.4 | N158: B | P158: RHS150X75X3.6 | Q158: B | Y158: HE650X343 | Z158: W | AB158: HP400X158 | AC158: W | AK158: W24X12.75X207 | AL158: W | AN158: W610X325X307 | AO158: W | AQ158: SHHF40X40X5 | AR158: B | AT158: YB-H350X250X8X12 | AU158: W | AW158: HA114X114X9.5 | AX158: B | AZ158: HA114X114X9.5 | BA158: B | BC158: TUBO140X140X8 | BD158: B | BI158: UC305X305X198.1 | BJ158: UC | BL158: H750X350X14X32 | BM158: W | BO158: H 400X200X8/13 | BP158: W | BR158: CFRHS120X80X4 | BS158: B | BU158: Тп140x100x5 | BV158: HSS | BX158: 03_Tp_50x25x2,5 | BY158: HSS | CA158: 03_Тп_50х25х2,5 | CB158: HSS | CK158: TUBO140X140X8
A159: 360UB56.7 | B159: W | D159: HSS9X3X1/2 | E159: B | G159: HSS228.6X76.2X12.7 | H159: B | J159: HSS10X2X3/16 | K159: B | M159: HSS254X50.8X4.8 | N159: B | P159: RHS150X75X4 | Q159: B | Y159: HE650X407 | Z159: W | AB159: HP400X176 | AC159: W | AK159: W24X12.75X229 | AL159: W | AN159: W610X325X341 | AO159: W | AQ159: SHHF50X50X3 | AR159: B | AT159: YB-H350X250X10X16 | AU159: W | AW159: HA114X114X8.0 | AX159: B | AZ159: HA114X114X8.0 | BA159: B | BC159: TUBO140X140X10 | BD159: B | BI159: UC305X305X240 | BJ159: UC | BL159: H750X350X14X28 | BM159: W | BO159: H 390X300X10/16 | BP159: W | BR159: CFRHS120X80X5 | BS159: B | BU159: Тп140x100x5,5 | BV159: HSS | BX159: 03_Tp_50x25x3 | BY159: HSS | CA159: 03_Тп_50х25х3 | CB159: HSS | CK159: TUBO140X140X10
A160: 360UB50.7 | B160: W | D160: HSS9X3X3/8 | E160: B | G160: HSS228.6X76.2X9.5 | H160: B | J160: HSS10X2X1/8 | K160: B | M160: HSS254X50.8X3.2 | N160: B | P160: RHS150X75X5 | Q160: B | Y160: HE700AA | Z160: W | AB160: HP400X194 | AC160: W | AK160: W24X12.75X279 | AL160: W | AN160: W610X325X415 | AO160: W | AQ160: SHHF50X50X3.2 | AR160: B | AT160: YB-H350X300X8X12 | AU160: W | AW160: HA114X114X6.4 | AX160: B | AZ160: HA114X114X6.4 | BA160: B | BC160: TUBO140X140X12.5 | BD160: B | BI160: UC305X305X282.9 | BJ160: UC | BL160: H750X350X14X25 | BM160: W | BO160: H 388X402X15/15 | BP160: W | BR160: CFRHS120X80X6 | BS160: B | BU160: Тп140x100x6 | BV160: HSS | BX160: 03_Tp_50x25x3,5 | BY160: HSS | CA160: 03_Тп_50х25х3,5 | CB160: HSS | CK160: TUBO140X140X12.5
A161: 360UB44.7 | B161: W | D161: HSS9X3X5/16 | E161: B | G161: HSS228.6X76.2X7.9 | H161: B | J161: HSS9X9X5/8 | K161: B | M161: HSS228.6X228.6X15.9 | N161: B | P161: RHS150X75X6 | Q161: B | Y161: HE700A | Z161: W | AB161: HP400X213 | AC161: W | AK161: W24X12.75X306 | AL161: W | AN161: W610X325X455 | AO161: W | AQ161: SHHF50X50X4 | AR161: B | AT161: YB-H350X300X10X16 | AU161: W | AW161: HA114X114X4.8 | AX161: B | AZ161: HA114X114X4.8 | BA161: B | BC161: TUBO140X140X14.2 | BD161: B | BI161: UC368X368X129 | BJ161: UC | BL161: H750X300X16X32 | BM161: W | BO161: H 394X398X11/18 | BP161: W | BR161: CFRHS120X80X6.3 | BS161: B | BU161: Тп140x100x6,5 | BV161: HSS | BX161: 03_Tp_50x25x4 | BY161: HSS | CA161: 03_Тп_50х25х4 | CB161: HSS | CK161: TUBO140X140X14.2
A162: 310UB46.2 | B162: W | D162: HSS9X3X1/4 | E162: B | G162: HSS228.6X76.2X6.4 | H162: B | J162: HSS9X9X1/2 | K162: B | M162: HSS228.6X228.6X12.7 | N162: B | P162: RHS150X100X2.9 | Q162: B | Y162: HE700B | Z162: W | AB162: HP400X231 | AC162: W | AK162: W24X12.75X335 | AL162: W | AN162: W610X325X498 | AO162: W | AQ162: SHHF50X50X5 | AR162: B | AT162: YB-H350X350X8X12 | AU162: W | AW162: HA114X114X3.2 | AX162: B | AZ162: HA114X114X3.2 | BA162: B | BC162: TUBO140X140X16 | BD162: B | BI162: UC368X368X152.9 | BJ162: UC | BL162: H750X300X16X28 | BM162: W | BO162: H 394X405X18/18 | BP162: W | BR162: CFRHS120X80X8 | BS162: B | BU162: Тп140x100x7 | BV162: HSS | BX162: 03_Tp_50x30x2 | BY162: HSS | CA162: 03_Тп_50х30х2 | CB162: HSS | CK162: TUBO140X140X16
A163: 310UB40.4 | B163: W | D163: HSS9X3X3/16 | E163: B | G163: HSS228.6X76.2X4.8 | H163: B | J163: HSS9X9X3/8 | K163: B | M163: HSS228.6X228.6X9.5 | N163: B | P163: RHS150X100X3.2 | Q163: B | Y163: HE700M | Z163: W | AK163: W24X12.75X370 | AL163: W | AN163: W610X325X551 | AO163: W | AQ163: SHHF50X50X6.3 | AR163: B | AT163: YB-H350X350X10X16 | AU163: W | AW163: HA102X102X13 | AX163: B | AZ163: HA102X102X13 | BA163: B | BC163: TUBO140X140X17.5 | BD163: B | BI163: UC368X368X177 | BJ163: UC | BL163: H750X300X16X25 | BM163: W | BO163: H 400X400X13/21 | BP163: W | BR163: CFRHS150X100X4 | BS163: B | BU163: Тп140x120x4 | BV163: HSS | BX163: 03_Tp_50x30x2,5 | BY163: HSS | CA163: 03_Тп_50х30х2,5 | CB163: HSS | CK163: TUBO140X140X17.5
A164: 310UB32.0 | B164: W | D164: HSS8X8X5/8 | E164: B | G164: HSS203.2X203.2X15.9 | H164: B | J164: HSS9X9X5/16 | K164: B | M164: HSS228.6X228.6X7.9 | N164: B | P164: RHS150X100X3.6 | Q164: B | Y164: HE700X352 | Z164: W | AK164: W27X10X84 | AL164: W | AN164: W690X250X125 | AO164: W | AQ164: SHHF60X60X3 | AR164: B | AT164: YB-H350X350X12X20 | AU164: W | AW164: HA102X102X9.5 | AX164: B | AZ164: HA102X102X9.5 | BA164: B | BC164: TUBO140X140X20 | BD164: B | BI164: UC368X368X201.9 | BJ164: UC | BL164: H750X300X14X28 | BM164: W | BO164: H 400X408X21/21 | BP164: W | BR164: CFRHS150X100X5 | BS164: B | BU164: Тп140x120x4,5 | BV164: HSS | BX164: 03_Tp_50x30x3 | BY164: HSS | CA164: 03_Тп_50х30х3 | CB164: HSS | CK164: TUBO140X140X20
A165: 250UB37.3 | B165: W | D165: HSS8X8X1/2 | E165: B | G165: HSS203.2X203.2X12.7 | H165: B | J165: HSS9X9X1/4 | K165: B | M165: HSS228.6X228.6X6.4 | N165: B | P165: RHS150X100X4 | Q165: B | Y165: HE700X418 | Z165: W | AK165: W27X10X94 | AL165: W | AN165: W690X250X140 | AO165: W | AQ165: SHHF60X60X3.2 | AR165: B | AT165: YB-H400X200X6X10 | AU165: W | AW165: HA102X102X8.0 | AX165: B | AZ165: HA102X102X8.0 | BA165: B | BC165: TUBO140X140X22.2 | BD165: B | BI165: WPB150X150X23 | BJ165: WPB | BL165: H750X300X14X25 | BM165: W | BO165: H 406X403X16/24 | BP165: W | BR165: CFRHS150X100X6 | BS165: B | BU165: Тп140x120x5 | BV165: HSS | BX165: 03_Tp_50x30x3,5 | BY165: HSS | CA165: 03_Тп_50х30х3,5 | CB165: HSS | CK165: TUBO140X140X22.2
A166: 250UB31.4 | B166: W | D166: HSS8X8X3/8 | E166: B | G166: HSS203.2X203.2X9.5 | H166: B | J166: HSS9X9X3/16 | K166: B | M166: HSS228.6X228.6X74.8 | N166: B | P166: RHS150X100X5 | Q166: B | Y166: HE800AA | Z166: W | AK166: W27X10X102 | AL166: W | AN166: W690X250X152 | AO166: W | AQ166: SHHF60X60X4 | AR166: B | AT166: YB-H400X200X8X12 | AU166: W | AW166: HA102X102X6.4 | AX166: B | AZ166: HA102X102X6.4 | BA166: B | BC166: TUBO140X140X25 | BD166: B | BI166: WPB150X150X30 | BJ166: WPB | BL166: H750X300X14X22 | BM166: W | BO166: H 414X405X18/28 | BP166: W | BR166: CFRHS150X100X6.3 | BS166: B | BU166: Тп140x120x5,5 | BV166: HSS | BX166: 03_Tp_50x30x4 | BY166: HSS | CA166: 03_Тп_50х30х4 | CB166: HSS | CK166: TUBO140X140X25
A167: 250UB25.7 | B167: W | D167: HSS8X8X5/16 | E167: B | G167: HSS203.2X203.2X7.9 | H167: B | J167: HSS9X9X1/8 | K167: B | M167: HSS228.6X228.6X3.2 | N167: B | P167: RHS150X100X6 | Q167: B | Y167: HE800A | Z167: W | AK167: W27X10X114 | AL167: W | AN167: W690X250X170 | AO167: W | AQ167: SHHF60X60X5 | AR167: B | AT167: YB-H400X200X8X16 | AU167: W | AW167: HA102X102X4.8 | AX167: B | AZ167: HA102X102X4.8 | BA167: B | BC167: TUBO140X98X5 | BD167: B | BI167: WPB150X150X37 | BJ167: WPB | BL167: H750X250X14X28 | BM167: W | BO167: H 428X407X20/35 | BP167: W | BR167: CFRHS150X100X8 | BS167: B | BU167: Тп140x120x6 | BV167: HSS | BX167: 03_Tp_50x30x5 | BY167: HSS | CA167: 03_Тп_50х30х5 | CB167: HSS | CK167: TUBO140X98X5
A168: 200UB29.8 | B168: W | D168: HSS8X8X1/4 | E168: B | G168: HSS203.2X203.2X6.4 | H168: B | J168: HSS9X7X5/8 | K168: B | M168: HSS228.6X177.8X15.9 | N168: B | P168: RHS150X100X8 | Q168: B | Y168: HE800B | Z168: W | AK168: W27X10X129 | AL168: W | AN168: W690X250X192 | AO168: W | AQ168: SHHF60X60X6.3 | AR168: B | AT168: YB-H400X200X10X20 | AU168: W | AW168: HA102X102X3.2 | AX168: B | AZ168: HA102X102X3.2 | BA168: B | BC168: TUBO140X98X5.4 | BD168: B | BI168: WPB320X300X74.2 | BJ168: WPB | BL168: H750X250X14X25 | BM168: W | BO168: H 458X417X30/50 | BP168: W | BR168: CFRHS160X80X5 | BS168: B | BU168: Тп140x120x6,5 | BV168: HSS | BX168: 03_Tp_50x40x2 | BY168: HSS | CA168: 03_Тп_50х40х2 | CB168: HSS | CK168: TUBO140X98X5.4
A169: 200UB25.4 | B169: W | D169: HSS8X8X3/16 | E169: B | G169: HSS203.2X203.2X4.8 | H169: B | J169: HSS9X7X1/2 | K169: B | M169: HSS228.6X177.8X12.7 | N169: B | P169: RHS200X100X2.9 | Q169: B | Y169: HE800M | Z169: W | AK169: W30X10.5X90 | AL169: W | AN169: W760X265X134 | AO169: W | AQ169: SHHF60X60X8 | AR169: B | AT169: YB-H400X250X6X10 | AU169: W | AW169: HA89X89X9.5 | AX169: B | AZ169: HA89X89X9.5 | BA169: B | BC169: TUBO140X98X5.9 | BD169: B | BI169: WPB320X300X97.6 | BJ169: WPB | BL169: H750X250X12X25 | BM169: W | BO169: H 498X432X45/70 | BP169: W | BR169: CFRHS160X80X6 | BS169: B | BU169: Тп140x120x7 | BV169: HSS | BX169: 03_Tp_50x40x2,5 | BY169: HSS | CA169: 03_Тп_50х40х2,5 | CB169: HSS | CK169: TUBO140X98X5.9
A170: 200UB22.3 | B170: W | D170: HSS8X8X1/8 | E170: B | G170: HSS203.2X203.2X3.2 | H170: B | J170: HSS9X7X3/8 | K170: B | M170: HSS228.6X177.8X9.5 | N170: B | P170: RHS200X100X3.2 | Q170: B | Y170: HE800X373 | Z170: W | AK170: W30X10.5X99 | AL170: W | AN170: W760X265X147 | AO170: W | AQ170: SHHF70X70X3.6 | AR170: B | AT170: YB-H400X250X8X12 | AU170: W | AW170: HA89X89X8.0 | AX170: B | AZ170: HA89X89X8.0 | BA170: B | BC170: TUBO140X98X7.1 | BD170: B | BI170: WPB320X300X126.6 | BJ170: WPB | BL170: H750X250X12X22 | BM170: W | BO170: H 446X199X8/12 | BP170: W | BR170: CFRHS160X80X8 | BS170: B | BU170: Тп140x120x7,5 | BV170: HSS | BX170: 03_Tp_50x40x3 | BY170: HSS | CA170: 03_Тп_50х40х3 | CB170: HSS | CK170: TUBO140X98X7.1
A171: 200UB18.2 | B171: W | D171: HSS8X6X5/8 | E171: B | G171: HSS203.2X152.4X15.9 | H171: B | J171: HSS9X7X5/16 | K171: B | M171: HSS228.6X177.8X7.9 | N171: B | P171: RHS200X100X3.6 | Q171: B | Y171: HE800X444 | Z171: W | AK171: W30X10.5X108 | AL171: W | AN171: W760X265X161 | AO171: W | AQ171: SHHF70X70X5 | AR171: B | AT171: YB-H400X250X8X16 | AU171: W | AW171: HA89X89X6.4 | AX171: B | AZ171: HA89X89X6.4 | BA171: B | BC171: TUBO140X98X8 | BD171: B | BI171: WPB320X300X245 | BJ171: WPB | BL171: H750X250X12X19 | BM171: W | BO171: H 450X200X9/14 | BP171: W | BR171: CFRHS200X100X4 | BS171: B | BU171: Тп140x120x8 | BV171: HSS | BX171: 03_Tp_50x40x3,5 | BY171: HSS | CA171: 03_Тп_50х40х3,5 | CB171: HSS | CK171: TUBO140X98X8
A172: 180UB22.2 | B172: W | D172: HSS8X6X1/2 | E172: B | G172: HSS203.2X152.4X12.7 | H172: B | J172: HSS9X7X1/4 | K172: B | M172: HSS228.6X177.8X6.4 | N172: B | P172: RHS200X100X4 | Q172: B | Y172: HE900AA | Z172: W | AK172: W30X10.5X116 | AL172: W | AN172: W760X265X173 | AO172: W | AQ172: SHHF70X70X6.3 | AR172: B | AT172: YB-H400X250X10X20 | AU172: W | AW172: HA89X89X4.8 | AX172: B | AZ172: HA89X89X4.8 | BA172: B | BC172: TUBO140X98X10 | BD172: B | BI172: WPB600X300X128.8 | BJ172: WPB | BL172: H700X350X16X36 | BM172: W | BO172: H 434X299X10/15 | BP172: W | BR172: CFRHS200X100X5 | BS172: B | BU172: Тп150x100x4 | BV172: HSS | BX172: 03_Tp_50x40x4 | BY172: HSS | CA172: 03_Тп_50х40х4 | CB172: HSS | CK172: TUBO140X98X10
A173: 180UB18.1 | B173: W | D173: HSS8X6X3/8 | E173: B | G173: HSS203.2X152.4X9.5 | H173: B | J173: HSS9X7X3/16 | K173: B | M173: HSS228.6X177.8X4.8 | N173: B | P173: RHS200X100X5 | Q173: B | Y173: HE900A | Z173: W | AK173: W30X10.5X124 | AL173: W | AN173: W760X265X185 | AO173: W | AQ173: SHHF70X70X8 | AR173: B | AT173: YB-H400X300X8X12 | AU173: W | AW173: HA89X89X3.2 | AX173: B | AZ173: HA89X89X3.2 | BA173: B | BC173: TUBO140X98X12.5 | BD173: B | BI173: WPB600X300X177.8 | BJ173: WPB | BL173: H700X350X16X32 | BM173: W | BO173: H 440X300X11/18 | BP173: W | BR173: CFRHS200X100X6 | BS173: B | BU173: Тп150x100x4,5 | BV173: HSS | BX173: 03_Tp_50x40x4,5 | BY173: HSS | CA173: 03_Тп_50х40х4,5 | CB173: HSS | CK173: TUBO140X98X12.5
A174: 180UB16.1 | B174: W | D174: HSS8X6X5/16 | E174: B | G174: HSS203.2X152.4X7.9 | H174: B | J174: HSS9X5X5/8 | K174: B | M174: HSS228.6X127X15.9 | N174: B | P174: RHS200X100X6 | Q174: B | Y174: HE900B | Z174: W | AK174: W30X10.5X132 | AL174: W | AN174: W760X265X196 | AO174: W | AQ174: SHHF80X80X3.6 | AR174: B | AT174: YB-H400X300X10X16 | AU174: W | AW174: HA76X76X9.5 | AX174: B | AZ174: HA76X76X9.5 | BA174: B | BC174: TUBO140X98X14.2 | BD174: B | BI174: WPB600X300X211.9 | BJ174: WPB | BL174: H700X350X16X28 | BM174: W | BO174: H 496X199X9/14 | BP174: W | BR174: CFRHS200X100X6.3 | BS174: B | BU174: Тп150x100x5 | BV174: HSS | BX174: 03_Tp_50x40x5 | BY174: HSS | CA174: 03_Тп_50х40х5 | CB174: HSS | CK174: TUBO140X98X14.2
A175: 150UB18.0 | B175: W | D175: HSS8X6X1/4 | E175: B | G175: HSS203.2X152.4X6.4 | H175: B | J175: HSS9X5X1/2 | K175: B | M175: HSS228.6X127X12.7 | N175: B | P175: RHS200X100X8 | Q175: B | Y175: HE900M | Z175: W | AK175: W30X10.5X148 | AL175: W | AN175: W760X265X220 | AO175: W | AQ175: SHHF80X80X4 | AR175: B | AT175: YB-H400X300X12X20 | AU175: W | AW175: HA76X76X8.0 | AX175: B | AZ175: HA76X76X8.0 | BA175: B | BC175: TUBO140X98X16 | BD175: B | BI175: WPB600X300X285.5 | BJ175: WPB | BL175: H700X350X16X25 | BM175: W | BO175: H 500X200X10/16 | BP175: W | BR175: CFRHS200X100X8 | BS175: B | BU175: Тп150x100x5,5 | BV175: HSS | BX175: 03_Tp_60x30x2 | BY175: HSS | CA175: 03_Тп_60х30х2 | CB175: HSS | CK175: TUBO140X98X16
A176: 150UB14.0 | B176: W | D176: HSS8X6X3/16 | E176: B | G176: HSS203.2X152.4X4.8 | H176: B | J176: HSS9X5X3/8 | K176: B | M176: HSS228.6X127X9.5 | N176: B | P176: RHS240X120X4 | Q176: B | Y176: HE900X391 | Z176: W | AK176: W33X11.5X118 | AL176: W | AN176: W840X295X176 | AO176: W | AQ176: SHHF80X80X5 | AR176: B | AT176: YB-H400X400X8X14 | AU176: W | AW176: HA76X76X6.4 | AX176: B | AZ176: HA76X76X6.4 | BA176: B | BC176: TUBO140X98X17.5 | BD176: B | BI176: WPB700X300X149.9 | BJ176: WPB | BL176: H700X350X14X32 | BM176: W | BO176: H 506X201X11/19 | BP176: W | BR176: CFRHS250X100X5 | BS176: B | BU176: Тп150x100x6 | BV176: HSS | BX176: 03_Tp_60x30x2,5 | BY176: HSS | CA176: 03_Тп_60х30х2,5 | CB176: HSS | CK176: TUBO140X98X17.5
A177: 310UBP149 | B177: W | D177: HSS8X4X5/8 | E177: B | G177: HSS203.2X101.6X15.9 | H177: B | J177: HSS9X5X5/16 | K177: B | M177: HSS228.6X127X7.9 | N177: B | P177: RHS240X120X5 | Q177: B | Y177: HE900X466 | Z177: W | AK177: W33X11.5X130 | AL177: W | AN177: W840X295X193 | AO177: W | AQ177: SHHF80X80X6.3 | AR177: B | AT177: YB-H400X400X10X16 | AU177: W | AW177: HA76X76X4.8 | AX177: B | AZ177: HA76X76X4.8 | BA177: B | BC177: TUBO140X70X3.6 | BD177: B | BI177: WPB700X300X204.5 | BJ177: WPB | BL177: H700X350X14X28 | BM177: W | BO177: H 482X300X11/15 | BP177: W | BR177: CFRHS250X100X6 | BS177: B | BU177: Тп150x100x6,5 | BV177: HSS | BX177: 03_Tp_60x30x3 | BY177: HSS | CA177: 03_Тп_60х30х3 | CB177: HSS | CK177: TUBO140X70X3.6
A178: 310UBP110 | B178: W | D178: HSS8X4X1/2 | E178: B | G178: HSS203.2X101.6X12.7 | H178: B | J178: HSS9X5X1/4 | K178: B | M178: HSS228.6X127X6.4 | N178: B | P178: RHS240X120X5.4 | Q178: B | Y178: HE1000AA | Z178: W | AK178: W33X11.5X141 | AL178: W | AN178: W840X295X210 | AO178: W | AQ178: SHHF80X80X8 | AR178: B | AT178: YB-H400X400X12X20 | AU178: W | AW178: HA76X76X3.2 | AX178: B | AZ178: HA76X76X3.2 | BA178: B | BC178: TUBO140X70X4 | BD178: B | BI178: WPB700X300X240.5 | BJ178: WPB | BL178: H700X350X14X25 | BM178: W | BO178: H 488X300X11/18 | BP178: W | BR178: CFRHS250X100X6.3 | BS178: B | BU178: Тп150x100x7 | BV178: HSS | BX178: 03_Tp_60x30x3,5 | BY178: HSS | CA178: 03_Тп_60х30х3,5 | CB178: HSS | CK178: TUBO140X70X4
A179: 310UBP78.8 | B179: W | D179: HSS8X4X3/8 | E179: B | G179: HSS203.2X101.6X9.5 | H179: B | J179: HSS9X5X3/16 | K179: B | M179: HSS228.6X127X4.8 | N179: B | P179: RHS240X120X6 | Q179: B | Y179: HE1000X249 | Z179: W | AK179: W33X11.5X152 | AL179: W | AN179: W840X295X226 | AO179: W | AQ179: SHHF90X90X3.6 | AR179: B | AT179: YB-H400X400X16X25 | AU179: W | AW179: HA64X64X8.0 | AX179: B | AZ179: HA64X64X8.0 | BA179: B | BC179: TUBO140X70X4.5 | BD179: B | BI179: WPB700X300X300.7 | BJ179: WPB | BL179: H700X350X12X25 | BM179: W | BO179: H 596X199X10/15 | BP179: W | BR179: CFRHS250X100X8 | BS179: B | BU179: Тп160x40x3 | BV179: HSS | BX179: 03_Tp_60x30x4 | BY179: HSS | CA179: 03_Тп_60х30х4 | CB179: HSS | CK179: TUBO140X70X4.5
A180: 200UBP122 | B180: W | D180: HSS8X4X5/16 | E180: B | G180: HSS203.2X101.6X7.9 | H180: B | J180: HSS9X3X1/2 | K180: B | M180: HSS228.6X76.2X12.7 | N180: B | P180: RHS240X120X8 | Q180: B | Y180: HE1000A | Z180: W | AK180: W33X11.5X169 | AL180: W | AN180: W840X295X251 | AO180: W | AQ180: SHHF90X90X4 | AR180: B | AT180: YB-H400X400X20X32 | AU180: W | AW180: HA64X64X6.4 | AX180: B | AZ180: HA64X64X6.4 | BA180: B | BC180: TUBO140X70X5 | BD180: B | BI180: WPB800X300X171.5 | BJ180: WPB | BL180: H700X350X12X22 | BM180: W | BO180: H 600X200X11/17 | BP180: W | BR180: CFRHS250X100X10 | BS180: B | BU180: Тп160x40x3,5 | BV180: HSS | BX180: 03_Tp_60x30x4,5 | BY180: HSS | CA180: 03_Тп_60х30х4,5 | CB180: HSS | CK180: TUBO140X70X5
A181: 310UC158 | B181: W | D181: HSS8X4X1/4 | E181: B | G181: HSS203.2X101.6X6.4 | H181: B | J181: HSS9X3X3/8 | K181: B | M181: HSS228.6X76.2X9.5 | N181: B | P181: RHS250X100X4 | Q181: B | Y181: HE1000B | Z181: W | AK181: W36X12X135 | AL181: W | AN181: W920X310X201 | AO181: W | AQ181: SHHF90X90X5 | AR181: B | AT181: YB-H400X400X25X40 | AU181: W | AW181: HA64X64X4.8 | AX181: B | AZ181: HA64X64X4.8 | BA181: B | BC181: TUBO140X70X5.4 | BD181: B | BI181: WPB800X300X224.4 | BJ181: WPB | BL181: H700X300X16X32 | BM181: W | BO181: H 606X201X12/20 | BP181: W | BR181: CFRHS250X100X12.5 | BS181: B | BU181: Тп160x40x4 | BV181: HSS | BX181: 03_Tp_60x30x5 | BY181: HSS | CA181: 03_Тп_60х30х5 | CB181: HSS | CK181: TUBO140X70X5.4
A182: 310UC137 | B182: W | D182: HSS8X4X3/16 | E182: B | G182: HSS203.2X101.6X4.8 | H182: B | J182: HSS9X3X5/16 | K182: B | M182: HSS228.6X76.2X7.9 | N182: B | P182: RHS250X100X5 | Q182: B | Y182: HE1000M | Z182: W | AK182: W36X12X150 | AL182: W | AN182: W920X310X223 | AO182: W | AQ182: SHHF90X90X6.3 | AR182: B | AT182: YB-H392X400X10X16 | AU182: W | AW182: HA64X64X3.2 | AX182: B | AZ182: HA64X64X3.2 | BA182: B | BC182: TUBO140X70X5.9 | BD182: B | BI182: WPB800X300X262.3 | BJ182: WPB | BL182: H700X300X16X28 | BM182: W | BO182: H 612X202X13/23 | BP182: W | BR182: CFRHS300X200X6 | BS182: B | BU182: Тп160x40x4,5 | BV182: HSS | BX182: 03_Tp_60x30x5,5 | BY182: HSS | CA182: 03_Тп_60х30х5,5 | CB182: HSS | CK182: TUBO140X70X5.9
A183: 310UC118 | B183: W | D183: HSS8X4X1/8 | E183: B | G183: HSS203.2X101.6X3.2 | H183: B | J183: HSS9X3X1/4 | K183: B | M183: HSS228.6X76.2X6.4 | N183: B | P183: RHS250X100X5.4 | Q183: B | Y183: HE1000X393 | Z183: W | AK183: W36X12X160 | AL183: W | AN183: W920X310X238 | AO183: W | AQ183: SHHF90X90X8 | AR183: B | AT183: YB-H410X400X16X25 | AU183: W | AW183: HA51X51X6.4 | AX183: B | AZ183: HA51X51X6.4 | BA183: B | BC183: TUBO140X70X7.1 | BD183: B | BI183: WPB800X300X317.3 | BJ183: WPB | BL183: H700X300X16X25 | BM183: W | BO183: H 582X300X12/17 | BP183: W | BR183: CFRHS300X200X6.3 | BS183: B | BU183: Тп160x40x5 | BV183: HSS | BX183: 03_Tp_60x30x6 | BY183: HSS | CA183: 03_Тп_60х30х6 | CB183: HSS | CK183: TUBO140X70X7.1
A184: 310UC96.8 | B184: W | D184: HSS8X3X1/2 | E184: B | G184: HSS203.2X76.2X12.7 | H184: B | J184: HSS9X3X3/16 | K184: B | M184: HSS228.6X76.2X4.8 | N184: B | P184: RHS250X100X6 | Q184: B | Y184: HE1000X415 | Z184: W | AK184: W36X12X170 | AL184: W | AN184: W920X310X253 | AO184: W | AQ184: SHHF100X100X4 | AR184: B | AT184: YB-H424X400X20X32 | AU184: W | AW184: HA51X51X4.8 | AX184: B | AZ184: HA51X51X4.8 | BA184: B | BC184: TUBO140X70X8 | BD184: B | BI184: WPB900X300X198 | BJ184: WPB | BL184: H700X300X14X32 | BM184: W | BO184: H 588X300X12/20 | BP184: W | BR184: CFRHS300X200X8 | BS184: B | BU184: Тп160x40x5,5 | BV184: HSS | BX184: 03_Tp_60x40x2 | BY184: HSS | CA184: 03_Тп_60х40х2 | CB184: HSS | CK184: TUBO140X70X8
A185: 250UC89.5 | B185: W | D185: HSS8X3X3/8 | E185: B | G185: HSS203.2X76.2X9.5 | H185: B | J185: HSS8X8X5/8 | K185: B | M185: HSS203.2X203.2X15.9 | N185: B | P185: RHS250X100X8 | Q185: B | Y185: HE1000X438 | Z185: W | AK185: W36X12X182 | AL185: W | AN185: W920X310X271 | AO185: W | AQ185: SHHF100X100X5 | AR185: B | AT185: YB-H440X400X25X40 | AU185: W | AW185: HA51X51X3.2 | AX185: B | AZ185: HA51X51X3.2 | BA185: B | BC185: TUBO140X70X10 | BD185: B | BI185: WPB900X300X251.6 | BJ185: WPB | BL185: H700X300X14X28 | BM185: W | BO185: H 594X302X14/23 | BP185: W | BR185: CFRHS300X200X10 | BS185: B | BU185: Тп160x40x6 | BV185: HSS | BX185: 03_Tp_60x40x2,5 | BY185: HSS | CA185: 03_Тп_60х40х2,5 | CB185: HSS | CK185: TUBO140X70X10
A186: 250UC72.9 | B186: W | D186: HSS8X3X5/16 | E186: B | G186: HSS203.2X76.2X7.9 | H186: B | J186: HSS8X8X1/2 | K186: B | M186: HSS203.2X203.2X12.7 | N186: B | P186: RHS250X150X4 | Q186: B | Y186: HE1000X494 | Z186: W | AK186: W36X12X194 | AL186: W | AN186: W920X310X289 | AO186: W | AQ186: SHHF100X100X6.3 | AR186: B | AT186: YB-H450X250X8X12 | AU186: W | AW186: HA38X38X4.8 | AX186: B | AZ186: HA38X38X4.8 | BA186: B | BC186: TUBO140X70X12.5 | BD186: B | BI186: WPB900X300X291.4 | BJ186: WPB | BL186: H700X300X14X25 | BM186: W | BO186: H 692X300X13/20 | BP186: W | BR186: CFRHS300X200X12.5 | BS186: B | BU186: Тп160x40x6,5 | BV186: HSS | BX186: 03_Tp_60x40x3 | BY186: HSS | CA186: 03_Тп_60х40х3 | CB186: HSS | CK186: TUBO140X70X12.5
A187: 200UC59.5 | B187: W | D187: HSS8X3X1/4 | E187: B | G187: HSS203.2X76.2X6.4 | H187: B | J187: HSS8X8X3/8 | K187: B | M187: HSS203.2X203.2X9.5 | N187: B | P187: RHS250X150X5 | Q187: B | Y187: HE1000X584 | Z187: W | AK187: W36X12X210 | AL187: W | AN187: W920X310X313 | AO187: W | AQ187: SHHF100X100X8 | AR187: B | AT187: YB-H450X250X10X16 | AU187: W | AW187: HA38X38X3.2 | AX187: B | AZ187: HA38X38X3.2 | BA187: B | BC187: TUBO160X160X10 | BD187: B | BI187: WPB900X300X333 | BJ187: WPB | BL187: H700X300X12X25 | BM187: W | BO187: H 700X300X13/24 | BP187: W | BR187: CFRHS400X200X8 | BS187: B | BU187: Тп160x40x7 | BV187: HSS | BX187: 03_Tp_60x40x3,5 | BY187: HSS | CA187: 03_Тп_60х40х3,5 | CB187: HSS | CK187: TUBO160X160X10
A188: 200UC52.2 | B188: W | D188: HSS8X3X3/16 | E188: B | G188: HSS203.2X76.2X4.8 | H188: B | J188: HSS8X8X5/16 | K188: B | M188: HSS203.2X203.2X7.9 | N188: B | P188: RHS250X150X5.4 | Q188: B | Y188: HL920X344 | Z188: W | AK188: W36X12X232 | AL188: W | AN188: W920X310X345 | AO188: W | AQ188: SHHF100X100X10 | AR188: B | AT188: YB-H450X250X10X20 | AU188: W | AW188: HA356X254X16 | AX188: B | AZ188: HA356X254X16 | BA188: B | BC188: TUBO160X160X12.5 | BD188: B | BL188: H700X300X12X22 | BM188: W | BO188: H 708X302X15/28 | BP188: W | BR188: CFRHS400X200X10 | BS188: B | BU188: Тп160x80x4 | BV188: HSS | BX188: 03_Tp_60x40x4 | BY188: HSS | CA188: 03_Тп_60х40х4 | CB188: HSS | CK188: TUBO160X160X12.5
A189: 200UC46.2 | B189: W | D189: HSS8X3X1/8 | E189: B | G189: HSS203.2X76.2X3.2 | H189: B | J189: HSS8X8X1/4 | K189: B | M189: HSS203.2X203.2X6.4 | N189: B | P189: RHS250X150X6 | Q189: B | Y189: HL920X368 | Z189: W | AK189: W36X12X256 | AL189: W | AN189: W920X310X381 | AO189: W | AQ189: SHHF120X120X5 | AR189: B | AT189: YB-H450X300X8X12 | AU189: W | AW189: HA356X254X13 | AX189: B | AZ189: HA356X254X13 | BA189: B | BC189: TUBO160X160X14.2 | BD189: B | BL189: H700X300X12X19 | BM189: W | BO189: H 792X300X14/22 | BP189: W | BR189: CFRHS400X200X12.5 | BS189: B | BU189: Тп160x80x4,5 | BV189: HSS | BX189: 03_Tp_60x40x4,5 | BY189: HSS | CA189: 03_Тп_60х40х4,5 | CB189: HSS | CK189: TUBO160X160X14.2
A190: 150UC37.2 | B190: W | D190: HSS8X2X3/8 | E190: B | G190: HSS203.2X50.8X9.5 | H190: B | J190: HSS8X8X3/16 | K190: B | M190: HSS203.2X203.2X4.8 | N190: B | P190: RHS250X150X8 | Q190: B | Y190: HL920X390 | Z190: W | AK190: W36X12X286 | AL190: W | AN190: W920X310X425 | AO190: W | AQ190: SHHF120X120X6.3 | AR190: B | AT190: YB-H450X300X10X16 | AU190: W | AW190: HA356X254X9.5 | AX190: B | AZ190: HA356X254X9.5 | BA190: B | BC190: TUBO160X160X16 | BD190: B | BL190: H700X250X14X28 | BM190: W | BO190: H 800X300X14/26 | BP190: W | BR190: CFSHS20X20X2 | BS190: B | BU190: Тп160x80x5 | BV190: HSS | BX190: 03_Tp_60x40x5 | BY190: HSS | CA190: 03_Тп_60х40х5 | CB190: HSS | CK190: TUBO160X160X16
A191: 150UC30.0 | B191: W | D191: HSS8X2X5/16 | E191: B | G191: HSS203.2X50.8X7.9 | H191: B | J191: HSS8X8X1/8 | K191: B | M191: HSS203.2X203.2X3.2 | N191: B | P191: RHS250X150X10 | Q191: B | Y191: HL920X420 | Z191: W | AK191: W36X12X318 | AL191: W | AN191: W920X310X474 | AO191: W | AQ191: SHHF120X120X8 | AR191: B | AT191: YB-H450X300X12X20 | AU191: W | AW191: HA305X203X16 | AX191: B | AZ191: HA305X203X16 | BA191: B | BC191: TUBO160X160X17.5 | BD191: B | BL191: H700X250X14X25 | BM191: W | BO191: H 808X302X16/30 | BP191: W | BR191: CFSHS20X20X2.5 | BS191: B | BU191: Тп160x80x5,5 | BV191: HSS | BX191: 03_Tp_60x40x5,5 | BY191: HSS | CA191: 03_Тп_60х40х5,5 | CB191: HSS | CK191: TUBO160X160X17.5
A192: 150UC23.4 | B192: W | D192: HSS8X2X1/4 | E192: B | G192: HSS203.2X50.8X6.4 | H192: B | J192: HSS8X6X5/8 | K192: B | M192: HSS203.2X152.4X15.9 | N192: B | P192: RHS280X100X4 | Q192: B | Y192: HL920X449 | Z192: W | AK192: W36X12X350 | AL192: W | AN192: W920X310X521 | AO192: W | AQ192: SHHF120X120X10 | AR192: B | AT192: YB-H450X300X12X25 | AU192: W | AW192: HA305X203X13 | AX192: B | AZ192: HA305X203X13 | BA192: B | BC192: TUBO160X160X20 | BD192: B | BL192: H700X250X12X25 | BM192: W | BO192: H 890X299X15/23 | BP192: W | BR192: CFSHS25X25X2 | BS192: B | BU192: Тп160x80x6 | BV192: HSS | BX192: 03_Tp_60x40x6 | BY192: HSS | CA192: 03_Тп_60х40х6 | CB192: HSS | CK192: TUBO160X160X20
A193: 100UC14.8 | B193: W | D193: HSS8X2X3/16 | E193: B | G193: HSS203.2X50.8X4.8 | H193: B | J193: HSS8X6X1/2 | K193: B | M193: HSS203.2X152.4X12.7 | N193: B | P193: RHS280X100X5 | Q193: B | Y193: HL920X491 | Z193: W | AK193: W36X12X387 | AL193: W | AN193: W920X310X576 | AO193: W | AQ193: SHHF120X120X12.5 | AR193: B | AT193: YB-H450X400X10X16 | AU193: W | AW193: HA305X203X9.5 | AX193: B | AZ193: HA305X203X9.5 | BA193: B | BC193: TUBO160X160X22.2 | BD193: B | BL193: H700X250X12X22 | BM193: W | BO193: H 900X300X16/28 | BP193: W | BR193: CFSHS25X25X2.5 | BS193: B | BU193: Тп160x80x6,5 | BV193: HSS | BX193: 03_Tp_70x50x2 | BY193: HSS | CA193: 03_Тп_70х50х2 | CB193: HSS | CK193: TUBO160X160X22.2
A194: 1200WB455 | B194: W | D194: HSS8X2X1/8 | E194: B | G194: HSS203.2X50.8X3.2 | H194: B | J194: HSS8X6X3/8 | K194: B | M194: HSS203.2X152.4X9.5 | N194: B | P194: RHS280X100X5.4 | Q194: B | Y194: HL920X537 | Z194: W | AK194: W36X16.5X231 | AL194: W | AN194: W920X420X344 | AO194: W | AQ194: SHHF140X140X5 | AR194: B | AT194: YB-H450X400X10X20 | AU194: W | AW194: HA305X203X8.0 | AX194: B | AZ194: HA305X203X8.0 | BA194: B | BC194: TUBO160X160X25 | BD194: B | BL194: H700X250X12X19 | BM194: W | BO194: H 912X302X18/34 | BP194: W | BR194: CFSHS25X25X3 | BS194: B | BU194: Тп160x80x7 | BV194: HSS | BX194: 03_Tp_70x50x2,5 | BY194: HSS | CA194: 03_Тп_70х50х2,5 | CB194: HSS | CK194: TUBO160X160X25
A195: 1200WB423 | B195: W | D195: HSS7X7X5/8 | E195: B | G195: HSS177.8X177.8X15.9 | H195: B | J195: HSS8X6X5/16 | K195: B | M195: HSS203.2X152.4X7.9 | N195: B | P195: RHS280X100X6 | Q195: B | Y195: HL920X588 | Z195: W | AK195: W36X16.5X247 | AL195: W | AN195: W920X420X368 | AO195: W | AQ195: SHHF140X140X6.3 | AR195: B | AT195: YB-H450X400X12X25 | AU195: W | AW195: HA305X203X6.4 | AX195: B | AZ195: HA305X203X6.4 | BA195: B | BC195: TUBO160X160X28 | BD195: B | BL195: H700X250X9X19 | BM195: W | BO195: H 918X303X18/34 | BP195: W | BR195: CFSHS30X30X2 | BS195: B | BU195: Тп160x100x4 | BV195: HSS | BX195: 03_Tp_70x50x3 | BY195: HSS | CA195: 03_Тп_70х50х3 | CB195: HSS | CK195: =IF(OFFSET(A195,0,($CJ$2-1)*3)=0,"",OFFSET(A195,0,($CJ$2-1)*3)) -> TUBO160X160X28
A196: 1200WB392 | B196: W | D196: HSS7X7X1/2 | E196: B | G196: HSS177.8X177.8X12.7 | H196: B | J196: HSS8X6X1/4 | K196: B | M196: HSS203.2X152.4X6.4 | N196: B | P196: RHS280X100X8 | Q196: B | Y196: HL920X656 | Z196: W | AK196: W36X16.5X262 | AL196: W | AN196: W920X420X390 | AO196: W | AQ196: SHHF140X140X8 | AR196: B | AT196: YB-H500X250X8X16 | AU196: W | AW196: HA254X152X16 | AX196: B | AZ196: HA254X152X16 | BA196: B | BC196: TUBO160X160X30 | BD196: B | BL196: H700X250X9X16 | BM196: W | BO196: LH 75X75X2.3/3.2 | BP196: W | BR196: CFSHS30X30X2.5 | BS196: B | BU196: Тп160x100x4,5 | BV196: HSS | BX196: 03_Tp_70x50x3,5 | BY196: HSS | CA196: 03_Тп_70х50х3,5 | CB196: HSS | CK196: TUBO160X160X30
A197: 1200WB342 | B197: W | D197: HSS7X7X3/8 | E197: B | G197: HSS177.8X177.8X9.5 | H197: B | J197: HSS8X6X3/16 | K197: B | M197: HSS203.2X152.4X4.8 | N197: B | P197: RHS300X150X4 | Q197: B | Y197: HL920X725 | Z197: W | AK197: W36X16.5X282 | AL197: W | AN197: W920X420X420 | AO197: W | AQ197: SHHF140X140X10 | AR197: B | AT197: YB-H500X250X10X20 | AU197: W | AW197: HA254X152X13 | AX197: B | AZ197: HA254X152X13 | BA197: B | BC197: TUBO160X112X5.9 | BD197: B | BL197: H700X200X12X28 | BM197: W | BO197: LH 75X75X3.2/3.2 | BP197: W | BR197: CFSHS30X30X3 | BS197: B | BU197: Тп160x100x5 | BV197: HSS | BX197: 03_Tp_70x50x4 | BY197: HSS | CA197: 03_Тп_70х50х4 | CB197: HSS | CK197: TUBO160X112X5.9
A198: 1200WB317 | B198: W | D198: HSS7X7X5/16 | E198: B | G198: HSS177.8X177.8X7.9 | H198: B | J198: HSS8X4X5/8 | K198: B | M198: HSS203.2X101.6X15.9 | N198: B | P198: RHS300X150X5 | Q198: B | Y198: HL920X787 | Z198: W | AK198: W36X16.5X302 | AL198: W | AN198: W920X420X449 | AO198: W | AQ198: SHHF140X140X12.5 | AR198: B | AT198: YB-H500X250X12X25 | AU198: W | AW198: HA254X152X9.5 | AX198: B | AZ198: HA254X152X9.5 | BA198: B | BC198: TUBO160X112X7.1 | BD198: B | BL198: H700X200X12X25 | BM198: W | BO198: LH 75X75X3.2/4.5 | BP198: W | BR198: CFSHS40X40X2 | BS198: B | BU198: Тп160x100x5,5 | BV198: HSS | BX198: 03_Tp_70x50x4,5 | BY198: HSS | CA198: 03_Тп_70х50х4,5 | CB198: HSS | CK198: TUBO160X112X7.1
A199: 1200WB278 | B199: W | D199: HSS7X7X1/4 | E199: B | G199: HSS177.8X177.8X6.4 | H199: B | J199: HSS8X4X1/2 | K199: B | M199: HSS203.2X101.6X12.7 | N199: B | P199: RHS300X150X5.4 | Q199: B | Y199: HL920X970 | Z199: W | AK199: W36X16.5X330 | AL199: W | AN199: W920X420X491 | AO199: W | AQ199: SHHF150X150X5 | AR199: B | AT199: YB-H500X300X8X16 | AU199: W | AW199: HA254X152X8.0 | AX199: B | AZ199: HA254X152X8.0 | BA199: B | BC199: TUBO160X112X8 | BD199: B | BL199: H700X200X12X22 | BM199: W | BO199: LH 100X60X2.3/4.5 | BP199: W | BR199: CFSHS40X40X2.5 | BS199: B | BU199: Тп160x100x6 | BV199: HSS | BX199: 03_Tp_70x50x5 | BY199: HSS | CA199: 03_Тп_70х50х5 | CB199: HSS | CK199: TUBO160X112X8
A200: 1200WB249 | B200: W | D200: HSS7X7X3/16 | E200: B | G200: HSS177.8X177.8X4.8 | H200: B | J200: HSS8X4X3/8 | K200: B | M200: HSS203.2X101.6X9.5 | N200: B | P200: RHS300X150X6 | Q200: B | Y200: HL920X1077 | Z200: W | AK200: W36X16.5X361 | AL200: W | AN200: W920X420X537 | AO200: W | AQ200: SHHF150X150X6.3 | AR200: B | AT200: YB-H500X300X10X20 | AU200: W | AW200: HA254X152X6.4 | AX200: B | AZ200: HA254X152X6.4 | BA200: B | BC200: TUBO160X112X10 | BD200: B | BL200: H700X200X9X22 | BM200: W | BO200: LH 100X60X3.2/4.5 | BP200: W | BR200: CFSHS40X40X3 | BS200: B | BU200: Тп160x100x6,5 | BV200: HSS | BX200: 03_Tp_70x50x5,5 | BY200: HSS | CA200: 03_Тп_70х50х5,5 | CB200: HSS | CK200: TUBO160X112X10
... 362 more rows
